{"text_format":"1","workbook":"xlsx","n_sheets":9,"sheets":["Avantages perçus","Conventions signées","Rémunérations","AVANTAGES","CONVENTIONS","FIRMES","Conception","Déplacements","Tableaux de synthèse"],"not_rendered":{"charts":0,"images":38,"macros":1,"external_links":5,"defined_names":21,"comments":2,"pivot_tables":0},"unopened":[],"bounds":{"document_bytes":16777216,"sheet_cells":100000,"rows_first":2000,"rows_last":500,"rows_between":2000,"halvings":0,"cell_chars":16384,"cell_head_chars":4096},"cells_cut":0,"cells_raw":0,"read":"whole","date_system":"1900"}

{"sheet":"Avantages perçus","index":0,"n_rows":498,"n_cols":8,"rows_kept":498,"cut":false,"hidden":false,"merged":[]}
["Bénéficiaire","Type de bénéficiaire","Entreprise","Date","Nature","Montant"]
["Pr Stéphane OUDARD","Médecin ","JANSSEN-CILAG","2013-01-10","REPAS ",20]
["Pr Stéphane OUDARD","Médecin ","LABORATOIRE GLAXOSMITHKLINE","29/01/2013","Transport ",68]
["Pr Stéphane OUDARD","Médecin ","AMGEN SAS","2013-02-08","REPAS ",35]
["Pr Stéphane OUDARD","Médecin ","AMGEN SAS","2013-02-08","HEBERGEMENT ",129]
["Pr Stéphane OUDARD","Médecin ","MERCK SERONO","28/02/2013","REPAS ",11]
["Pr Stéphane OUDARD","Médecin ","LABORATOIRE GLAXOSMITHKLINE","16/05/2013","Hospitalite ",20]
["Pr Stéphane OUDARD","Médecin ","MERCK SERONO","30/05/2013","REPAS ",15]
["Pr Stéphane OUDARD","Médecin ","BOEHRINGER INGELHEIM FRANCE","30/08/2013","HOSPITALITE ",28]
["Pr Stéphane OUDARD","Médecin ","LABORATOIRE GLAXOSMITHKLINE","2013-09-12","REPAS ",17]
["Pr Stéphane OUDARD","Médecin ","SANOFI AVENTIS FRANCE","16/09/2013","Restauration ",27]
["Pr Stéphane OUDARD","Médecin ","ASTELLAS PHARMA","27/09/2013","TRANSPORT ",21]
["Pr Stéphane OUDARD","Médecin ","ASTELLAS PHARMA","27/09/2013","TRANSPORT ",435]
["Pr Stéphane OUDARD","Médecin ","ASTELLAS PHARMA","27/09/2013","HEBERGEMENT ",218]
["Pr Stéphane OUDARD","Médecin ","ASTELLAS PHARMA","27/09/2013","INVITATIONS ",999]
["Pr Stéphane OUDARD","Médecin ","ASTELLAS PHARMA","27/09/2013","TRANSPORT ",59]
["Pr Stéphane OUDARD","Médecin ","ASTELLAS PHARMA","27/09/2013","REPAS ",50]
["Pr Stéphane OUDARD","Médecin ","ASTELLAS PHARMA","27/09/2013","TRANSPORT ",80]
["Pr Stéphane OUDARD","Médecin ","ASTELLAS PHARMA","28/09/2013","HEBERGEMENT ",218]
["Pr Stéphane OUDARD","Médecin ","ASTELLAS PHARMA","28/09/2013","REPAS ",60]
["Pr Stéphane OUDARD","Médecin ","ASTELLAS PHARMA","29/09/2013","REPAS ",60]
["Pr Stéphane OUDARD","Médecin ","ASTELLAS PHARMA","29/09/2013","HEBERGEMENT ",218]
["Pr Stéphane OUDARD","Médecin ","ASTELLAS PHARMA","30/09/2013","HEBERGEMENT ",218]
["Pr Stéphane OUDARD","Médecin ","Takeda France","2013-10-03","REPAS ",25]
["Pr Stéphane OUDARD","Médecin ","NOVARTIS PHARMA SAS","18/10/2013","Autre : [Hospitalité Evenement Scientifique] ",70]
["Pr Stéphane OUDARD","Médecin ","SANOFI AVENTIS FRANCE","18/10/2013","Restauration ",43]
["Pr Stéphane OUDARD","Médecin ","SANOFI AVENTIS FRANCE","18/10/2013","Restauration ",40]
["Pr Stéphane OUDARD","Médecin ","TEVA SANTE SAS","24/10/2013","REPAS ",21]
["Pr Stéphane OUDARD","Médecin ","ConsuMed Research","24/10/2013","Autre : Indemnite ",140]
["Pr Stéphane OUDARD","Médecin ","PFIZER SAS","2013-11-12","Repas ",60]
["Pr Stéphane OUDARD","Médecin ","BRISTOL-MYERS SQUIBB","15/11/2013","Hébergement ",207]
["Pr Stéphane OUDARD","Médecin ","BRISTOL-MYERS SQUIBB","15/11/2013","Transport ",80]
["Pr Stéphane OUDARD","Médecin ","PFIZER SAS","2013-12-06","Repas ",57]
["Pr Stéphane OUDARD","Médecin ","LABORATOIRE GLAXOSMITHKLINE","2013-12-12","REPAS ",32]
["Pr Stéphane OUDARD","Médecin ","ROCHE SAS","16/01/2014","Repas ",34]
["Pr Stéphane OUDARD","Médecin ","ROCHE SAS","2014-02-06","Repas ",23]
["Pr Stéphane OUDARD","Médecin ","PFIZER INTERNATIONAL OPERATIONS","2014-02-12","TRANSPORT ",150]
["Pr Stéphane OUDARD","Médecin ","PFIZER INTERNATIONAL OPERATIONS","2014-02-12","REPAS ",125]
["Pr Stéphane OUDARD","Médecin ","PFIZER INTERNATIONAL OPERATIONS","2014-02-12","HEBERGEMENT ",219]
["Pr Stéphane OUDARD","Médecin ","CHUGAI PHARMA FRANCE","13/02/2014","REPAS ",20]
["Pr Stéphane OUDARD","Médecin ","ASTELLAS PHARMA","14/02/2014","TRANSPORT ",49]
["Pr Stéphane OUDARD","Médecin ","PFIZER SAS","13/03/2014","REPAS ",16]
["Pr Stéphane OUDARD","Médecin ","BRISTOL-MYERS SQUIBB","14/03/2014","Transport ",154]
["Pr Stéphane OUDARD","Médecin ","JANSSEN-CILAG","20/03/2014","REPAS ",20]
["Pr Stéphane OUDARD","Médecin ","SANOFI AVENTIS FRANCE","24/03/2014","Repas ",25]
["Pr Stéphane OUDARD","Médecin ","ARIAD Pharmaceuticals (France)","26/03/2014","REPAS ",23]
["Pr Stéphane OUDARD","Médecin ","Takeda France","27/03/2014","REPAS ",20]
["Pr Stéphane OUDARD","Médecin ","SANOFI AVENTIS FRANCE","30/03/2014","Hébergement ",360]
["Pr Stéphane OUDARD","Médecin ","SANOFI AVENTIS FRANCE","30/03/2014","Autre : [Restauration] ",248]
["Pr Stéphane OUDARD","Médecin ","SANOFI AVENTIS FRANCE","30/03/2014","Hébergement ",360]
["Pr Stéphane OUDARD","Médecin ","SANOFI AVENTIS FRANCE","30/03/2014","Autre : [Restauration] ",248]
["Pr Stéphane OUDARD","Médecin ","PFIZER SAS","2014-04-02","REPAS ",46]
["Pr Stéphane OUDARD","Médecin ","ASTELLAS PHARMA","2014-04-03","REPAS ",19]
["Pr Stéphane OUDARD","Médecin ","ROCHE SAS","2014-04-10","Repas ",23]
["Pr Stéphane OUDARD","Médecin ","LABORATOIRE GLAXOSMITHKLINE","23/04/2014","REPAS ",25]
["Pr Stéphane OUDARD","Médecin ","LABORATOIRE GLAXOSMITHKLINE","25/04/2014","TRANSPORT ",308]
["Pr Stéphane OUDARD","Médecin ","LABORATOIRE GLAXOSMITHKLINE","25/04/2014","REPAS ",50]
["Pr Stéphane OUDARD","Médecin ","LABORATOIRE GLAXOSMITHKLINE","25/04/2014","TRANSPORT ",155]
["Pr Stéphane OUDARD","Médecin ","Bayer HealthCare SAS","14/05/2014","Hospitalité ",12]
["Pr Stéphane OUDARD","Médecin ","LABORATOIRE GLAXOSMITHKLINE","14/05/2014","REPAS ",60]
["Pr Stéphane OUDARD","Médecin ","JANSSEN-CILAG","15/05/2014","REPAS ",24]
["Pr Stéphane OUDARD","Médecin ","Takeda France","15/05/2014","HONORAIRES ",500]
["Pr Stéphane OUDARD","Médecin ","SANOFI AVENTIS FRANCE","17/05/2014","Autre : [Restauration] ",103]
["Pr Stéphane OUDARD","Médecin ","SANOFI AVENTIS FRANCE","17/05/2014","Hébergement ",150]
["Pr Stéphane OUDARD","Médecin ","SANOFI AVENTIS FRANCE","17/05/2014","Hébergement ",150]
["Pr Stéphane OUDARD","Médecin ","SANOFI AVENTIS FRANCE","17/05/2014","Autre : [Restauration] ",86]
["Pr Stéphane OUDARD","Médecin ","LABORATOIRE GLAXOSMITHKLINE","22/05/2014","REPAS ",22]
["Pr Stéphane OUDARD","Médecin ","PFIZER SAS","25/05/2014","HOSPITALITE ",77]
["Pr Stéphane OUDARD","Médecin ","NOVARTIS PHARMA SAS","29/05/2014","Transport ",5640]
["Pr Stéphane OUDARD","Médecin ","PFIZER SAS","2014-06-12","REPAS ",19]
["Pr Stéphane OUDARD","Médecin ","SANOFI AVENTIS FRANCE","21/06/2014","Autre : [Restauration] ",124]
["Pr Stéphane OUDARD","Médecin ","SANOFI AVENTIS FRANCE","21/06/2014","Autre : [Restauration] ",80]
["Pr Stéphane OUDARD","Médecin ","SANOFI AVENTIS FRANCE","21/06/2014","Hébergement ",166]
["Pr Stéphane OUDARD","Médecin ","SANOFI AVENTIS FRANCE","21/06/2014","Hébergement ",166]
["Pr Stéphane OUDARD","Médecin ","SANOFI AVENTIS FRANCE","26/06/2014","Repas ",20]
["Pr Stéphane OUDARD","Médecin ","ROCHE SAS","2014-07-03","Repas ",23]
["Pr Stéphane OUDARD","Médecin ","ROCHE SAS","2014-07-03","Repas ",23]
["Pr Stéphane OUDARD","Médecin ","Lilly France SAS","2014-07-04","REPAS ",31]
["Pr Stéphane OUDARD","Médecin ","SANOFI AVENTIS FRANCE","2014-07-10","Autre : [Remboursement de frais] ",102]
["Pr Stéphane OUDARD","Médecin ","SANOFI AVENTIS FRANCE","2014-08-07","Autre : [Remboursement de frais] ",94]
["Pr Stéphane OUDARD","Médecin ","SANOFI AVENTIS FRANCE","2014-09-03","Repas ",30]
["Pr Stéphane OUDARD","Médecin ","NOVARTIS PHARMA SAS","2014-09-04","Autre : [Participation Evenement Scientifique] ",20]
["Pr Stéphane OUDARD","Médecin ","BOEHRINGER INGELHEIM FRANCE","2014-09-11","HOSPITALITE ",23]
["Pr Stéphane OUDARD","Médecin ","AMGEN SAS","18/09/2014","REPAS IMPROMPTU ",25]
["Pr Stéphane OUDARD","Médecin ","SANOFI AVENTIS FRANCE","18/09/2014","Repas ",273]
["Pr Stéphane OUDARD","Médecin ","SANOFI AVENTIS FRANCE","18/09/2014","Inscription ",660]
["Pr Stéphane OUDARD","Médecin ","SANOFI AVENTIS FRANCE","18/09/2014","Hébergement ",423]
["Pr Stéphane OUDARD","Médecin ","SANOFI AVENTIS FRANCE","18/09/2014","Transport ",659]
["Pr Stéphane OUDARD","Médecin ","BRISTOL-MYERS SQUIBB","30/09/2014","Repas ",39]
["Pr Stéphane OUDARD","Médecin ","JANSSEN-CILAG","2014-10-03","REPAS ",32]
["Pr Stéphane OUDARD","Médecin ","Bayer HealthCare SAS","16/10/2014","Hospitalité ",26]
["Pr Stéphane OUDARD","Médecin ","HOSPIRA FRANCE","23/10/2014","HOSPITALITE ",19]
["Pr Stéphane OUDARD","Médecin ","ROCHE SAS","30/10/2014","Repas ",43]
["Pr Stéphane OUDARD","Médecin ","ROCHE SAS","30/10/2014","Repas ",43]
["Pr Stéphane OUDARD","Médecin ","JANSSEN-CILAG","31/10/2014","AUTRE : REMBOURSEMENT DE FRAIS ",55]
["Pr Stéphane OUDARD","Médecin ","SANOFI AVENTIS FRANCE","2014-11-03","Repas ",20]
["Pr Stéphane OUDARD","Médecin ","BOEHRINGER INGELHEIM FRANCE","2014-11-06","HOSPITALITE ",18]
["Pr Stéphane OUDARD","Médecin ","LEO Pharma","13/11/2014","REPAS ",15]
["Pr Stéphane OUDARD","Médecin ","SANOFI-AVENTIS GROUPE","20/11/2014","Hébergement ",150]
["Pr Stéphane OUDARD","Médecin ","SANOFI-AVENTIS GROUPE","20/11/2014","Transport ",154]
["Pr Stéphane OUDARD","Médecin ","SANOFI AVENTIS FRANCE","20/11/2014","Repas ",20]
["Pr Stéphane OUDARD","Médecin ","Takeda France","22/11/2014","Inscription ",490]
["Pr Stéphane OUDARD","Médecin ","NOVARTIS PHARMA SAS","2014-12-03","Autre : [Participation Evenement Scientifique] ",60]
["Pr Stéphane OUDARD","Médecin ","MERCK SERONO","2014-12-04","REPAS ",19]
["Pr Stéphane OUDARD","Médecin ","PIERRE FABRE MEDICAMENT","2014-12-10","RESTAURATION ",15]
["Pr Stéphane OUDARD","Médecin ","NOVARTIS PHARMA SAS","2014-12-11","Repas ",20]
["Pr Stéphane OUDARD","Médecin ","NOVARTIS PHARMA SAS","2014-12-11","Hébergement ",172]
["Pr Stéphane OUDARD","Médecin ","NOVARTIS PHARMA SAS","2014-12-11","Transport ",188]
["Pr Stéphane OUDARD","Médecin ","NOVARTIS PHARMA SAS","2014-12-11","Repas ",110]
["Pr Stéphane OUDARD","Médecin ","CHUGAI PHARMA FRANCE","2014-12-12","REPAS ",38]
["Pr Stéphane OUDARD","Médecin ","PFIZER SAS","14/12/2014","Repas ",13]
["Pr Stéphane OUDARD","Médecin ","MEDA PHARMA","17/12/2014","REPAS ",22]
["Pr Stéphane OUDARD","Médecin ","MEDA PHARMA","17/12/2014","REPAS ",22]
["Pr Stéphane OUDARD","Médecin ","MEDA PHARMA","17/12/2014","REPAS ",20]
["Pr Stéphane OUDARD","Médecin ","SANOFI-AVENTIS GROUPE","24/12/2014","Autre : [Remboursement de frais] ",122]
["Pr Stéphane OUDARD","Médecin ","SANOFI-AVENTIS GROUPE","24/12/2014","Autre : [Remboursement de frais] ",122]
["Pr Stéphane OUDARD","Médecin ","NOVARTIS PHARMA SAS","2015-01-08","AUTRE : [PARTICIPATION EVENEMENT SCIENTIFIQUE] ",20]
["Pr Stéphane OUDARD","Médecin ","SANOFI AVENTIS FRANCE","14/01/2015","Repas ",40]
["Pr Stéphane OUDARD","Médecin ","SANOFI AVENTIS FRANCE","14/01/2015","Repas ",35]
["Pr Stéphane OUDARD","Médecin ","TEVA SANTE SAS","15/01/2015","Autre : [Restauration] ",14]
["Pr Stéphane OUDARD","Médecin ","SANOFI AVENTIS FRANCE","16/01/2015","Repas ",58]
["Pr Stéphane OUDARD","Médecin ","SANOFI AVENTIS FRANCE","19/01/2015","Repas ",32]
["Pr Stéphane OUDARD","Médecin ","ROCHE SAS","22/01/2015","Repas ",23]
["Pr Stéphane OUDARD","Médecin ","A+A","2015-02-02","AUTRE [ENQUETE] ",40]
["Pr Stéphane OUDARD","Médecin ","SANOFI-AVENTIS GROUPE","2015-02-10","Hébergement ",87]
["Pr Stéphane OUDARD","Médecin ","SANOFI-AVENTIS GROUPE","2015-02-12","Transport ",2227]
["Pr Stéphane OUDARD","Médecin ","SANOFI-AVENTIS GROUPE","17/02/2015","Transport ",587]
["Pr Stéphane OUDARD","Médecin ","CHUGAI PHARMA FRANCE","19/02/2015","REPAS ",23]
["Pr Stéphane OUDARD","Médecin ","JANSSEN-CILAG","20/02/2015","AUTRE : REMBOURSEMENT DE FRAIS ",18]
["Pr Stéphane OUDARD","Médecin ","NOVARTIS PHARMA SAS","26/02/2015","TRANSPORT ",5389]
["Pr Stéphane OUDARD","Médecin ","NOVARTIS PHARMA SAS","26/02/2015","HÉBERGEMENT ",741]
["Pr Stéphane OUDARD","Médecin ","ICOMED","2015-03-02","Autre: [Enquête] ",31]
["Pr Stéphane OUDARD","Médecin ","PIERRE FABRE MEDICAMENT","2015-03-05","RESTAURATION ",25]
["Pr Stéphane OUDARD","Médecin ","AMGEN SAS","2015-03-09","REPAS IMPROMPTU ",13]
["Pr Stéphane OUDARD","Médecin ","SANOFI AVENTIS FRANCE","2015-03-12","Repas ",76]
["Pr Stéphane OUDARD","Médecin ","SANOFI-AVENTIS GROUPE","20/03/2015","Repas ",55]
["Pr Stéphane OUDARD","Médecin ","PFIZER SAS","24/03/2015","Repas ",19]
["Pr Stéphane OUDARD","Médecin ","SANOFI AVENTIS FRANCE","26/03/2015","Autre : [Remboursement de frais] ",13]
["Pr Stéphane OUDARD","Médecin ","ROCHE SAS","2015-04-02","Repas ",16]
["Pr Stéphane OUDARD","Médecin ","SANOFI-AVENTIS GROUPE","2015-04-07","Autre : [Remboursement de frais] ",172]
["Pr Stéphane OUDARD","Médecin ","SANOFI AVENTIS FRANCE","2015-04-12","Autre : [Restauration] ",229]
["Pr Stéphane OUDARD","Médecin ","SANOFI AVENTIS FRANCE","2015-04-12","Hébergement ",288]
["Pr Stéphane OUDARD","Médecin ","AMGEN SAS","16/04/2015","REPAS REUNION ",18]
["Pr Stéphane OUDARD","Médecin ","SANOFI-AVENTIS GROUPE","16/04/2015","Hébergement ",219]
["Pr Stéphane OUDARD","Médecin ","SANOFI-AVENTIS GROUPE","2015-05-05","Autre : [Remboursement de frais] ",174]
["Pr Stéphane OUDARD","Médecin ","HOSPIRA FRANCE","13/05/2015","HOSPITALITE ",37]
["Pr Stéphane OUDARD","Médecin ","NOVARTIS PHARMA SAS","29/05/2015","AUTRE : [INSCRIPTION EVENEMENT SCIENTIFIQUE] ",555]
["Pr Stéphane OUDARD","Médecin ","NOVARTIS PHARMA SAS","29/05/2015","REPAS ",305]
["Pr Stéphane OUDARD","Médecin ","NOVARTIS PHARMA SAS","29/05/2015","TRANSPORT ",6891]
["Pr Stéphane OUDARD","Médecin ","NOVARTIS PHARMA SAS","29/05/2015","HÉBERGEMENT ",1815]
["Pr Stéphane OUDARD","Médecin ","SANOFI-AVENTIS GROUPE","2015-06-01","Hébergement ",294]
["Pr Stéphane OUDARD","Médecin ","SANOFI-AVENTIS GROUPE","2015-06-01","Transport ",656]
["Pr Stéphane OUDARD","Médecin ","SANOFI-AVENTIS GROUPE","2015-06-01","Repas ",87]
["Pr Stéphane OUDARD","Médecin ","SANOFI AVENTIS FRANCE","15/06/2015","Repas ",59]
["Pr Stéphane OUDARD","Médecin ","SANOFI AVENTIS FRANCE","15/06/2015","Repas ",15]
["Pr Stéphane OUDARD","Médecin ","NOVARTIS PHARMA SAS","18/06/2015","AUTRE : [PARTICIPATION EVENEMENT SCIENTIFIQUE] ",21]
["Pr Stéphane OUDARD","Médecin ","SANOFI AVENTIS FRANCE","20/06/2015","Hébergement ",176]
["Pr Stéphane OUDARD","Médecin ","SANOFI AVENTIS FRANCE","20/06/2015","Autre : [Restauration] ",121]
["Pr Stéphane OUDARD","Médecin ","SANOFI AVENTIS FRANCE","20/06/2015","Autre : [Restauration] ",105]
["Pr Stéphane OUDARD","Médecin ","SANOFI-AVENTIS GROUPE","30/06/2015","Repas ",17]
["Pr Stéphane OUDARD","Médecin ","SANOFI-AVENTIS GROUPE","2015-07-05","Hébergement ",140]
["Pr Stéphane OUDARD","Médecin ","SANOFI-AVENTIS GROUPE","2015-07-05","Hébergement ",140]
["Pr Stéphane OUDARD","Médecin ","SANOFI-AVENTIS GROUPE","2015-07-05","Transport ",1071]
["Pr Stéphane OUDARD","Médecin ","Takeda France","2015-07-07","HONORAIRES ",1500]
["Pr Stéphane OUDARD","Médecin ","HOSPIRA FRANCE","2015-07-09","[HOSPITALITE] ",19]
["Pr Stéphane OUDARD","Médecin ","ConsuMed Research","27/07/2015","Autre : Indemnite ",170]
["Pr Stéphane OUDARD","Médecin ","ConsuMed Research","28/07/2015","Autre : Indemnite ",250]
["Pr Stéphane OUDARD","Médecin ","FERRING SAS","29/07/2015","Repas ",60]
["Pr Stéphane OUDARD","Médecin ","SANOFI AVENTIS FRANCE","21/08/2015","Repas ",50]
["Pr Stéphane OUDARD","Médecin ","Health Advances","28/08/2015","Autre: Phone consult ",309]
["Pr Stéphane OUDARD","Médecin ","SANOFI-AVENTIS GROUPE","2015-09-02","Transport ",383]
["Pr Stéphane OUDARD","Médecin ","JANSSEN-CILAG","2015-09-03","HEBERGEMENT ",350]
["Pr Stéphane OUDARD","Médecin ","JANSSEN-CILAG","2015-09-03","TRANSPORT ",342]
["Pr Stéphane OUDARD","Médecin ","JANSSEN-CILAG","2015-09-03","INSCRIPTION ",600]
["Pr Stéphane OUDARD","Médecin ","PIERRE FABRE MEDICAMENT","2015-09-03","RESTAURATION ",19]
["Pr Stéphane OUDARD","Médecin ","JANSSEN-CILAG","2015-09-03","AUTRE : REMBOURSEMENT DE FRAIS ",88]
["Pr Stéphane OUDARD","Médecin ","JANSSEN-CILAG","2015-09-03","REPAS ",140]
["Pr Stéphane OUDARD","Médecin ","ROCHE SAS","2015-09-10","Repas ",23]
["Pr Stéphane OUDARD","Médecin ","SANDOZ","15/09/2015","REPAS ",20]
["Pr Stéphane OUDARD","Médecin ","SANOFI AVENTIS FRANCE","17/09/2015","Repas ",20]
["Pr Stéphane OUDARD","Médecin ","MERCK SERONO","24/09/2015","REPAS ",30]
["Pr Stéphane OUDARD","Médecin ","ICOMED","28/09/2015","Autre: [Enquête] ",24]
["Pr Stéphane OUDARD","Médecin ","SANOFI-AVENTIS GROUPE","2015-10-01","Hébergement ",90]
["Pr Stéphane OUDARD","Médecin ","SANOFI AVENTIS FRANCE","2015-10-02","Repas ",20]
["Pr Stéphane OUDARD","Médecin ","SANOFI AVENTIS FRANCE","2015-10-05","Repas ",20]
["Pr Stéphane OUDARD","Médecin ","JANSSEN-CILAG","2015-10-05","REPAS ",15]
["Pr Stéphane OUDARD","Médecin ","BOEHRINGER INGELHEIM FRANCE","2015-10-08","HOSPITALITE ",23]
["Pr Stéphane OUDARD","Médecin ","ConsuMed Research","2015-10-08","Autre : Indemnite ",150]
["Pr Stéphane OUDARD","Médecin ","PIERRE FABRE MEDICAMENT","13/10/2015","RESTAURATION ",21]
["Pr Stéphane OUDARD","Médecin ","BRISTOL-MYERS SQUIBB","22/10/2015","Repas ",49]
["Pr Stéphane OUDARD","Médecin ","SANOFI AVENTIS FRANCE","23/10/2015","Inscription ",150]
["Pr Stéphane OUDARD","Médecin ","PASCALEO","23/10/2015","AUTRE [ENQUETE] ",35]
["Pr Stéphane OUDARD","Médecin ","SANOFI AVENTIS FRANCE","2015-11-04","Repas ",47]
["Pr Stéphane OUDARD","Médecin ","SANOFI-AVENTIS GROUPE","2015-11-12","Repas ",106]
["Pr Stéphane OUDARD","Médecin ","SANOFI-AVENTIS GROUPE","18/11/2015","Transport ",41]
["Pr Stéphane OUDARD","Médecin ","BRISTOL-MYERS SQUIBB","20/11/2015","Autre : [Rémunération] ",840]
["Pr Stéphane OUDARD","Médecin ","PFIZER SAS","2015-12-01","Repas ",60]
["Pr Stéphane OUDARD","Médecin ","LEO Pharma","2015-12-03","REPAS ",15]
["Pr Stéphane OUDARD","Médecin ","SANOFI AVENTIS FRANCE","2015-12-10","Repas ",19]
["Pr Stéphane OUDARD","Médecin ","SANOFI-AVENTIS GROUPE","15/12/2015","Hébergement ",230]
["Pr Stéphane OUDARD","Médecin ","SANOFI-AVENTIS GROUPE","15/12/2015","Transport ",421]
["Pr Stéphane OUDARD","Médecin ","PFIZER SAS","22/12/2015","Repas ",23]
["Pr Stéphane OUDARD","Médecin ","SANOFI-AVENTIS GROUPE","2016-01-05","Autre : [Remboursement de frais] ",110]
["Pr Stéphane OUDARD","Médecin ","BRISTOL-MYERS SQUIBB","2016-01-07","Repas ",117]
["Pr Stéphane OUDARD","Médecin ","BRISTOL-MYERS SQUIBB","2016-01-07","Transport ",7803]
["Pr Stéphane OUDARD","Médecin ","BRISTOL-MYERS SQUIBB","2016-01-07","Hébergement ",1080]
["Pr Stéphane OUDARD","Médecin ","BRISTOL-MYERS SQUIBB","2016-01-07","Hospitalité ",536]
["Pr Stéphane OUDARD","Médecin ","JANSSEN-CILAG","2016-01-07","REPAS ",32]
["Pr Stéphane OUDARD","Médecin ","BRISTOL-MYERS SQUIBB","2016-01-08","Repas ",59]
["Pr Stéphane OUDARD","Médecin ","BRISTOL-MYERS SQUIBB","2016-01-08","Transport ",188]
["Pr Stéphane OUDARD","Médecin ","NOVARTIS PHARMA SAS","21/01/2016","AUTRE : [PARTICIPATION EVENEMENT SCIENTIFIQUE] ",20]
["Pr Stéphane OUDARD","Médecin ","JANSSEN-CILAG","2016-02-03","AUTRE : REMBOURSEMENT DE FRAIS ",214]
["Pr Stéphane OUDARD","Médecin ","JANSSEN-CILAG","2016-02-03","TRANSPORT ",526]
["Pr Stéphane OUDARD","Médecin ","JANSSEN-CILAG","2016-02-03","HEBERGEMENT ",180]
["Pr Stéphane OUDARD","Médecin ","NOVARTIS PHARMA SAS","2016-02-04","REPAS ",24]
["Pr Stéphane OUDARD","Médecin ","SANOFI AVENTIS FRANCE","2016-02-08","Repas ",20]
["Pr Stéphane OUDARD","Médecin ","BRISTOL-MYERS SQUIBB","17/02/2016","Autre : [Rémunération] ",480]
["Pr Stéphane OUDARD","Médecin ","NOVARTIS PHARMA SAS","17/02/2016","REPAS ",59]
["Pr Stéphane OUDARD","Médecin ","ROCHE SAS","18/02/2016","Repas ",21]
["Pr Stéphane OUDARD","Médecin ","PFIZER SAS","21/02/2016","Repas ",49]
["Pr Stéphane OUDARD","Médecin ","SANOFI-AVENTIS GROUPE","22/02/2016","Hébergement ",129]
["Pr Stéphane OUDARD","Médecin ","SANOFI-AVENTIS GROUPE","22/02/2016","Hébergement ",129]
["Pr Stéphane OUDARD","Médecin ","SANDOZ","29/02/2016","Repas ",30]
["Pr Stéphane OUDARD","Médecin ","Bayer HealthCare SAS","14/03/2016","REPAS ",60]
["Pr Stéphane OUDARD","Médecin ","BRISTOL-MYERS SQUIBB","17/03/2016","Hospitalité ",25]
["Pr Stéphane OUDARD","Médecin ","SANOFI AVENTIS FRANCE","23/03/2016","Repas ",60]
["Pr Stéphane OUDARD","Médecin ","AMGEN SAS","24/03/2016","REPAS IMPROMPTU ",15]
["Pr Stéphane OUDARD","Médecin ","SANOFI AVENTIS FRANCE","29/03/2016","Repas ",43]
["Pr Stéphane OUDARD","Médecin ","Bayer HealthCare SAS","29/03/2016","Repas ",12]
["Pr Stéphane OUDARD","Médecin ","SANDOZ","30/03/2016","Repas ",19]
["Pr Stéphane OUDARD","Médecin ","SANOFI-AVENTIS GROUPE","30/03/2016","Transport ",856]
["Pr Stéphane OUDARD","Médecin ","SANOFI-AVENTIS GROUPE","30/03/2016","Hébergement ",372]
["Pr Stéphane OUDARD","Médecin ","SANOFI-AVENTIS GROUPE","30/03/2016","Repas ",60]
["Pr Stéphane OUDARD","Médecin ","MERCK SERONO","2016-04-07","REPAS ",25]
["Pr Stéphane OUDARD","Médecin ","SANOFI AVENTIS FRANCE","2016-04-10","Autre : [Restauration] ",235]
["Pr Stéphane OUDARD","Médecin ","SANOFI AVENTIS FRANCE","2016-04-10","Hébergement ",277]
["Pr Stéphane OUDARD","Médecin ","SANOFI AVENTIS FRANCE","2016-05-02","Repas ",60]
["Pr Stéphane OUDARD","Médecin ","NOVARTIS PHARMA SAS","19/05/2016","AUTRE : [PARTICIPATION EVENEMENT SCIENTIFIQUE] ",20]
["Pr Stéphane OUDARD","Médecin ","JANSSEN-CILAG","21/05/2016","AUTRE : REMBOURSEMENT DE FRAIS ",33]
["Pr Stéphane OUDARD","Médecin ","AMGEN SAS","26/05/2016","REPAS IMPROMPTU ",24]
["Pr Stéphane OUDARD","Médecin ","NOVARTIS PHARMA SAS","2016-06-03","TRANSPORT ",7817]
["Pr Stéphane OUDARD","Médecin ","NOVARTIS PHARMA SAS","2016-06-03","HÉBERGEMENT ",1996]
["Pr Stéphane OUDARD","Médecin ","NOVARTIS PHARMA SAS","2016-06-03","AUTRE : [PARTICIPATION EVENEMENT SCIENTIFIQUE] ",176]
["Pr Stéphane OUDARD","Médecin ","NOVARTIS PHARMA SAS","2016-06-03","AUTRE : [INSCRIPTION EVENEMENT SCIENTIFIQUE] ",519]
["Pr Stéphane OUDARD","Médecin ","MSD France","2016-06-03","REPAS ",12]
["Pr Stéphane OUDARD","Médecin ","ROCHE ETATS-UNIS","2016-06-03","Repas ",83]
["Pr Stéphane OUDARD","Médecin ","SANOFI AVENTIS FRANCE","18/06/2016","Hébergement ",108]
["Pr Stéphane OUDARD","Médecin ","SANOFI AVENTIS FRANCE","18/06/2016","Autre : [Restauration] ",121]
["Pr Stéphane OUDARD","Médecin ","Bayer HealthCare SAS","23/06/2016","REPAS ",17]
["Pr Stéphane OUDARD","Médecin ","JANSSEN-CILAG","30/06/2016","REPAS ",25]
["Pr Stéphane OUDARD","Médecin ","ICOMED","25/08/2016","Autre: [Enquête] ",29]
["Pr Stéphane OUDARD","Médecin ","FERRING SAS","29/08/2016","Repas ",60]
["Pr Stéphane OUDARD","Médecin ","SANOFI-AVENTIS GROUPE","31/08/2016","Transport ",462]
["Pr Stéphane OUDARD","Médecin ","SANOFI-AVENTIS GROUPE","31/08/2016","Hébergement ",227]
["Pr Stéphane OUDARD","Médecin ","SANOFI-AVENTIS GROUPE","31/08/2016","Repas ",60]
["Pr Stéphane OUDARD","Médecin ","BRISTOL-MYERS SQUIBB","2016-09-06","Transport ",348]
["Pr Stéphane OUDARD","Médecin ","BRISTOL-MYERS SQUIBB","2016-09-06","Repas ",29]
["Pr Stéphane OUDARD","Médecin ","BRISTOL-MYERS SQUIBB","2016-09-06","Transport ",25]
["Pr Stéphane OUDARD","Médecin ","BRISTOL-MYERS SQUIBB","2016-09-06","Transport ",181]
["Pr Stéphane OUDARD","Médecin ","BRISTOL-MYERS SQUIBB","2016-09-06","Repas ",44]
["Pr Stéphane OUDARD","Médecin ","NOVARTIS PHARMA SAS","2016-09-08","AUTRE : [PARTICIPATION EVENEMENT SCIENTIFIQUE] ",14]
["Pr Stéphane OUDARD","Médecin ","SANOFI-AVENTIS GROUPE","2016-09-12","Hébergement ",939]
["Pr Stéphane OUDARD","Médecin ","SANOFI-AVENTIS GROUPE","2016-09-12","Repas ",175]
["Pr Stéphane OUDARD","Médecin ","SANOFI-AVENTIS GROUPE","2016-09-12","Transport ",5035]
["Pr Stéphane OUDARD","Médecin ","JANSSEN-CILAG","15/09/2016","REPAS ",30]
["Pr Stéphane OUDARD","Médecin ","JANSSEN-CILAG","15/09/2016","REPAS ",20]
["Pr Stéphane OUDARD","Médecin ","JANSSEN-CILAG","15/09/2016","INSCRIPTION ",600]
["Pr Stéphane OUDARD","Médecin ","JANSSEN-CILAG","15/09/2016","TRANSPORT ",480]
["Pr Stéphane OUDARD","Médecin ","JANSSEN-CILAG","15/09/2016","HEBERGEMENT ",380]
["Pr Stéphane OUDARD","Médecin ","JANSSEN-CILAG","15/09/2016","AUTRE : REMBOURSEMENT DE FRAIS ",191]
["Pr Stéphane OUDARD","Médecin ","JANSSEN-CILAG","15/09/2016","REPAS ",120]
["Pr Stéphane OUDARD","Médecin ","JANSSEN-CILAG","15/09/2016","REPAS ",100]
["Pr Stéphane OUDARD","Médecin ","JANSSEN-CILAG","27/09/2016","REPAS ",32]
["Pr Stéphane OUDARD","Médecin ","GUERBET France","28/09/2016","Repas ",28]
["Pr Stéphane OUDARD","Médecin ","GUERBET France","28/09/2016","Repas ",20]
["Pr Stéphane OUDARD","Médecin ","BRISTOL-MYERS SQUIBB","2016-10-05","Autre : [Rémunération] ",1560]
["Pr Stéphane OUDARD","Médecin ","BRISTOL-MYERS SQUIBB","2016-10-07","Repas ",56]
["Pr Stéphane OUDARD","Médecin ","BRISTOL-MYERS SQUIBB","2016-10-07","Hébergement ",191]
["Pr Stéphane OUDARD","Médecin ","BRISTOL-MYERS SQUIBB","2016-10-07","Transport ",1154]
["Pr Stéphane OUDARD","Médecin ","BRISTOL-MYERS SQUIBB","2016-10-07","Hospitalité ",720]
["Pr Stéphane OUDARD","Médecin ","MSD France","2016-10-08","REPAS ",10]
["Pr Stéphane OUDARD","Médecin ","BRISTOL-MYERS SQUIBB","2016-10-08","Hébergement ",191]
["Pr Stéphane OUDARD","Médecin ","BRISTOL-MYERS SQUIBB","2016-10-09","Hébergement ",191]
["Pr Stéphane OUDARD","Médecin ","BRISTOL-MYERS SQUIBB","2016-10-10","Hébergement ",191]
["Pr Stéphane OUDARD","Médecin ","PIERRE FABRE MEDICAMENT","13/10/2016","RESTAURATION ",19]
["Pr Stéphane OUDARD","Médecin ","SANOFI-AVENTIS GROUPE","24/10/2016","Repas ",81]
["Pr Stéphane OUDARD","Médecin ","SANOFI-AVENTIS GROUPE","24/10/2016","Transport ",567]
["Pr Stéphane OUDARD","Médecin ","KYOWA KIRIN","27/10/2016","Repas ",22]
["Pr Stéphane OUDARD","Médecin ","ROCHE SAS","2016-11-03","Repas ",21]
["Pr Stéphane OUDARD","Médecin ","BRISTOL-MYERS SQUIBB","2016-11-04","Autre : [Rémunération] ",720]
["Pr Stéphane OUDARD","Médecin ","ROCHE SAS","16/11/2016","Inscription ",490]
["Pr Stéphane OUDARD","Médecin ","SANOFI-AVENTIS GROUPE","30/11/2016","Transport ",187]
["Pr Stéphane OUDARD","Médecin ","BRISTOL-MYERS SQUIBB","30/11/2016","Repas ",15]
["Pr Stéphane OUDARD","Médecin ","BRISTOL-MYERS SQUIBB","30/11/2016","Transport ",107]
["Pr Stéphane OUDARD","Médecin ","BRISTOL-MYERS SQUIBB","30/11/2016","Repas ",60]
["Pr Stéphane OUDARD","Médecin ","SANOFI AVENTIS FRANCE","2016-12-03","Autre : [Restauration] ",100]
["Pr Stéphane OUDARD","Médecin ","SANOFI AVENTIS FRANCE","2016-12-03","Hébergement ",121]
["Pr Stéphane OUDARD","Médecin ","ASTELLAS PHARMA","2016-12-09","REPAS ",60]
["Pr Stéphane OUDARD","Médecin ","ASTELLAS PHARMA","2016-12-09","HEBERGEMENT ",212]
["Pr Stéphane OUDARD","Médecin ","ASTELLAS PHARMA","2016-12-09","REPAS ",10]
["Pr Stéphane OUDARD","Médecin ","ASTELLAS PHARMA","2016-12-09","TRANSPORT ",27]
["Pr Stéphane OUDARD","Médecin ","ASTELLAS PHARMA","2016-12-09","TRANSPORT ",15]
["Pr Stéphane OUDARD","Médecin ","ASTELLAS PHARMA","2016-12-09","REPAS ",60]
["Pr Stéphane OUDARD","Médecin ","ASTELLAS PHARMA","2016-12-10","REPAS ",60]
["Pr Stéphane OUDARD","Médecin ","ASTELLAS PHARMA","2016-12-10","REPAS ",10]
["Pr Stéphane OUDARD","Médecin ","HOSPIRA FRANCE","21/12/2016","REPAS ",19]
["Pr Stéphane OUDARD","Médecin ","SANOFI AVENTIS FRANCE","2017-01-05","Autre : [Remboursement de frais] ",312]
["Pr Stéphane OUDARD","Médecin ","ASTRAZENECA","2017-01-05","Repas ",16]
["Pr Stéphane OUDARD","Médecin ","ROCHE SAS","14/01/2017","Repas ",23]
["Pr Stéphane OUDARD","Médecin ","Lilly France SAS","26/01/2017","REPAS ",24]
["Pr Stéphane OUDARD","Médecin ","PFIZER SAS","2017-02-07","Transport ",59]
["Pr Stéphane OUDARD","Médecin ","BRISTOL-MYERS SQUIBB","15/02/2017","Hospitalité ",1138]
["Pr Stéphane OUDARD","Médecin ","BRISTOL-MYERS SQUIBB","15/02/2017","Hébergement ",380]
["Pr Stéphane OUDARD","Médecin ","BRISTOL-MYERS SQUIBB","15/02/2017","Transport ",5845]
["Pr Stéphane OUDARD","Médecin ","BRISTOL-MYERS SQUIBB","15/02/2017","Repas ",44]
["Pr Stéphane OUDARD","Médecin ","BRISTOL-MYERS SQUIBB","16/02/2017","Hébergement ",380]
["Pr Stéphane OUDARD","Médecin ","BRISTOL-MYERS SQUIBB","17/02/2017","Autre : [Rémunération] ",450]
["Pr Stéphane OUDARD","Médecin ","BRISTOL-MYERS SQUIBB","17/02/2017","Hébergement ",380]
["Pr Stéphane OUDARD","Médecin ","BRISTOL-MYERS SQUIBB","18/02/2017","Repas ",74]
["Pr Stéphane OUDARD","Médecin ","BRISTOL-MYERS SQUIBB","18/02/2017","Hébergement ",380]
["Pr Stéphane OUDARD","Médecin ","Bayer HealthCare SAS","23/02/2017","Repas ",20]
["Pr Stéphane OUDARD","Médecin ","BRISTOL-MYERS SQUIBB","24/02/2017","Autre : [Rémunération] ",450]
["Pr Stéphane OUDARD","Médecin ","IPSEN PHARMA","2017-03-01","REPAS ",10]
["Pr Stéphane OUDARD","Médecin ","JANSSEN-CILAG","2017-03-02","REPAS ",28]
["Pr Stéphane OUDARD","Médecin ","BRISTOL-MYERS SQUIBB","2017-03-03","Autre : [Rémunération] ",1200]
["Pr Stéphane OUDARD","Médecin ","PFIZER SAS","14/03/2017","Repas ",21]
["Pr Stéphane OUDARD","Médecin ","BRISTOL-MYERS SQUIBB","17/03/2017","Transport ",192]
["Pr Stéphane OUDARD","Médecin ","NOVARTIS PHARMA SAS","23/03/2017","Repas ",84]
["Pr Stéphane OUDARD","Médecin ","SANOFI AVENTIS FRANCE","24/03/2017","Repas ",60]
["Pr Stéphane OUDARD","Médecin ","SANOFI AVENTIS FRANCE","24/03/2017","Hébergement ",368]
["Pr Stéphane OUDARD","Médecin ","SANOFI AVENTIS FRANCE","24/03/2017","Transport ",305]
["Pr Stéphane OUDARD","Médecin ","NOVARTIS PHARMA SAS","30/03/2017","Participation Evenement Scientifique ",20]
["Pr Stéphane OUDARD","Médecin ","ASTRAZENECA","2017-04-06","transport ",20]
["Pr Stéphane OUDARD","Médecin ","SANOFI AVENTIS FRANCE","2017-04-08","Hébergement ",195]
["Pr Stéphane OUDARD","Médecin ","SANOFI AVENTIS FRANCE","2017-04-08","Transport ",551]
["Pr Stéphane OUDARD","Médecin ","SANOFI AVENTIS FRANCE","2017-04-08","Repas ",158]
["Pr Stéphane OUDARD","Médecin ","SANOFI AVENTIS FRANCE","25/04/2017","Autre : [Remboursement de frais] ",53]
["Pr Stéphane OUDARD","Médecin ","IPSEN PHARMA","2017-05-02","TRANSPORT ",60]
["Pr Stéphane OUDARD","Médecin ","IPSEN PHARMA","2017-05-02","REPAS ",10]
["Pr Stéphane OUDARD","Médecin ","SANOFI AVENTIS FRANCE","18/05/2017","Repas ",50]
["Pr Stéphane OUDARD","Médecin ","JANSSEN-CILAG","2017-06-02","TRANSPORT ",75]
["Pr Stéphane OUDARD","Médecin ","JANSSEN-CILAG","2017-06-02","TRANSPORT ",66]
["Pr Stéphane OUDARD","Médecin ","JANSSEN-CILAG","2017-06-02","TRANSPORT ",3334]
["Pr Stéphane OUDARD","Médecin ","JANSSEN-CILAG","2017-06-02","INSCRIPTION ",535]
["Pr Stéphane OUDARD","Médecin ","JANSSEN-CILAG","2017-06-02","REPAS ",120]
["Pr Stéphane OUDARD","Médecin ","JANSSEN-CILAG","2017-06-02","AUTRES : REMBOURSEMENT DE FRAIS ",162]
["Pr Stéphane OUDARD","Médecin ","JANSSEN-CILAG","2017-06-02","TRANSPORT ",3334]
["Pr Stéphane OUDARD","Médecin ","JANSSEN-CILAG","2017-06-02","TRANSPORT ",75]
["Pr Stéphane OUDARD","Médecin ","JANSSEN-CILAG","2017-06-08","REPAS ",22]
["Pr Stéphane OUDARD","Médecin ","BRISTOL-MYERS SQUIBB","15/06/2017","Hébergement ",201]
["Pr Stéphane OUDARD","Médecin ","BRISTOL-MYERS SQUIBB","15/06/2017","Transport ",507]
["Pr Stéphane OUDARD","Médecin ","ROCHE SAS","29/06/2017","Repas ",23]
["Pr Stéphane OUDARD","Médecin ","SANOFI-AVENTIS GROUPE","2017-07-08","Repas ",159]
["Pr Stéphane OUDARD","Médecin ","SANOFI-AVENTIS GROUPE","2017-07-08","Hébergement ",277]
["Pr Stéphane OUDARD","Médecin ","SANOFI-AVENTIS GROUPE","2017-07-08","Transport ",800]
["Pr Stéphane OUDARD","Médecin ","JANSSEN-CILAG","2017-07-12","REPAS ",19]
["Pr Stéphane OUDARD","Médecin ","NOVARTIS PHARMA SAS","18/07/2017","Repas ",20]
["Pr Stéphane OUDARD","Médecin ","SANOFI AVENTIS FRANCE","22/08/2017","Autre : [Remboursement de frais] ",177]
["Pr Stéphane OUDARD","Médecin ","BRISTOL-MYERS SQUIBB","25/08/2017","Transport ",134]
["Pr Stéphane OUDARD","Médecin ","ASTELLAS PHARMA","2017-09-08","INSCRIPTION ",740]
["Pr Stéphane OUDARD","Médecin ","ASTELLAS PHARMA","2017-09-08","TRANSPORT ",345]
["Pr Stéphane OUDARD","Médecin ","ASTELLAS PHARMA","2017-09-08","TRANSPORT ",330]
["Pr Stéphane OUDARD","Médecin ","ASTELLAS PHARMA","2017-09-08","HEBERGEMENT ",253]
["Pr Stéphane OUDARD","Médecin ","ASTELLAS PHARMA","2017-09-08","REPAS ",60]
["Pr Stéphane OUDARD","Médecin ","ASTELLAS PHARMA","2017-09-09","HEBERGEMENT ",253]
["Pr Stéphane OUDARD","Médecin ","ASTELLAS PHARMA","2017-09-10","HEBERGEMENT ",253]
["Pr Stéphane OUDARD","Médecin ","ASTELLAS PHARMA","2017-09-11","HEBERGEMENT ",253]
["Pr Stéphane OUDARD","Médecin ","ASTELLAS PHARMA","2017-09-12","TRANSPORT ",93]
["Pr Stéphane OUDARD","Médecin ","THERADIAL SAS","14/09/2017","REPAS ",35]
["Pr Stéphane OUDARD","Médecin ","KYOWA KIRIN","21/09/2017","Repas ",14]
["Pr Stéphane OUDARD","Médecin ","SANOFI AVENTIS FRANCE","25/09/2017","Repas ",50]
["Pr Stéphane OUDARD","Médecin ","AMGEN SAS","28/09/2017","AUTRE : [PAUSE] ",25]
["Pr Stéphane OUDARD","Médecin ","PFIZER SAS","2017-10-01","Repas ",43]
["Pr Stéphane OUDARD","Médecin ","JANSSEN-CILAG","2017-10-03","REPAS ",29]
["Pr Stéphane OUDARD","Médecin ","ROCHE SAS","2017-10-06","Repas ",23]
["Pr Stéphane OUDARD","Médecin ","SANDOZ","19/10/2017","Repas ",20]
["Pr Stéphane OUDARD","Médecin ","PFIZER PFE FRANCE","2017-11-05","Repas ",21]
["Pr Stéphane OUDARD","Médecin ","Medicys Limited","2017-11-09","Autre : Indemnite ",400]
["Pr Stéphane OUDARD","Médecin ","JANSSEN-CILAG","23/11/2017","[REPAS] ",33]
["Pr Stéphane OUDARD","Médecin ","LEO Pharma","23/11/2017","REPAS ",14]
["Pr Stéphane OUDARD","Médecin ","BRISTOL-MYERS SQUIBB","24/11/2017","Repas ",60]
["Pr Stéphane OUDARD","Médecin ","BRISTOL-MYERS SQUIBB","27/11/2017","Repas ",10]
["Pr Stéphane OUDARD","Médecin ","NOVARTIS PHARMA SAS","30/11/2017","Hospitalité ",60]
["Pr Stéphane OUDARD","Médecin ","SANOFI AVENTIS FRANCE","2017-12-04","Repas ",60]
["Pr Stéphane OUDARD","Médecin ","SANOFI AVENTIS FRANCE","2017-12-05","Autre : [Remboursement de frais] ",142]
["Pr Stéphane OUDARD","Médecin ","SANOFI-AVENTIS GROUPE","2017-12-05","Autre : [Remboursement de frais] ",183]
["Pr Stéphane OUDARD","Médecin ","ASTRAZENECA","2017-12-07","Repas ",24]
["Pr Stéphane OUDARD","Médecin ","JANSSEN-CILAG","2017-12-08","REPAS ",10]
["Pr Stéphane OUDARD","Médecin ","JANSSEN-CILAG","2017-12-08","REPAS ",48]
["Pr Stéphane OUDARD","Médecin ","NOVARTIS PHARMA SAS","13/12/2017","Repas ",64]
["Pr Stéphane OUDARD","Médecin ","NOVARTIS PHARMA SAS","13/12/2017","Repas ",14]
["Pr Stéphane OUDARD","Médecin ","NOVARTIS PHARMA SAS","2018-01-04","Hospitalité ",60]
["Pr Stéphane OUDARD","Médecin ","IPSEN PHARMA","18/01/2018","HÉBERGEMENT ",83]
["Pr Stéphane OUDARD","Médecin ","IPSEN PHARMA","18/01/2018","REPAS ",25]
["Pr Stéphane OUDARD","Médecin ","ASTRAZENECA","25/01/2018","Repas ",25]
["Pr Stéphane OUDARD","Médecin ","JANSSEN-CILAG","31/01/2018","REPAS ",47]
["Pr Stéphane OUDARD","Médecin ","JANSSEN-CILAG","31/01/2018","REPAS ",60]
["Pr Stéphane OUDARD","Médecin ","JANSSEN-CILAG","31/01/2018","INSCRIPTION ",498]
["Pr Stéphane OUDARD","Médecin ","JANSSEN-CILAG","31/01/2018","HEBERGEMENT ",215]
["Pr Stéphane OUDARD","Médecin ","JANSSEN-CILAG","31/01/2018","TRANSPORT ",271]
["Pr Stéphane OUDARD","Médecin ","JANSSEN-CILAG","31/01/2018","TRANSPORT ",72]
["Pr Stéphane OUDARD","Médecin ","BRISTOL-MYERS SQUIBB","2018-02-01","Repas ",24]
["Pr Stéphane OUDARD","Médecin ","ASTRAZENECA","2018-02-02","Repas ",10]
["Pr Stéphane OUDARD","Médecin ","ASTRAZENECA","2018-02-02","Repas ",40]
["Pr Stéphane OUDARD","Médecin ","ASTRAZENECA","2018-02-02","Repas ",10]
["Pr Stéphane OUDARD","Médecin ","ASTELLAS PHARMA","2018-02-07","REPAS ",58]
["Pr Stéphane OUDARD","Médecin ","ASTELLAS PHARMA","2018-02-07","HEBERGEMENT ",235]
["Pr Stéphane OUDARD","Médecin ","ASTELLAS PHARMA","2018-02-08","INSCRIPTION ",895]
["Pr Stéphane OUDARD","Médecin ","ASTELLAS PHARMA","2018-02-08","TRANSPORT ",24]
["Pr Stéphane OUDARD","Médecin ","ASTELLAS PHARMA","2018-02-08","TRANSPORT ",23]
["Pr Stéphane OUDARD","Médecin ","ASTELLAS PHARMA","2018-02-08","REPAS ",33]
["Pr Stéphane OUDARD","Médecin ","ASTELLAS PHARMA","2018-02-08","TRANSPORT ",19]
["Pr Stéphane OUDARD","Médecin ","ASTELLAS PHARMA","2018-02-08","TRANSPORT ",135]
["Pr Stéphane OUDARD","Médecin ","ASTELLAS PHARMA","2018-02-08","REPAS ",58]
["Pr Stéphane OUDARD","Médecin ","ASTELLAS PHARMA","2018-02-08","TRANSPORT ",60]
["Pr Stéphane OUDARD","Médecin ","ASTELLAS PHARMA","2018-02-08","TRANSPORT ",856]
["Pr Stéphane OUDARD","Médecin ","ASTELLAS PHARMA","2018-02-08","HEBERGEMENT ",235]
["Pr Stéphane OUDARD","Médecin ","ASTELLAS PHARMA","2018-02-09","HEBERGEMENT ",235]
["Pr Stéphane OUDARD","Médecin ","ASTELLAS PHARMA","2018-02-09","TRANSPORT ",14]
["Pr Stéphane OUDARD","Médecin ","ASTELLAS PHARMA","2018-02-09","TRANSPORT ",19]
["Pr Stéphane OUDARD","Médecin ","ASTELLAS PHARMA","2018-02-09","REPAS ",58]
["Pr Stéphane OUDARD","Médecin ","ASTELLAS PHARMA","2018-02-10","HEBERGEMENT ",235]
["Pr Stéphane OUDARD","Médecin ","JANSSEN-CILAG","16/02/2018","REPAS ",10]
["Pr Stéphane OUDARD","Médecin ","ASTRAZENECA","2018-03-08","Repas ",20]
["Pr Stéphane OUDARD","Médecin ","JANSSEN-CILAG","2018-03-09","HEBERGEMENT ",131]
["Pr Stéphane OUDARD","Médecin ","JANSSEN-CILAG","2018-03-09","TRANSPORT ",273]
["Pr Stéphane OUDARD","Médecin ","JANSSEN-CILAG","2018-03-09","REPAS ",45]
["Pr Stéphane OUDARD","Médecin ","JANSSEN-CILAG","2018-03-09","REPAS ",60]
["Pr Stéphane OUDARD","Médecin ","JANSSEN-CILAG","20/03/2018","TRANSPORT ",95]
["Pr Stéphane OUDARD","Médecin ","SANOFI AVENTIS FRANCE","21/03/2018","Repas ",34]
["Pr Stéphane OUDARD","Médecin ","SANDOZ","22/03/2018","REPAS ",25]
["Pr Stéphane OUDARD","Médecin ","BRISTOL-MYERS SQUIBB","29/03/2018","Repas ",16]
["Pr Stéphane OUDARD","Médecin ","JANSSEN-CILAG","2018-04-12","REPAS ",22]
["Pr Stéphane OUDARD","Médecin ","JANSSEN-CILAG","13/04/2018","TRANSPORT ",114]
["Pr Stéphane OUDARD","Médecin ","AMGEN SAS","19/04/2018","Autre : [DEJEUNER REUNION] ",25]
["Pr Stéphane OUDARD","Médecin ","JANSSEN-CILAG","2018-05-03","[REPAS] ",23]
["Pr Stéphane OUDARD","Médecin ","SANOFI AVENTIS FRANCE","2018-05-04","Autre : [Remboursement de frais] ",23]
["Pr Stéphane OUDARD","Médecin ","BOEHRINGER INGELHEIM FRANCE","22/05/2018","HOSPITALITE ",24]
["Pr Stéphane OUDARD","Médecin ","SANOFI-AVENTIS GROUPE","28/05/2018","Autre : [Remboursement de frais] ",174]
["Pr Stéphane OUDARD","Médecin ","BRISTOL-MYERS SQUIBB","31/05/2018","Transport ",5039]
["Pr Stéphane OUDARD","Médecin ","BRISTOL-MYERS SQUIBB","31/05/2018","Transport ",174]
["Pr Stéphane OUDARD","Médecin ","BRISTOL-MYERS SQUIBB","2018-06-04","Transport ",5039]
["Pr Stéphane OUDARD","Médecin ","SANOFI AVENTIS FRANCE","2018-06-04","Repas ",38]
["Pr Stéphane OUDARD","Médecin ","MSD France","14/06/2018","REPAS ",25]
["Pr Stéphane OUDARD","Médecin ","NOVARTIS PHARMA SAS","15/06/2018","Repas ",55]
["Pr Stéphane OUDARD","Médecin ","NOVARTIS PHARMA SAS","21/06/2018","Hospitalité ",25]
["Pr Stéphane OUDARD","Médecin ","SANDOZ","28/06/2018","Repas ",25]
[]
[null,null,null,null,"Totaux",{"$f":"SUM(F2:F447)","v":133592}]
[null,null,null,null,2018,{"$f":"SUM(F392:F447)","v":16166}]
[null,null,null,null,2017,{"$f":"SUM(F307:F391)","v":27362}]
[null,null,null,null,2016,{"$f":"SUM(F203:F306)","v":41752}]
[null,null,null,null,2015,{"$f":"SUM(F117:F202)","v":29959}]
[null,null,null,null,2014,{"$f":"SUM(F35:F116)","v":14572}]
[null,null,null,null,2013,{"$f":"SUM(F2:F34)","v":3781}]
[]
[null,null,null,null,null,null,"%","Cumul%"]
[null,null,null,null,"BRISTOL-MYERS SQUIBB",{"$f":"SUMIF(C$2:C$447,\"BRISTOL-MYERS SQUIBB\",F$2:F$447)","v":39557},{"$f":"F458/F$449","v":0.29610306006347686},{"$f":"G458","v":0.29610306006347686}]
[null,null,null,null,"NOVARTIS PHARMA SAS",{"$f":"SUMIF(C$2:C$447,\"NOVARTIS PHARMA SAS\",F$2:F$447)","v":33064},{"$f":"F459/F$449","v":0.24749985029043656},{"$f":"G459+H458","v":0.54360291035391339}]
[null,null,null,null,"SANOFI-AVENTIS",{"$f":"F$494+F$495","v":28698},0.21481825258997544,{"$f":"G460+H459","v":0.75842116294388884}]
[null,null,null,null,"JANSSEN-CILAG",{"$f":"SUMIF(C$2:C$447,\"JANSSEN-CILAG\",F$2:F$447)","v":14493},0.10848703515180549,0.8669081980956943]
[null,null,null,null,"ASTELLAS PHARMA",{"$f":"SUMIF(C$2:C$447,\"ASTELLAS PHARMA\",F$2:F$447)","v":8930},6.6845320079046644E-2,0.93375351817474095]
[null,null,null,null,"Takeda France",{"$f":"SUMIF(C$2:C$447,\"Takeda France\",F$2:F$447)","v":2535},1.8975687166896221E-2,0.95272920534163719]
[null,null,null,null,"PFIZER",{"$f":"SUM(F$496:F$498)","v":1077},8.0618599916162641E-3,0.96079106533325342]
[null,null,null,null,"ROCHE SAS",{"$f":"SUMIF(C$2:C$447,\"ROCHE SAS\",F$2:F$447)","v":875},6.5497934008024433E-3,0.96734085873405584]
[null,null,null,null,"LABORATOIRE GLAXOSMITHKLINE",{"$f":"SUMIF(C$2:C$447,\"LABORATOIRE GLAXOSMITHKLINE\",F$2:F$447)","v":757},5.6665069764656566E-3,0.97300736571052149]
[null,null,null,null,"AMGEN SAS",{"$f":"SUMIF(C$2:C$447,\"AMGEN SAS\",F$2:F$447)","v":309},2.3130127552548059E-3,0.97532037846577624]
[null,null,null,null,"IPSEN PHARMA",{"$f":"SUMIF(C$2:C$447,\"IPSEN PHARMA\",F$2:F$447)","v":188},1.4072698964009821E-3,0.97672764836217718]
[null,null,null,null,"ASTRAZENECA",{"$f":"SUMIF(C$2:C$447,\"ASTRAZENECA\",F$2:F$447)","v":165},1.2351038984370322E-3,0.97796275226061424]
[null,null,null,null,"Bayer HealthCare SAS",{"$f":"SUMIF(C$2:C$447,\"Bayer HealthCare SAS\",F$2:F$447)","v":147},1.1003652913348105E-3,0.97906311755194908]
[null,null,null,null,"SANDOZ",{"$f":"SUMIF(C$2:C$447,\"SANDOZ\",F$2:F$447)","v":139},1.0404814659560452E-3,0.98010359901790511]
[null,null,null,null,"BOEHRINGER INGELHEIM France",{"$f":"SUMIF(C$2:C$447,\"BOEHRINGER INGELHEIM France\",F$2:F$447)","v":116},8.6831546799209531E-4,0.98097191448589716]
[null,null,null,null,"MERCK SERONO",{"$f":"SUMIF(C$2:C$447,\"MERCK SERONO\",F$2:F$447)","v":100},7.4854781723456497E-4,0.9817204623031317]
[null,null,null,null,"PIERRE FABRE MEDICAMENT",{"$f":"SUMIF(C$2:C$447,\"PIERRE FABRE MEDICAMENT\",F$2:F$447)","v":99},7.4106233906221929E-4,0.98246152464219394]
[null,null,null,null,"CHUGAI PHARMA France",{"$f":"SUMIF(C$2:C$447,\"CHUGAI PHARMA France\",F$2:F$447)","v":81},6.0632373195999758E-4,0.98306784837415395]
[null,null,null,null,"Lilly France SAS",{"$f":"SUMIF(C$2:C$447,\"Lilly France SAS\",F$2:F$447)","v":55},4.117012994790107E-4,0.98347954967363294]
[null,null,null,null,"MSD France",{"$f":"SUMIF(C$2:C$447,\"MSD France\",F$2:F$447)","v":47},3.5181747410024554E-4,0.98383136714773323]
[null,null,null,null,"LEO Pharma",{"$f":"SUMIF(C$2:C$447,\"LEO Pharma\",F$2:F$447)","v":44},3.2936103958320858E-4,0.98416072818731648]
[null,null,null,null,"TEVA SANTE SAS",{"$f":"SUMIF(C$2:C$447,\"TEVA SANTE SAS\",F$2:F$447)","v":35},2.6199173603209773E-4,0.98442271992334862]
[null,null,null,null,"EISAI SAS",{"$f":"SUMIF(C$2:C$447,\"EISAI SAS\",F$2:F$447)","v":0},0,0.98442271992334862]
[]
[]
[]
[]
[]
[]
[]
[]
[]
[]
[]
[]
[]
[null,null,null,null,"SANOFI AVENTIS France",{"$f":"SUMIF(C$2:C$447,\"SANOFI AVENTIS France\",F$2:F$447)","v":9971}]
[null,null,null,null,"SANOFI-AVENTIS GROUPE",{"$f":"SUMIF(C$2:C$447,\"SANOFI-AVENTIS GROUPE\",F$2:F$447)","v":18727}]
[null,null,null,null,"PFIZER PFE France",{"$f":"SUMIF(C$2:C$447,\"PFIZER PFE France\",F$2:F$447)","v":21}]
[null,null,null,null,"PFIZER SAS",{"$f":"SUMIF(C$2:C$447,\"PFIZER SAS\",F$2:F$447)","v":562}]
[null,null,null,null,"PFIZER INTERNATIONAL OPERATIONS",{"$f":"SUMIF(C$2:C$447,\"PFIZER INTERNATIONAL OPERATIONS\",F$2:F$447)","v":494}]

{"sheet":"Conventions signées","index":1,"n_rows":303,"n_cols":9,"rows_kept":303,"cut":false,"hidden":false,"merged":[]}
["Bénéficiaire","Type de bénéficiaire","Entreprise","Date","Période","Objet","Montants","Lieux"]
["Pr Stéphane OUDARD","Médecin ","SANOFI AVENTIS FRANCE","12/01/2013","12/01/2013 - 12/01/2013 ","Hospitalité "]
["Pr Stéphane OUDARD","Médecin ","ICON Clinical Research Limited","18/01/2013","18/01/2013 - 18/01/2013 ","Recherche scientifique ",300]
["Pr Stéphane OUDARD","Médecin ","ICON Clinical Research Limited","28/01/2013","28/01/2013 - 28/01/2013 ","Recherche scientifique ",1250]
["Pr Stéphane OUDARD","Médecin ","AMGEN SAS","08/02/2013","08/02/2013 - 09/02/2013 ","Autre : CONGRES/SYMPOSIUM "]
["Pr Stéphane OUDARD","Médecin ","SANOFI AVENTIS FRANCE","22/02/2013","12/04/2013 - 13/04/2013 ","Contrat d'intervenant à une manifestation / orateur "]
["Pr Stéphane OUDARD","Médecin ","PFIZER INTERNATIONAL OPERATIONS","01/03/2013","01/03/2013 - ","Autre : CONSEIL "]
["Pr Stéphane OUDARD","Médecin ","SANOFI-AVENTIS GROUPE","01/03/2013","01/03/2013 - 01/03/2014 ","Contrat d'expert scientifique, contrat dans le cadre d'une recherche, contrat de consultant "]
["Pr Stéphane OUDARD","Médecin ","SANOFI-AVENTIS GROUPE","12/03/2013","12/03/2013 - ","Contrat d'intervenant à une manifestation / orateur "]
["Pr Stéphane OUDARD","Médecin ","PFIZER SAS","21/03/2013","21/03/2013 - ","Autre : ORATEUR RP/CONGRES/SYMPOSIUM "]
["Pr Stéphane OUDARD","Médecin ","SANOFI-AVENTIS GROUPE","02/04/2013","02/04/2013 - ","Contrat d'expert scientifique, contrat dans le cadre d'une recherche, contrat de consultant "]
["Pr Stéphane OUDARD","Médecin ","JANSSEN-CILAG","11/04/2013","11/04/2013 - 11/04/2013 ","Autre : CONGRES / SYMPOSIUM "]
["Pr Stéphane OUDARD","Médecin ","SANOFI AVENTIS FRANCE","19/04/2013","19/04/2013 - 20/04/2013 ","Hospitalité "]
["Pr Stéphane OUDARD","Médecin ","PFIZER SAS","23/04/2013","23/04/2013 - ","Recherche scientifique "]
["Pr Stéphane OUDARD","Médecin ","SANOFI AVENTIS FRANCE","21/05/2013","21/05/2013 - 23/05/2013 ","Formation "]
["Pr Stéphane OUDARD","Médecin ","TBWA\\ADELPHI","16/07/2013","16/07/2013 - ","Autre : Conseil "]
["Pr Stéphane OUDARD","Médecin ","Bayer HealthCare SAS","03/09/2013","03/09/2013 - 06/09/2013 ","Autre : Contrat de conseil scientifique ",null,"CHANTILLY"]
["Pr Stéphane OUDARD","Médecin ","Bayer HealthCare SAS","26/09/2013","26/09/2013 - 26/09/2013 ","Autre : Contrat de conseil scientifique ",null,"Amsterdam"]
["Pr Stéphane OUDARD","Médecin ","ASTELLAS PHARMA","27/09/2013","27/09/2013 - 01/10/2013 ","Autre : CONGRES / SYMPOSIUM ",null,"Amsterdam"]
["Pr Stéphane OUDARD","Médecin ","Bayer HealthCare SAS","27/09/2013","27/09/2013 - 27/09/2013 ","Autre : Contrat de conseil scientifique ",null,"Amsterdam"]
["Pr Stéphane OUDARD","Médecin ","SANOFI AVENTIS FRANCE","10/10/2013","10/10/2013 - 12/10/2013 ","Autre : Convention d'Hospitalité",null,"Nice"]
["Pr Stéphane OUDARD","Médecin ","NOVARTIS PHARMA SAS","11/10/2013","11/10/2013 - 27/11/2013 ","Autre : Autre : [Contrat de conseil & prestation] "]
["Pr Stéphane OUDARD","Médecin ","IPSEN PHARMA","14/10/2013","05/11/2013 - 31/12/2015 ","Autre : CONSEIL "]
["Pr Stéphane OUDARD","Médecin ","SANOFI AVENTIS FRANCE","18/10/2013","18/10/2013 - 18/10/2013 ","Autre : Convention d'Hospitalité "]
["Pr Stéphane OUDARD","Médecin ","PFIZER SAS","25/10/2013","25/10/2013 - ","Autre : ORATEUR RP/CONGRES/SYMPOSIUM "]
["Pr Stéphane OUDARD","Médecin ","Bayer HealthCare SAS","06/11/2013","10/12/2013 - 10/12/2013 ","Autre : Contrat de conseil scientifique ",null,"Loos"]
["Pr Stéphane OUDARD","Médecin ","PFIZER SAS","08/11/2013","08/11/2013 - 08/11/2013 ","Autre : ORATEUR RP/CONGRES/SYMPOSIUM "]
["Pr Stéphane OUDARD","Médecin ","ASTELLAS PHARMA Ltd","29/11/2013","29/11/2013 - 29/11/2013 ","Autre : CONSEIL "]
["Pr Stéphane OUDARD","Médecin ","LABORATOIRE GLAXOSMITHKLINE","12/12/2013","12/12/2013 - ","Autre : AUTRE : [CONVENTION HOSPITALITE] "]
["Pr Stéphane OUDARD","Médecin ","JANSSEN-CILAG","19/12/2013","01/02/2014 - 01/02/2014 ","Autre : CONSEIL "]
["Pr Stéphane OUDARD","Médecin ","NOVARTIS PHARMA SAS","15/01/2014","15/01/2014 - 28/02/2014 ","Autre : Autre : [Contrat de conseil & prestation] "]
["Pr Stéphane OUDARD","Médecin ","ROCHE SAS","16/01/2014","16/01/2014 - 16/01/2014 ","Autre : Autre : [ Reunion professionnelle ] "]
["Pr Stéphane OUDARD","Médecin ","PFIZER SAS","24/01/2014","24/01/2014 - 24/01/2014 ","Autre : ORATEUR RP/CONGRES/SYMPO "]
["Pr Stéphane OUDARD","Médecin ","PFIZER SAS","24/01/2014","24/01/2014 - 24/01/2014 ","Autre : ORATEUR RP/CONGRES/SYMPO "]
["Pr Stéphane OUDARD","Médecin ","LABORATOIRE GLAXOSMITHKLINE","11/02/2014","11/02/2014 - ","Autre : AUTRE : [COLLABORATION SCIENTIFIQUE] "]
["Pr Stéphane OUDARD","Médecin ","Takeda France","21/02/2014","24/03/2014 - 31/12/2014 ","Autre : Autre : [Contrat de consultant] "]
["Pr Stéphane OUDARD","Médecin ","Bayer HealthCare SAS","21/02/2014","21/02/2014 - 04/02/2015 ","Autre : CONSEIL SCIENTIFIQUE - BAYER USA "]
["Pr Stéphane OUDARD","Médecin ","ROCHE SAS","26/02/2014","26/02/2014 - 26/02/2014 ","Autre : Autre : [ Reunion professionnelle ] "]
["Pr Stéphane OUDARD","Médecin ","BRISTOL-MYERS SQUIBB","10/03/2014","14/03/2014 - ","Autre : Autre : [Consultant (HCP)] "]
["Pr Stéphane OUDARD","Médecin ","JANSSEN-CILAG","20/03/2014","20/03/2014 - 20/03/2014 ","Autre : CONGRES / SYMPOSIUM "]
["Pr Stéphane OUDARD","Médecin ","SANOFI AVENTIS FRANCE","20/03/2014","20/03/2014 - 01/06/2015 ","Autre : Autre : [Communication scientifique]"]
["Pr Stéphane OUDARD","Médecin ","SANOFI AVENTIS FRANCE","21/03/2014","21/03/2014 - 17/05/2014 ","Autre : Autre : [Communication scientifique] "]
["Pr Stéphane OUDARD","Médecin ","PFIZER SAS","21/03/2014","21/03/2014 - 21/03/2014 ","Autre : ORATEUR RP/CONGRES/SYMPOSIUM "]
["Pr Stéphane OUDARD","Médecin ","ARIAD Pharmaceuticals (France)","26/03/2014","26/03/2014 - 26/03/2014 ","Autre : ORATEUR SYMPOSIUM ARIAD SFH "]
["Pr Stéphane OUDARD","Médecin ","SANOFI AVENTIS FRANCE","28/03/2014","28/03/2014 - 30/03/2014 ","Autre : Autre : [Opération SA/Journée-Soirée] "]
["Pr Stéphane OUDARD","Médecin ","SANOFI AVENTIS FRANCE","28/03/2014","28/03/2014 - 30/03/2014 ","Hospitalité "]
["Pr Stéphane OUDARD","Médecin ","SANOFI AVENTIS FRANCE","01/04/2014","01/04/2014 - 30/06/2015 ","Autre : Autre : [Communication scientifique] "]
["Pr Stéphane OUDARD","Médecin ","PFIZER SAS","17/04/2014","21/03/2014 - 22/03/2014 ","Autre : Conseil ",null,"REIMS"]
["Pr Stéphane OUDARD","Médecin ","LABORATOIRE GLAXOSMITHKLINE","14/05/2014","14/05/2014 - ","Autre : AUTRE : [CONVENTION HOSPITALITE] "]
["Pr Stéphane OUDARD","Médecin ","SANOFI AVENTIS FRANCE","16/05/2014","16/05/2014 - 17/05/2014 ","Autre : Autre : [Opération SA/Journée-Soirée] ",null,"LE TOUQUET"]
["Pr Stéphane OUDARD","Médecin ","SANOFI AVENTIS FRANCE","16/05/2014","16/05/2014 - 17/05/2014 ","Hospitalité ",null,"LE TOUQUET"]
["Pr Stéphane OUDARD","Médecin ","LABORATOIRE GLAXOSMITHKLINE","22/05/2014","22/05/2014 - 22/05/2014 ","Autre : Autre : [Convention d'Hospitalité] "]
["Pr Stéphane OUDARD","Médecin ","NOVARTIS PHARMA SAS","29/05/2014","29/05/2014 - 03/06/2014 ","Autre : Autre : [Hospitalité Evenement] ",null,"CHICAGO"]
["Pr Stéphane OUDARD","Médecin ","SANOFI AVENTIS FRANCE","30/05/2014","30/05/2014 - 03/06/2014 ","Autre : Congrès / Symposium ",null,"CHICAGO"]
["Pr Stéphane OUDARD","Médecin ","SANOFI AVENTIS FRANCE","20/06/2014","20/06/2014 - 21/06/2014 ","Autre : Autre : [Opération SA/Journée-Soirée] "]
["Pr Stéphane OUDARD","Médecin ","SANOFI AVENTIS FRANCE","20/06/2014","20/06/2014 - 21/06/2014 ","Hospitalité "]
["Pr Stéphane OUDARD","Médecin ","Covance Clinical And Periapproval Services SARL","27/06/2014","01/02/2014 - 17/11/2017 ","Recherche scientifique "]
["Pr Stéphane OUDARD","Médecin ","PFIZER SAS","01/07/2014","01/07/2014 - ","Autre : ORATEUR RP/CONGRES/SYMPOSIUM "]
["Pr Stéphane OUDARD","Médecin ","M3 Global Research Ltd","23/07/2014","23/07/2014 - ","Autre : Marketing "]
["Pr Stéphane OUDARD","Médecin ","SANOFI-AVENTIS GROUPE","25/07/2014","31/05/2014 - ","Autre : Autre : [Communication scientifique] "]
["Pr Stéphane OUDARD","Médecin ","BRISTOL-MYERS SQUIBB","08/09/2014","30/09/2014 - ","Autre : Autre : [Consultant (HCP)]"]
["Pr Stéphane OUDARD","Médecin ","SANOFI AVENTIS FRANCE","18/09/2014","18/09/2014 - 20/09/2014 ","Inscription congrès ",null,"NICE"]
["Pr Stéphane OUDARD","Médecin ","JANSSEN-CILAG","22/09/2014","03/10/2014 - 03/10/2014 ","Autre : CONSEIL "]
["Pr Stéphane OUDARD","Médecin ","Bayer HealthCare SAS","22/09/2014","22/09/2014 - 31/12/2016 ","Autre : Contrat de recherche interventionnelle et non-interventionnelle "]
["Pr Stéphane OUDARD","Médecin ","KEPHREN","23/09/2014","19/01/2014 - 19/01/2014 ","Inscription congrès ",null,"NICE"]
["Pr Stéphane OUDARD","Médecin ","PFIZER SAS","26/09/2014","26/09/2014 - 30/09/2014 ","Inscription congrès ",null,"MADRID"]
["Pr Stéphane OUDARD","Médecin ","PRA","28/10/2014","28/10/2014 - ","Recherche scientifique "]
["Pr Stéphane OUDARD","Médecin ","ROCHE SAS","30/10/2014","30/10/2014 - 30/10/2014 ","Autre : Autre : [ Réunion professionnelle ] "]
["Pr Stéphane OUDARD","Médecin ","Takeda France","19/11/2014","19/11/2014 - 19/11/2014 ","Autre : Autre : [CONVENTION D'HOSPITALITE] "]
["Pr Stéphane OUDARD","Médecin ","SANOFI-AVENTIS GROUPE","20/11/2014","20/11/2014 - ","Contrat d'intervenant à une manifestation / orateur "]
["Pr Stéphane OUDARD","Médecin ","JANSSEN-CILAG","09/12/2014","09/12/2014 - 09/12/2014 ","Autre : CONSEIL "]
["Pr Stéphane OUDARD","Médecin ","NOVARTIS PHARMA SAS","11/12/2014","11/12/2014 - 12/12/2014 ","Autre : Autre : [Orateur] "]
["Pr Stéphane OUDARD","Médecin ","INC RESEARCH, LLC","22/12/2014","22/12/2014 - ","Recherche scientifique "]
["Pr Stéphane OUDARD","Médecin ","B3TSI","07/01/2015","07/01/2015 - ","Autre : autre : enquête téléphonique "]
["Pr Stéphane OUDARD","Médecin ","SANOFI-AVENTIS GROUPE","23/01/2015","12/02/2015 - 27/02/2015 ","Autre : Autre : [Communication scientifique] "]
["Pr Stéphane OUDARD","Médecin ","SANOFI-AVENTIS GROUPE","23/01/2015","10/02/2015 - 27/02/2015 ","Autre : Autre : [Communication scientifique] "]
["Pr Stéphane OUDARD","Médecin ","JANSSEN-CILAG","05/02/2015","05/02/2015 - 06/02/2015 ","Autre : CONGRES / SYMPOSIUM "]
["Pr Stéphane OUDARD","Médecin ","NOVARTIS PHARMA SAS","09/02/2015","09/02/2015 - 20/03/2015 ","Autre : Autre : [Contrat de conseil & prestation] "]
["Pr Stéphane OUDARD","Médecin ","SANOFI AVENTIS FRANCE","11/02/2015","27/03/2015 - 31/12/2015 ","Autre : Autre : [Communication scientifique] "]
["Pr Stéphane OUDARD","Médecin ","PIERRE FABRE MEDICAMENT","17/02/2015","01/04/2015 - 31/03/2016 ","Autre : CONTRAT DE CONSULTANT "]
["Pr Stéphane OUDARD","Médecin ","SANOFI-AVENTIS GROUPE","24/02/2015","08/03/2015 - 31/03/2015 ","Autre : Autre : [Communication scientifique] "]
["Pr Stéphane OUDARD","Médecin ","NOVARTIS PHARMA SAS","26/02/2015","26/02/2015 - 01/03/2015 ","Autre : Autre : [Hospitalité Evenement] ",null,"ORLANDO"]
["Pr Stéphane OUDARD","Médecin ","JANSSEN-CILAG","28/02/2015","28/02/2015 - 28/02/2015 ","Autre : CONSEIL ",null,"ORLANDO"]
["Pr Stéphane OUDARD","Médecin ","PIERRE FABRE MEDICAMENT","05/03/2015","05/03/2015 - ","Autre : CONVENTION D'HOSPITALITE "]
["Pr Stéphane OUDARD","Médecin ","SANOFI-AVENTIS GROUPE","05/03/2015","19/03/2015 - 20/03/2015 ","Autre : Autre : [Communication scientifique] "]
["Pr Stéphane OUDARD","Médecin ","SANOFI AVENTIS FRANCE","12/03/2015","12/03/2015 - 12/03/2015 ","Hospitalité "]
["Pr Stéphane OUDARD","Médecin ","PFIZER SAS","18/03/2015","18/03/2015 - 18/03/2015 ","Autre : Conseil "]
["Pr Stéphane OUDARD","Médecin ","TEVA SANTE SAS","26/03/2015","26/03/2015 - 26/03/2015 ","Autre : Autre : Réunion scientifique "]
["Pr Stéphane OUDARD","Médecin ","SANOFI AVENTIS FRANCE","27/03/2015","27/03/2015 - 31/12/2015 ","Autre : Autre : [Communication scientifique] "]
["Pr Stéphane OUDARD","Médecin ","Ipsos Mori UK Limited","02/04/2015","02/04/2015 - ","Autre : [Marketing] "]
["Pr Stéphane OUDARD","Médecin ","PFIZER SAS","09/04/2015","18/05/2015 - 18/05/2015 ","Autre : Conseil "]
["Pr Stéphane OUDARD","Médecin ","SANOFI AVENTIS FRANCE","10/04/2015","10/04/2015 - 12/04/2015 ","Hospitalité "]
["Pr Stéphane OUDARD","Médecin ","NOVARTIS PHARMA SAS","15/04/2015","15/04/2015 - 28/05/2015 ","Autre : Autre : [Contrat de conseil & prestation] "]
["Pr Stéphane OUDARD","Médecin ","SANOFI-AVENTIS GROUPE","23/04/2015","30/04/2015 - 31/05/2015 ","Autre : Autre : [Communication scientifique] "]
["Pr Stéphane OUDARD","Médecin ","PFIZER SAS","18/05/2015","18/05/2015 - 18/05/2015 ","Autre : Autre : Reunion professionnelle ou scientifique "]
["Pr Stéphane OUDARD","Médecin ","Bayer HealthCare SAS","19/05/2015","24/06/2015 - 24/06/2015 ","Autre : Contrat de conseil scientifique ",null,"LYON"]
["Pr Stéphane OUDARD","Médecin ","SANOFI AVENTIS FRANCE","22/05/2015","19/06/2015 - 20/06/2015 ","Autre : Autre : [Communication scientifique] "]
["Pr Stéphane OUDARD","Médecin ","NOVARTIS PHARMA SAS","29/05/2015","29/05/2015 - 02/06/2015 ","Autre : AUTRE : [HOSPITALITÉ EVENEMENT] ",null,"CHICAGO"]
["Pr Stéphane OUDARD","Médecin ","NOVARTIS PHARMA SAS","01/06/2015","01/06/2015 - 31/12/2015 ","Autre : AUTRE : [CONTRAT DE CONSEIL & PRESTATION] "]
["Pr Stéphane OUDARD","Médecin ","Elixo SAS","08/06/2015","08/06/2015 - 08/06/2015 ","Autre : Autre : [entretien] "]
["Pr Stéphane OUDARD","Médecin ","SANOFI AVENTIS FRANCE","19/06/2015","19/06/2015 - 20/06/2015 ","Hospitalité"]
["Pr Stéphane OUDARD","Médecin ","SANOFI-AVENTIS GROUPE","04/07/2015","04/07/2015 - 04/07/2015 ","Autre : Autre : [Expertise] "]
["Pr Stéphane OUDARD","Médecin ","WorldOne Group B.V.","14/07/2015","14/07/2015 - ","Autre : AUTRE: [ETUDE DE MARCHE] "]
["Pr Stéphane OUDARD","Médecin ","Health Advances","13/08/2015","13/08/2015 - ","Autre : Autre: Phone consult "]
["Pr Stéphane OUDARD","Médecin ","B3TSI","28/08/2015","28/08/2015 - ","Autre : autre : enquête web "]
["Pr Stéphane OUDARD","Médecin ","ROCHE SAS","31/08/2015","30/10/2015 - ","Recherche scientifique "]
["Pr Stéphane OUDARD","Médecin ","PFIZER SAS","31/08/2015","05/10/2015 - 08/10/2015 ","Autre : Congrès / Symposium "]
["Pr Stéphane OUDARD","Médecin ","NOVARTIS PHARMA SAS","31/08/2015","31/08/2015 - 31/10/2015 ","Autre : AUTRE : [CONTRAT DE CONSEIL & PRESTATION] "]
["Pr Stéphane OUDARD","Médecin ","JANSSEN-CILAG","03/09/2015","03/09/2015 - 05/09/2015 ","Autre : CONGRES / SYMPOSIUM ",null,"NICE"]
["Pr Stéphane OUDARD","Médecin ","PIERRE FABRE MEDICAMENT","03/09/2015","03/09/2015 - ","Autre : CONVENTION D'HOSPITALITE "]
["Pr Stéphane OUDARD","Médecin ","QUINTILES BENEFIT FRANCE SNC","10/09/2015","10/09/2015 - 10/09/2015 ","Autre : Recherche Clinique "]
["Pr Stéphane OUDARD","Médecin ","PFIZER SAS","15/09/2015","24/11/2015 - 24/11/2015 ","Autre : Congrès/Symposium ",null,"SENS"]
["Pr Stéphane OUDARD","Médecin ","FERRING SAS","19/09/2015","19/09/2015 - 19/09/2015 ","Autre : Congrès / symposium ",null,"ST-CYR-SUR-MER"]
["Pr Stéphane OUDARD","Médecin ","Bayer HealthCare SAS","21/09/2015","22/10/2015 - 22/10/2015 ","Autre : Contrat de conseil scientifique "]
["Pr Stéphane OUDARD","Médecin ","BRISTOL-MYERS SQUIBB","22/09/2015","22/10/2015 - ","Autre : Autre : [Consultant (HCP)] "]
["Pr Stéphane OUDARD","Médecin ","BRISTOL-MYERS SQUIBB","22/09/2015","22/10/2015 - ","Autre : Autre : [Consultant (HCP)] "]
["Pr Stéphane OUDARD","Médecin ","PIERRE FABRE MEDICAMENT","13/10/2015","13/10/2015 - ","Autre : CONVENTION D'HOSPITALITE "]
["Pr Stéphane OUDARD","Médecin ","SANOFI AVENTIS FRANCE","23/10/2015","23/10/2015 - 24/10/2015 ","Inscription congrès "]
["Pr Stéphane OUDARD","Médecin ","B3TSI","27/10/2015","27/10/2015 - ","Autre : autre : enquête web "]
["Pr Stéphane OUDARD","Médecin ","SANOFI AVENTIS FRANCE","03/11/2015","01/01/2016 - 30/06/2016 ","Contrat d'intervenant à une manifestation / orateur "]
["Pr Stéphane OUDARD","Médecin ","SANOFI-AVENTIS GROUPE","04/11/2015","26/11/2015 - 27/11/2015 ","Contrat d'expert scientifique, contrat dans le cadre d'une recherche, contrat de consultant"]
["Pr Stéphane OUDARD","Médecin ","SANOFI-AVENTIS GROUPE","12/11/2015","12/11/2015 - 30/11/2015 ","Autre : Autre : [Expertise] "]
["Pr Stéphane OUDARD","Médecin ","KEPHREN","17/11/2015","17/11/2015 - 16/03/2016 ","Autre : CONSEIL "]
["Pr Stéphane OUDARD","Médecin ","PFIZER SAS","24/11/2015","24/11/2015 - 24/11/2015 ","Autre : Autre : Réunion professionnelle ou scientifique ",null,"SENS"]
["Pr Stéphane OUDARD","Médecin ","SANOFI AVENTIS FRANCE","04/12/2015","04/12/2015 - 31/12/2015 ","Autre : Autre : [Communication scientifique] "]
["Pr Stéphane OUDARD","Médecin ","NOVARTIS PHARMA SAS","10/12/2015","10/12/2015 - 10/12/2015 ","Autre : AUTRE : [CONTRAT DE CONSEIL & PRESTATION] "]
["Pr Stéphane OUDARD","Médecin ","SANOFI-AVENTIS GROUPE","15/12/2015","15/12/2015 - 15/12/2015 ","Autre : Autre : [Expertise] "]
["Pr Stéphane OUDARD","Médecin ","JANSSEN-CILAG","22/12/2015","03/02/2016 - 03/02/2016 ","Autre : CONGRES / SYMPOSIUM ",null,"MONACO"]
["Pr Stéphane OUDARD","Médecin ","JANSSEN-CILAG","22/12/2015","03/02/2016 - 03/02/2016 ","Autre : CONGRES / SYMPOSIUM ",null,"MONACO"]
["Pr Stéphane OUDARD","Médecin ","BRISTOL-MYERS SQUIBB","28/12/2015","08/01/2016 - ","Autre : Autre : [Consultant (HCP)] "]
["Pr Stéphane OUDARD","Médecin ","BRISTOL-MYERS SQUIBB","28/12/2015","08/01/2016 - ","Autre : Autre : [Consultant (HCP)] "]
["Pr Stéphane OUDARD","Médecin ","SANOFI AVENTIS FRANCE","29/12/2015","19/02/2016 - 31/12/2016 ","Contrat d'expert scientifique, contrat dans le cadre d'une recherche, contrat de consultant "]
["Pr Stéphane OUDARD","Médecin ","NOVARTIS PHARMA SAS","07/01/2016","07/01/2016 - 09/01/2016 ","Autre : AUTRE : [CONTRAT DE CONSEIL & PRESTATION] "]
["Pr Stéphane OUDARD","Médecin ","SANOFI-AVENTIS GROUPE","12/01/2016","04/03/2016 - 05/03/2016 ","Autre : Autre : [Communication scientifique] "]
["Pr Stéphane OUDARD","Médecin ","KeyQuest Health Ltd.","18/01/2016","14/01/2016 - ","Autre : [MARKETING] "]
["Pr Stéphane OUDARD","Médecin ","NOVARTIS PHARMA SAS","21/01/2016","21/01/2016 - 22/01/2016 ","Autre : AUTRE : [ORATEUR] "]
["Pr Stéphane OUDARD","Médecin ","Serial Creative","25/01/2016","25/01/2016 - 25/06/2016 ","Autre : conseil et interview "]
["Pr Stéphane OUDARD","Médecin ","JANSSEN-CILAG","03/02/2016","03/02/2016 - 03/02/2016 ","Autre : CONGRES / SYMPOSIUM "]
["Pr Stéphane OUDARD","Médecin ","JANSSEN-CILAG","03/02/2016","03/02/2016 - 03/02/2016 ","Autre : CONGRES/SYMPOSIUM ",null,"MONACO"]
["Pr Stéphane OUDARD","Médecin ","PFIZER SAS","05/02/2016","16/02/2016 - 16/02/2016 ","Autre : Congrès / Symposium "]
["Pr Stéphane OUDARD","Médecin ","PFIZER SAS","16/02/2016","16/02/2016 - 16/02/2016 ","Autre : Autre : Réunion professionnelle ou scientifique"]
["Pr Stéphane OUDARD","Médecin ","SANOFI AVENTIS FRANCE","18/02/2016","08/04/2016 - 10/04/2016 ","Autre : Autre : [Communication scientifique] "]
["Pr Stéphane OUDARD","Médecin ","Kantar Health","19/02/2016","15/02/2016 - 15/02/2016 ","Autre : [MARKETING] "]
["Pr Stéphane OUDARD","Médecin ","Simon-Kucher & Partners","24/02/2016","24/02/2016 - ","Autre : AUTRE: COLLABORATION POUR UNE ETUDE DE MARCHÉ "]
["Pr Stéphane OUDARD","Médecin ","Bayer HealthCare SAS","27/02/2016","14/03/2016 - ","Contrat d'expert scientifique, contrat dans le cadre d'une recherche, contrat de consultant "]
["Pr Stéphane OUDARD","Médecin ","SANDOZ","29/02/2016","29/02/2016 - 29/02/2016 ","Hospitalité "]
["Pr Stéphane OUDARD","Médecin ","SANOFI AVENTIS FRANCE","21/03/2016","01/04/2016 - 30/12/2017 ","Autre : Autre : [Communication scientifique] "]
["Pr Stéphane OUDARD","Médecin ","SANOFI-AVENTIS GROUPE","23/03/2016","01/04/2016 - 30/04/2016 ","Autre : Autre : [Communication scientifique] "]
["Pr Stéphane OUDARD","Médecin ","NOVARTIS PHARMA SAS","29/03/2016","29/03/2016 - 28/03/2017 ","Autre : AUTRE : [CONTRAT DE CONSEIL & PRESTATION] "]
["Pr Stéphane OUDARD","Médecin ","SANOFI AVENTIS FRANCE","29/03/2016","29/03/2016 - 29/03/2016 ","Autre : Autre : [Réunion] "]
["Pr Stéphane OUDARD","Médecin ","SANOFI-AVENTIS GROUPE","04/04/2016","14/04/2016 - 15/04/2016 ","Autre : Autre : [Communication scientifique] "]
["Pr Stéphane OUDARD","Médecin ","SANOFI AVENTIS FRANCE","08/04/2016","08/04/2016 - 10/04/2016 ","Autre : Autre : [Opération SA/Journée-Soirée] "]
["Pr Stéphane OUDARD","Médecin ","JANSSEN-CILAG","20/04/2016","21/05/2016 - 22/05/2016 ","Contrat d'intervenant à une manifestation / orateur ",850]
["Pr Stéphane OUDARD","Médecin ","Takeda France","28/04/2016","01/06/2016 - 31/03/2018 ","Autre : Autre : [Convention de consultant] "]
["Pr Stéphane OUDARD","Médecin ","SANOFI AVENTIS FRANCE","09/05/2016","15/06/2016 - 30/06/2016 ","Autre : Autre : [Communication scientifique] "]
["Pr Stéphane OUDARD","Médecin ","SANOFI AVENTIS FRANCE","09/05/2016","17/06/2016 - 18/06/2016 ","Autre : Autre : [Communication scientifique] "]
["Pr Stéphane OUDARD","Médecin ","SANOFI-AVENTIS GROUPE","13/05/2016","22/06/2016 - 23/06/2016 ","Autre : Autre : [Communication scientifique] "]
["Pr Stéphane OUDARD","Médecin ","SANOFI AVENTIS FRANCE","19/05/2016","19/05/2016 - 31/12/2016 ","Autre : Autre : [Communication scientifique] "]
["Pr Stéphane OUDARD","Médecin ","JANSSEN-CILAG","21/05/2016","21/05/2016 - 21/05/2016 ","Autre : CONGRES / SYMPOSIUM "]
["Pr Stéphane OUDARD","Médecin ","JANSSEN-CILAG","21/05/2016","21/05/2016 - 21/05/2016 ","Autre : CONGRES/SYMPOSIUM "]
["Pr Stéphane OUDARD","Médecin ","NOVARTIS PHARMA SAS","02/06/2016","02/06/2016 - 02/06/2016 ","Autre : AUTRE : [CONTRAT DE CONSEIL & PRESTATION]"]
["Pr Stéphane OUDARD","Médecin ","NOVARTIS PHARMA SAS","03/06/2016","03/06/2016 - 07/06/2016 ","Autre : AUTRE : [HOSPITALITÉ EVENEMENT] ",null,"CHICAGO"]
["Pr Stéphane OUDARD","Médecin ","PFIZER SAS","15/06/2016","28/06/2016 - 29/06/2016 ","Autre : Conseil "]
["Pr Stéphane OUDARD","Médecin ","SANOFI AVENTIS FRANCE","17/06/2016","17/06/2016 - 18/06/2016 ","Hospitalité "]
["Pr Stéphane OUDARD","Médecin ","SANOFI-AVENTIS GROUPE","16/07/2016","22/09/2016 - 22/09/2016 ","Autre : Autre : [Communication scientifique] "]
["Pr Stéphane OUDARD","Médecin ","PFIZER SAS","17/07/2016","29/08/2016 - 28/08/2017 ","Autre : Conseil "]
["Pr Stéphane OUDARD","Médecin ","WorldOne Group B.V.","20/07/2016","20/07/2016 - ","Autre : [ETUDE DE MARCHE] "]
["Pr Stéphane OUDARD","Médecin ","WorldOne Group B.V.","20/07/2016","20/07/2016 - ","Autre : AUTRE: [ETUDE DE MARCHE] "]
["Pr Stéphane OUDARD","Médecin ","BRISTOL-MYERS SQUIBB","22/07/2016","06/09/2016 - ","Autre : Autre : [Orateur] "]
["Pr Stéphane OUDARD","Médecin ","BRISTOL-MYERS SQUIBB","22/07/2016","06/09/2016 - ","Autre : Autre : [Orateur] "]
["Pr Stéphane OUDARD","Médecin ","BRISTOL-MYERS SQUIBB","22/07/2016","06/09/2016 - ","Autre : Autre : [Orateur] "]
["Pr Stéphane OUDARD","Médecin ","SANOFI-AVENTIS GROUPE","26/07/2016","07/07/2016 - 09/07/2016 ","Autre : Autre : [Communication scientifique] "]
["Pr Stéphane OUDARD","Médecin ","WorldOne Group B.V.","30/07/2016","30/07/2016 - ","Autre : AUTRE: [ETUDE DE MARCHE] "]
["Pr Stéphane OUDARD","Médecin ","WorldOne Group B.V.","30/07/2016","30/07/2016 - ","Autre : [ETUDE DE MARCHE] "]
["Pr Stéphane OUDARD","Médecin ","EISAI SAS","16/08/2016","01/09/2016 - 31/12/2016 ","Autre : CONSEIL / PRESTATION "]
["Pr Stéphane OUDARD","Médecin ","SANOFI-AVENTIS GROUPE","30/08/2016","01/09/2016 - 02/09/2016 ","Autre : Autre : [Communication scientifique] "]
["Pr Stéphane OUDARD","Médecin ","PRA","01/09/2016","01/09/2016 - ","Recherche scientifique "]
["Pr Stéphane OUDARD","Médecin ","SANOFI-AVENTIS GROUPE","08/09/2016","08/10/2016 - 30/10/2016 ","Autre : Autre : [Communication scientifique] "]
["Pr Stéphane OUDARD","Médecin ","JANSSEN-CILAG","15/09/2016","15/09/2016 - 15/09/2016 ","Autre : CONGRES/SYMPOSIUM ",null,"NICE"]
["Pr Stéphane OUDARD","Médecin ","FERRING SAS","15/09/2016","15/09/2016 - 17/09/2016 ","Autre : Congrès / symposium ",null,"NICE"]
["Pr Stéphane OUDARD","Médecin ","Association pour le Développement de l’Enseignement et des Recherches auprès des universités des centres de recherches et des entreprises d’Aquitaine (ADERA)","22/09/2016","22/09/2016 - ","Autre : RECHERCHE-ETUDE FUJI"]
["Pr Stéphane OUDARD","Médecin ","SANOFI-AVENTIS GROUPE","05/10/2016","14/10/2016 - 30/10/2016 ","Autre : Autre : [Communication scientifique] "]
["Pr Stéphane OUDARD","Médecin ","PIERRE FABRE MEDICAMENT","13/10/2016","13/10/2016 - ","Autre : CONVENTION D'HOSPITALITE "]
["Pr Stéphane OUDARD","Médecin ","PPD FRANCE SAS","14/10/2016","16/05/2014 - 31/12/2019 ","Recherche scientifique "]
["Pr Stéphane OUDARD","Médecin ","SANOFI AVENTIS FRANCE","19/10/2016","02/12/2016 - 03/12/2016 ","Autre : Autre : [Communication scientifique] "]
["Pr Stéphane OUDARD","Médecin ","AMGEN SAS","20/10/2016","17/11/2016 - 18/11/2016 ","Autre : AUTRE [CONTRAT D ORATEUR] "]
["Pr Stéphane OUDARD","Médecin ","NOVARTIS PHARMA SAS","27/10/2016","27/10/2016 - 26/10/2017 ","Autre : AUTRE : [CONTRAT DE CONSEIL & PRESTATION] "]
["Pr Stéphane OUDARD","Médecin ","EUSA Pharma (France) SAS","29/10/2016","29/10/2016 - 29/10/2016 ","Autre : HONORAIRES "]
["Pr Stéphane OUDARD","Médecin ","NOVARTIS PHARMA SAS","02/11/2016","02/11/2016 - 23/03/2017 ","Contrat d'expert scientifique, contrat dans le cadre d'une recherche, contrat de consultant ",1000]
["Pr Stéphane OUDARD","Médecin ","Simon-Kucher & Partners","17/11/2016","18/11/2016 - ","Contrat d'interview "]
["Pr Stéphane OUDARD","Médecin ","ASTELLAS PHARMA","18/11/2016","09/12/2016 - 10/12/2016 ","Hospitalité "]
["Pr Stéphane OUDARD","Médecin ","BRISTOL-MYERS SQUIBB","30/11/2016","30/11/2016 - ","Autre : Consultant (HCP) "]
["Pr Stéphane OUDARD","Médecin ","PFIZER SAS","01/12/2016","04/12/2016 - 15/12/2016 ","Formation "]
["Pr Stéphane OUDARD","Médecin ","SANOFI AVENTIS FRANCE","02/12/2016","02/12/2016 - 03/12/2016 ","Hospitalité ",null,"MONTPELLIER"]
["Pr Stéphane OUDARD","Médecin ","BRISTOL-MYERS SQUIBB","02/12/2016","15/11/2016 - ","Autre : Consultant (HCP) "]
["Pr Stéphane OUDARD","Médecin ","Simon-Kucher & Partners","06/12/2016","12/12/2016 - ","Contrat d'interview "]
["Pr Stéphane OUDARD","Médecin ","NOVARTIS PHARMA SAS","07/12/2016","07/12/2016 - 07/12/2016 ","Autre : AUTRE : [CONTRAT DE CONSEIL & PRESTATION] "]
["Pr Stéphane OUDARD","Médecin ","JANSSEN-CILAG","23/12/2016","23/12/2016 - 31/05/2020 ","Recherche scientifique "]
["Pr Stéphane OUDARD","Médecin ","STETHOS","01/01/2017","01/01/2017 - 31/01/2017 ","Autre : MARKETING "]
["Pr Stéphane OUDARD","Médecin ","ASTRAZENECA","05/01/2017","05/01/2017 - ","Hospitalité ",16]
["Pr Stéphane OUDARD","Médecin ","ASTRAZENECA","13/01/2017","17/02/2017 - ","Contrat d'expert scientifique, contrat dans le cadre d'une recherche, contrat de consultant ",1250]
["Pr Stéphane OUDARD","Médecin ","BRISTOL-MYERS SQUIBB","17/01/2017","02/02/2017 - ","Autre : Autre : [Consultant (HCP)] "]
["Pr Stéphane OUDARD","Médecin ","RE-IMAGINE Health Agency","08/02/2017","08/02/2017 - 17/02/2017 ","Autre : REFLEXION SCIENTIFIQUE AUTOUR DE LA PRISE EN CHARGE DU CANCER DU REIN "]
["Pr Stéphane OUDARD","Médecin ","Bayer HealthCare SAS","23/02/2017","23/02/2017 - 23/02/2017 ","Hospitalité ",20]
["Pr Stéphane OUDARD","Médecin ","IPSEN PHARMA","01/03/2017","01/03/2017 - 28/02/2018 ","Contrat d'expert scientifique, contrat dans le cadre d'une recherche, contrat de consultant ",920]
["Pr Stéphane OUDARD","Médecin ","SANOFI AVENTIS FRANCE","09/03/2017","24/03/2017 - 24/03/2017 ","Contrat d'intervenant à une manifestation / orateur "]
["Pr Stéphane OUDARD","Médecin ","SANOFI AVENTIS FRANCE","09/03/2017","08/04/2017 - 08/04/2017 ","Contrat d'intervenant à une manifestation / orateur "]
["Pr Stéphane OUDARD","Médecin ","NOVARTIS PHARMA SAS","23/03/2017","23/03/2017 - 31/03/2017 ","Contrat d'intervenant à une manifestation / orateur ",800]
["Pr Stéphane OUDARD","Médecin ","SANOFI AVENTIS FRANCE","30/03/2017","15/05/2017 - 31/12/2017 ","Contrat d'intervenant à une manifestation / orateur "]
["Pr Stéphane OUDARD","Médecin ","INC RESEARCH, LLC","07/04/2017","07/04/2017 - ","Recherche scientifique "]
["Pr Stéphane OUDARD","Médecin ","ASTELLAS PHARMA","14/04/2017","09/12/2016 - 10/12/2016 ","Contrat d'intervenant à une manifestation / orateur ",1680]
["Pr Stéphane OUDARD","Médecin ","IPSEN PHARMA","02/05/2017","02/05/2017 - 02/05/2017 ","Contrat d'expert scientifique, contrat dans le cadre d'une recherche, contrat de consultant ",1385]
["Pr Stéphane OUDARD","Médecin ","JANSSEN-CILAG","23/05/2017","04/07/2017 - 04/07/2017 ","Contrat / expertise autre que scientifique "]
["Pr Stéphane OUDARD","Médecin ","BRISTOL-MYERS SQUIBB","01/06/2017","01/06/2017 - 31/12/2017 ","Contrat d'expert scientifique, contrat dans le cadre d'une recherche, contrat de consultant ",1350]
["Pr Stéphane OUDARD","Médecin ","JANSSEN-CILAG","02/06/2017","02/06/2017 - 06/06/2017 ","Hospitalité ",null,"CHICAGO, USA"]
["Pr Stéphane OUDARD","Médecin ","JANSSEN-CILAG","02/06/2017","02/06/2017 - 06/06/2017 ","Hospitalité "]
["Pr Stéphane OUDARD","Médecin ","JANSSEN-CILAG","02/06/2017","02/06/2017 - 06/06/2017 ","Hospitalité "]
["Pr Stéphane OUDARD","Médecin ","JANSSEN-CILAG","08/06/2017","08/06/2017 - 08/06/2017 ","Hospitalité "]
["Pr Stéphane OUDARD","Médecin ","ASTELLAS PHARMA","09/06/2017","08/09/2017 - 12/09/2017 ","Hospitalité ",null,"MADRID"]
["Pr Stéphane OUDARD","Médecin ","BRISTOL-MYERS SQUIBB","15/06/2017","15/06/2017 - ","Autre : Orateur ",1729]
["Pr Stéphane OUDARD","Médecin ","JANSSEN-CILAG","16/06/2017","15/06/2017 - 15/06/2017 ","Contrat d'intervenant à une manifestation / orateur"]
["Pr Stéphane OUDARD","Médecin ","SANOFI-AVENTIS GROUPE","20/06/2017","08/07/2017 - 08/07/2017 ","Contrat d'intervenant à une manifestation / orateur "]
["Pr Stéphane OUDARD","Médecin ","BOEHRINGER INGELHEIM FRANCE","11/07/2017","11/07/2017 - ","Contrat d'expert scientifique, contrat dans le cadre d'une recherche, contrat de consultant "]
["Pr Stéphane OUDARD","Médecin ","SANOFI AVENTIS FRANCE","28/08/2017","19/09/2017 - 20/09/2017 ","Contrat d'intervenant à une manifestation / orateur "]
["Pr Stéphane OUDARD","Médecin ","BRISTOL-MYERS SQUIBB","10/09/2017","10/09/2017 - 21/09/2019 ","Contrat d'expert scientifique, contrat dans le cadre d'une recherche, contrat de consultant ",1260]
["Pr Stéphane OUDARD","Médecin ","PFIZER SAS","14/09/2017","17/08/2017 - 30/09/2017 ","Autre : Congrès/Symposium ",null,"LILLE"]
["Pr Stéphane OUDARD","Médecin ","KYOWA KIRIN","21/09/2017","21/09/2017 - ","Hospitalité ",255]
["Pr Stéphane OUDARD","Médecin ","AMGEN SAS","28/09/2017","28/09/2017 - 28/09/2017 ","Hospitalité "]
["Pr Stéphane OUDARD","Médecin ","SANDOZ","19/10/2017","19/10/2017 - 19/10/2017 ","Hospitalité ",20]
["Pr Stéphane OUDARD","Médecin ","PFIZER SAS","26/10/2017","26/10/2017 - 28/10/2017 ","Inscription congrès "]
["Pr Stéphane OUDARD","Médecin ","SANOFI AVENTIS FRANCE","07/11/2017","04/12/2017 - 31/12/2018 ","Contrat d'intervenant à une manifestation / orateur "]
["Pr Stéphane OUDARD","Médecin ","SANOFI AVENTIS FRANCE","09/11/2017","08/12/2017 - 30/06/2018 ","Contrat d'intervenant à une manifestation / orateur "]
["Pr Stéphane OUDARD","Médecin ","SANOFI AVENTIS FRANCE","17/11/2017","22/01/2018 - 22/04/2018 ","Contrat d'intervenant à une manifestation / orateur "]
["Pr Stéphane OUDARD","Médecin ","BRISTOL-MYERS SQUIBB","21/11/2017","22/11/2017 - 22/11/2017 ","Contrat d'expert scientifique, contrat dans le cadre d'une recherche, contrat de consultant ",875]
["Pr Stéphane OUDARD","Médecin ","LEO Pharma","23/11/2017","23/11/2017 - 23/11/2017 ","Hospitalité ",14]
["Pr Stéphane OUDARD","Médecin ","MSD France","23/11/2017","17/11/2017 - 17/11/2017 ","Contrat d'expert scientifique, contrat dans le cadre d'une recherche, contrat de consultant ",1000]
["Pr Stéphane OUDARD","Médecin ","IPSEN INNOVATION","24/11/2017","24/11/2017 - 26/11/2017 ","Contrat d'intervenant à une manifestation / orateur ",3545]
["Pr Stéphane OUDARD","Médecin ","IPSEN PHARMA","07/12/2017","07/12/2017 - 07/12/2017 ","Contrat d'intervenant à une manifestation / orateur ",500]
["Pr Stéphane OUDARD","Médecin ","ASTRAZENECA","07/12/2017","07/12/2017 - ","Hospitalité ",24]
["Pr Stéphane OUDARD","Médecin ","NOVARTIS PHARMA SAS","13/12/2017","13/12/2017 - 13/12/2017 ","Contrat d'expert scientifique, contrat dans le cadre d'une recherche, contrat de consultant ",600]
["Pr Stéphane OUDARD","Médecin ","IPSEN PHARMA","02/01/2018","18/01/2018 - 18/01/2018 ","Contrat d'intervenant à une manifestation / orateur",500]
["Pr Stéphane OUDARD","Médecin ","ASTELLAS PHARMA","04/01/2018","08/02/2018 - 10/02/2018 ","Hospitalité "]
["Pr Stéphane OUDARD","Médecin ","JANSSEN-CILAG","16/01/2018","16/02/2018 - 16/02/2018 ","Formation "]
["Pr Stéphane OUDARD","Médecin ","JANSSEN-CILAG","19/01/2018","31/01/2018 - 31/01/2018 ","Autres prestations de services "]
["Pr Stéphane OUDARD","Médecin ","ASTELLAS PHARMA","23/01/2018","09/02/2018 - 09/02/2018 ","Contrat d'expert scientifique, contrat dans le cadre d'une recherche, contrat de consultant ",900,"SAN FRANCISCO"]
["Pr Stéphane OUDARD","Médecin ","ASTRAZENECA","25/01/2018","02/02/2018 - ","Contrat d'intervenant à une manifestation / orateur ",1000]
["Pr Stéphane OUDARD","Médecin ","ASTRAZENECA","25/01/2018","25/01/2018 - ","Hospitalité ",25]
["Pr Stéphane OUDARD","Médecin ","JANSSEN-CILAG","31/01/2018","31/01/2018 - 31/01/2018 ","Autre : CONGRES/SYMPOSIUM ",null,"MONACO"]
["Pr Stéphane OUDARD","Médecin ","IPSEN PHARMA","01/02/2018","09/03/2018 - 31/12/2018 ","Contrat d'expert scientifique, contrat dans le cadre d'une recherche, contrat de consultant ",6040]
["Pr Stéphane OUDARD","Médecin ","ASTELLAS PHARMA","15/02/2018","07/03/2018 - 07/03/2018 ","Contrat d'intervenant à une manifestation / orateur ",2400]
["Pr Stéphane OUDARD","Médecin ","PFIZER SAS","16/02/2018","01/03/2018 - 17/03/2018 ","Contrat d'intervenant à une manifestation / orateur "]
["Pr Stéphane OUDARD","Médecin ","JANSSEN-CILAG","16/02/2018","16/02/2018 - 16/02/2018 ","Formation "]
["Pr Stéphane OUDARD","Médecin ","JANSSEN-CILAG","19/02/2018","09/03/2018 - 10/03/2018 ","Autres prestations de services ",null,"CLERMONT-FERRAND"]
["Pr Stéphane OUDARD","Médecin ","ASTELLAS PHARMA","07/03/2018","07/03/2018 - 07/03/2018 ","Hospitalité "]
["Pr Stéphane OUDARD","Médecin ","ASTRAZENECA","08/03/2018","08/03/2018 - ","Hospitalité ",20]
["Pr Stéphane OUDARD","Médecin ","JANSSEN-CILAG","09/03/2018","09/03/2018 - 10/03/2018 ","Autre : CONGRES/SYMPOSIUM ",null,"CLERMONT-FERRAND"]
["Pr Stéphane OUDARD","Médecin ","JANSSEN-CILAG","15/03/2018","12/04/2018 - 12/04/2018 ","Contrat d'intervenant à une manifestation / orateur "]
["Pr Stéphane OUDARD","Médecin ","PFIZER SAS","16/03/2018","16/03/2018 - 17/03/2018 ","Hospitalité "]
["Pr Stéphane OUDARD","Médecin ","IPSEN PHARMA","20/03/2018","20/03/2018 - 05/04/2018 ","Hospitalité "]
["Pr Stéphane OUDARD","Médecin ","SANDOZ","22/03/2018","22/03/2018 - 22/03/2018 ","Hospitalité ",25]
["Pr Stéphane OUDARD","Médecin ","JANSSEN-CILAG","26/03/2018","29/03/2018 - 29/03/2018 ","Contrat / expertise autre que scientifique"]
["Pr Stéphane OUDARD","Médecin ","JANSSEN-CILAG","26/03/2018","29/03/2018 - 29/03/2018 ","Contrat d'expert scientifique, contrat dans le cadre d'une recherche, contrat de consultant ",1200]
["Pr Stéphane OUDARD","Médecin ","IPSEN PHARMA","06/04/2018","20/03/2018 - 05/04/2018 ","Contrat d'expert scientifique, contrat dans le cadre d'une recherche, contrat de consultant ",1250]
["Pr Stéphane OUDARD","Médecin ","IPSEN PHARMA","06/04/2018","06/04/2018 - 07/04/2018 ","Autres prestations de services ",1250]
["Pr Stéphane OUDARD","Médecin ","JANSSEN-CILAG","12/04/2018","12/04/2018 - 12/04/2018 ","Hospitalité "]
["Pr Stéphane OUDARD","Médecin ","AMGEN SAS","19/04/2018","19/04/2018 - 19/04/2018 ","Hospitalité "]
["Pr Stéphane OUDARD","Médecin ","BRISTOL-MYERS SQUIBB","31/05/2018","01/06/2018 - 01/06/2018 ","Contrat d'expert scientifique, contrat dans le cadre d'une recherche, contrat de consultant "]
["Pr Stéphane OUDARD","Médecin ","MSD France","14/06/2018","14/06/2018 - 14/06/2018 ","Hospitalité ",425]
["Pr Stéphane OUDARD","Médecin ","NOVARTIS PHARMA SAS","15/06/2018","15/06/2018 - 15/06/2018 ","Contrat d'intervenant à une manifestation / orateur ",55]
["Pr Stéphane OUDARD","Médecin ","SANDOZ","28/06/2018","28/06/2018 - 28/06/2018 ","Autre : PARTICIPATION A UNE REUNION SCIENTIFIQUE",25]
[]
[null,null,null,null,null,"Total",{"$f":"SUM(G2:G270)","v":35758}]
[null,null,null,null,null,"2018 (1er sem.)",{"$f":"SUM(G241:G270)","v":15115}]
[null,null,null,null,null,"2017",{"$f":"SUM(G199:G240)","v":17243}]
[null,null,null,null,null,"2016",{"$f":"SUM(G133:G198)","v":1850}]
[null,null,null,null,null,"2015",{"$f":"SUM(G74:G132)","v":0}]
[null,null,null,null,null,"2014",{"$f":"SUM(G31:G73)","v":0}]
[null,null,null,null,null,"2013",{"$f":"SUM(G2:G30)","v":1550}]
[]
[]
[null,null,null,null,null,null,{"$f":"COUNTIF(G2:G270,\"\")","v":232}]
[null,null,null,null,null,null,null,"%","Cumul%"]
[null,null,null,null,null,"IPSEN",{"$f":"G$302+G$303","v":15390},{"$f":"G283/G$272","v":0.43039319872476089},{"$f":"H283","v":0.43039319872476089}]
[null,null,null,null,null,"BRISTOL-MYERS SQUIBB",{"$f":"SUMIF(C$2:C$270,\"BRISTOL-MYERS SQUIBB\",G$2:G$270)","v":5214},{"$f":"G284/G$272","v":0.14581352424632249},{"$f":"H284+I283","v":0.57620672297108344}]
[null,null,null,null,null,"ASTELLAS PHARMA",{"$f":"SUMIF(C$2:C$270,\"ASTELLAS PHARMA\",G$2:G$270)","v":4980},0.13926953409027351,{"$f":"H285+I284","v":0.71547625706135698}]
[null,null,null,null,null,"NOVARTIS PHARMA SAS",{"$f":"SUMIF(C$2:C$270,\"NOVARTIS PHARMA SAS\",G$2:G$270)","v":2455},6.8655965098719171E-2,0.78413222216007616]
[null,null,null,null,null,"ASTRAZENECA",{"$f":"SUMIF(C$2:C$270,\"ASTRAZENECA\",G$2:G$270)","v":2335},6.530007271100173E-2,0.84943229487107785]
[null,null,null,null,null,"JANSSEN-CILAG",{"$f":"SUMIF(C$2:C$270,\"JANSSEN-CILAG\",G$2:G$270)","v":2050},5.732982829017283E-2,0.90676212316125071]
[null,null,null,null,null,"ICON Clinical Research Limited",{"$f":"SUMIF(C$2:C$270,\"ICON Clinical Research Limited\",G$2:G$270)","v":1550},4.334694334135019E-2,0.95010906650260085]
[null,null,null,null,null,"MSD France",{"$f":"SUMIF(C$2:C$270,\"MSD France\",G$2:G$270)","v":1425},3.9851222104144525E-2,0.98996028860674534]
[null,null,null,null,null,"SANDOZ",{"$f":"SUMIF(C$2:C$270,\"SANDOZ\",G$2:G$270)","v":70},1.9576038928351695E-3,0.99191789249958051]
[null,null,null,null,null,"Bayer HealthCare SAS",{"$f":"SUMIF(C$2:C$270,\"Bayer HealthCare SAS\",G$2:G$270)","v":20},5.5931539795290566E-4,0.99247720789753346]
[null,null,null,null,null,"EISAI SAS",{"$f":"SUMIF(C$2:C$270,\"EISAI SAS\",G$2:G$270)","v":0}]
[null,null,null,null,null,"SANOFI-AVENTIS",{"$f":"G$300+G$301","v":0}]
[null,null,null,null,null,"PFIZER SAS",{"$f":"SUMIF(C$2:C$270,\"PFIZER SAS\",G$2:G$270)","v":0}]
[]
[]
[]
[]
[null,null,null,null,null,"SANOFI AVENTIS France",{"$f":"SUMIF(C$2:C$270,\"SANOFI AVENTIS France\",G$2:G$270)","v":0}]
[null,null,null,null,null,"SANOFI-AVENTIS GROUPE",{"$f":"SUMIF(C$2:C$270,\"SANOFI-AVENTIS GROUPE\",G$2:G$270)","v":0}]
[null,null,null,null,null,"IPSEN INNOVATION",{"$f":"SUMIF(C$2:C$270,\"IPSEN INNOVATION\",G$2:G$270)","v":3545}]
[null,null,null,null,null,"IPSEN PHARMA",{"$f":"SUMIF(C$2:C$270,\"IPSEN PHARMA\",G$2:G$270)","v":11845}]

{"sheet":"Rémunérations","index":2,"n_rows":125,"n_cols":7,"rows_kept":125,"cut":false,"hidden":false,"merged":[]}
["Entreprise","Type de bénéficiaire","Bénéficiaire","Date","Montant"]
["SANOFI AVENTIS FRANCE","Médecin ","Pr Stéphane OUDARD","18/03/2013",3000]
["SANOFI AVENTIS FRANCE","Médecin ","Pr Stéphane OUDARD","13/05/2013",2000]
["SANOFI AVENTIS FRANCE","Médecin ","Pr Stéphane OUDARD","24/05/2013",48]
["SANOFI AVENTIS FRANCE","Médecin ","Pr Stéphane OUDARD","30/05/2013",900]
["SANOFI-AVENTIS GROUPE","Médecin ","Pr Stéphane OUDARD","2013-06-10",2000]
["SANOFI AVENTIS FRANCE","Médecin ","Pr Stéphane OUDARD","2013-07-01",1000]
["SANOFI AVENTIS FRANCE","Médecin ","Pr Stéphane OUDARD","2013-10-07",2000]
["JANSSEN-CILAG","Médecin ","Pr Stéphane OUDARD","19/02/2014",300]
["Bayer HealthCare SAS","Médecin ","Pr Stéphane OUDARD","21/02/2014",68]
["Bayer HealthCare SAS","Médecin ","Pr Stéphane OUDARD","21/02/2014",1000]
["SANOFI AVENTIS FRANCE","Médecin ","Pr Stéphane OUDARD","2014-07-10",1000]
["SANOFI AVENTIS FRANCE","Médecin ","Pr Stéphane OUDARD","2014-07-10",2750]
["SANOFI AVENTIS FRANCE","Médecin ","Pr Stéphane OUDARD","2014-08-07",1350]
["SANOFI AVENTIS FRANCE","Médecin ","Pr Stéphane OUDARD","23/10/2014",1500]
["JANSSEN-CILAG","Médecin ","Pr Stéphane OUDARD","2014-11-06",1320]
["SANOFI AVENTIS FRANCE","Médecin ","Pr Stéphane OUDARD","2014-12-02",3000]
["Bayer HealthCare SAS","Médecin ","Pr Stéphane OUDARD","28/01/2015",1000]
["JANSSEN-CILAG","Médecin ","Pr Stéphane OUDARD","19/02/2015",1850]
["SANOFI-AVENTIS GROUPE","Médecin ","Pr Stéphane OUDARD","24/02/2015",1800]
["JANSSEN-CILAG","Médecin ","Pr Stéphane OUDARD","13/03/2015",650]
["SANOFI-AVENTIS GROUPE","Médecin ","Pr Stéphane OUDARD","17/03/2015",4800]
["SANOFI-AVENTIS GROUPE","Médecin ","Pr Stéphane OUDARD","17/03/2015",1200]
["SANOFI-AVENTIS GROUPE","Médecin ","Pr Stéphane OUDARD","2015-05-05",1773]
["SANOFI-AVENTIS GROUPE","Médecin ","Pr Stéphane OUDARD","2015-05-05",3300]
["SANOFI AVENTIS FRANCE","Médecin ","Pr Stéphane OUDARD","2015-05-06",1500]
["SANOFI-AVENTIS GROUPE","Médecin ","Pr Stéphane OUDARD","2015-07-01",4774]
["SANOFI AVENTIS FRANCE","Médecin ","Pr Stéphane OUDARD","2015-07-09",1500]
["SANOFI-AVENTIS GROUPE","Médecin ","Pr Stéphane OUDARD","2015-08-04",2400]
["SANOFI AVENTIS FRANCE","Médecin ","Pr Stéphane OUDARD","2015-09-10",900]
["Bayer HealthCare SAS","Médecin ","Pr Stéphane OUDARD","25/11/2015",1000]
["SANOFI-AVENTIS GROUPE","Médecin ","Pr Stéphane OUDARD","22/12/2015",1910]
["SANOFI AVENTIS FRANCE","Médecin ","Pr Stéphane OUDARD","23/12/2015",3000]
["SANOFI-AVENTIS GROUPE","Médecin ","Pr Stéphane OUDARD","2016-01-05",2700]
["PFIZER SAS","Médecin ","Pr Stéphane OUDARD","26/01/2016",900]
["SANOFI-AVENTIS GROUPE","Médecin ","Pr Stéphane OUDARD","16/02/2016",4168]
["SANOFI AVENTIS FRANCE","Médecin ","Pr Stéphane OUDARD","18/02/2016",1500]
["JANSSEN-CILAG","Médecin ","Pr Stéphane OUDARD","2016-03-09",1200]
["NOVARTIS PHARMA SAS","Médecin ","Pr Stéphane OUDARD","22/03/2016",600]
["NOVARTIS PHARMA SAS","Médecin ","Pr Stéphane OUDARD","24/03/2016",1200]
["SANOFI AVENTIS FRANCE","Médecin ","Pr Stéphane OUDARD","24/03/2016",1500]
["PFIZER SAS","Médecin ","Pr Stéphane OUDARD","2016-04-05",900]
["SANOFI-AVENTIS GROUPE","Médecin ","Pr Stéphane OUDARD","19/04/2016",2961]
["SANOFI-AVENTIS GROUPE","Médecin ","Pr Stéphane OUDARD","24/05/2016",2371]
["JANSSEN-CILAG","Médecin ","Pr Stéphane OUDARD","2016-06-08",850]
["SANOFI AVENTIS FRANCE","Médecin ","Pr Stéphane OUDARD","16/06/2016",1500]
["NOVARTIS PHARMA SAS","Médecin ","Pr Stéphane OUDARD","27/06/2016",800]
["SANOFI AVENTIS FRANCE","Médecin ","Pr Stéphane OUDARD","2016-08-04",1950]
["SANOFI AVENTIS FRANCE","Médecin ","Pr Stéphane OUDARD","25/08/2016",2400]
["EISAI SAS","Médecin ","Pr Stéphane OUDARD","2016-09-01",1500]
["SANOFI AVENTIS FRANCE","Médecin ","Pr Stéphane OUDARD","15/09/2016",3000]
["SANOFI-AVENTIS GROUPE","Médecin ","Pr Stéphane OUDARD","2016-10-11",2393]
["SANOFI-AVENTIS GROUPE","Médecin ","Pr Stéphane OUDARD","2016-10-11",3600]
["SANOFI-AVENTIS GROUPE","Médecin ","Pr Stéphane OUDARD","18/10/2016",6500]
["PFIZER SAS","Médecin ","Pr Stéphane OUDARD","25/10/2016",240]
["EUSA Pharma (France) SAS","Médecin ","Pr Stéphane OUDARD","29/10/2016",200]
["SANOFI-AVENTIS GROUPE","Médecin ","Pr Stéphane OUDARD","2016-11-04",2369]
["ASTELLAS PHARMA","Médecin ","Pr Stéphane OUDARD","2016-12-09",1680]
["SANOFI AVENTIS FRANCE","Médecin ","Pr Stéphane OUDARD","28/12/2016",3000]
["SANOFI AVENTIS FRANCE","Médecin ","Pr Stéphane OUDARD","2017-01-05",1158]
["SANOFI-AVENTIS GROUPE","Médecin ","Pr Stéphane OUDARD","2017-01-10",1350]
["PFIZER SAS","Médecin ","Pr Stéphane OUDARD","2017-02-07",1000]
["NOVARTIS PHARMA SAS","Médecin ","Pr Stéphane OUDARD","14/02/2017",600]
["SANOFI-AVENTIS GROUPE","Médecin ","Pr Stéphane OUDARD","14/02/2017",2100]
["NOVARTIS PHARMA SAS","Médecin ","Pr Stéphane OUDARD","15/02/2017",600]
["PFIZER SAS","Médecin ","Pr Stéphane OUDARD","28/03/2017",1200]
["ASTRAZENECA","Médecin ","Pr Stéphane OUDARD","2017-04-06",1500]
["NOVARTIS PHARMA SAS","Médecin ","Pr Stéphane OUDARD","2017-04-10",800]
["BRISTOL-MYERS SQUIBB","Médecin ","Pr Stéphane OUDARD","19/04/2017",450]
["SANOFI AVENTIS FRANCE","Médecin ","Pr Stéphane OUDARD","25/04/2017",2091]
["NOVARTIS PHARMA SAS","Médecin ","Pr Stéphane OUDARD","26/04/2017",600]
["IPSEN PHARMA","Médecin ","Pr Stéphane OUDARD","30/04/2017",900]
["NOVARTIS PHARMA SAS","Médecin ","Pr Stéphane OUDARD","2017-05-10",1000]
["Association pour le Développement de l’Enseignement et des Recherches auprès des universités des centres de recherches et des entreprises d’Aquitaine (ADERA)","Médecin ","Pr Stéphane OUDARD","19/06/2017",5160]
["JANSSEN-CILAG","Médecin ","Pr Stéphane OUDARD","28/06/2017",720]
["SANOFI AVENTIS FRANCE","Médecin ","Pr Stéphane OUDARD","28/06/2017",600]
["JANSSEN-CILAG","Médecin ","Pr Stéphane OUDARD","20/07/2017",1200]
["SANOFI AVENTIS FRANCE","Médecin ","Pr Stéphane OUDARD","22/08/2017",2400]
["IPSEN PHARMA","Médecin ","Pr Stéphane OUDARD","31/08/2017",1375]
["IPSEN PHARMA","Médecin ","Pr Stéphane OUDARD","31/08/2017",1375]
["BRISTOL-MYERS SQUIBB","Médecin ","Pr Stéphane OUDARD","18/10/2017",450]
["BRISTOL-MYERS SQUIBB","Médecin ","Pr Stéphane OUDARD","2017-11-01",1200]
["SANOFI AVENTIS FRANCE","Médecin ","Pr Stéphane OUDARD","2017-11-09",600]
["SANOFI-AVENTIS GROUPE","Médecin ","Pr Stéphane OUDARD","2017-12-05",2400]
["SANOFI AVENTIS FRANCE","Médecin ","Pr Stéphane OUDARD","2017-12-05",3150]
["SANOFI AVENTIS FRANCE","Médecin ","Pr Stéphane OUDARD","2018-01-04",600]
["NOVARTIS PHARMA SAS","Médecin ","Pr Stéphane OUDARD","2018-01-05",600]
["MSD France","Médecin ","Pr Stéphane OUDARD","22/01/2018",1000]
["BRISTOL-MYERS SQUIBB","Médecin ","Pr Stéphane OUDARD","2018-02-07",960]
["ASTELLAS PHARMA","Médecin ","Pr Stéphane OUDARD","18/02/2018",900]
["ASTRAZENECA","Médecin ","Pr Stéphane OUDARD","23/02/2018",1200]
["JANSSEN-CILAG","Médecin ","Pr Stéphane OUDARD","2018-03-01",1800]
["JANSSEN-CILAG","Médecin ","Pr Stéphane OUDARD","20/03/2018",1200]
["JANSSEN-CILAG","Médecin ","Pr Stéphane OUDARD","13/04/2018",1800]
["ASTELLAS PHARMA","Médecin ","Pr Stéphane OUDARD","16/04/2018",2400]
["JANSSEN-CILAG","Médecin ","Pr Stéphane OUDARD","24/04/2018",1200]
["JANSSEN-CILAG","Médecin ","Pr Stéphane OUDARD","24/04/2018",1200]
["SANOFI AVENTIS FRANCE","Médecin ","Pr Stéphane OUDARD","2018-05-09",3600]
["SANOFI AVENTIS FRANCE","Médecin ","Pr Stéphane OUDARD","2018-05-09",1500]
[]
[null,null,"Total",null,{"$f":"SUM(E2:E99)","v":164514}]
[null,null,"2018",null,{"$f":"SUM(E86:E99)","v":19960}]
[null,null,2017,null,{"$f":"SUM(E60:E85)","v":35979}]
[null,null,"2016",null,{"$f":"SUM(E34:E59)","v":51982}]
[null,null,"2015",null,{"$f":"SUM(E18:E33)","v":33357}]
[null,null,"2014",null,{"$f":"SUM(E9:E17)","v":12288}]
[null,null,"2013",null,{"$f":"SUM(E2:E8)","v":10948}]
[null,null,null,null,null,"%","Cumul%"]
[null,null,"SANOFI-AVENTIS",null,{"$f":"SUM(E$124:E$125)","v":112866},{"$f":"E109/E$101","v":0.68605711368029465},{"$f":"F109","v":0.68605711368029465}]
[null,null,"JANSSEN-CILAG",null,{"$f":"SUMIF(A$2:A$99,\"JANSSEN-CILAG\",E$2:E$99)","v":15290},{"$f":"E110/E$101","v":9.2940418444630857E-2},{"$f":"F110+G109","v":0.77899753212492551}]
[null,null,"NOVARTIS PHARMA SAS",null,{"$f":"SUMIF(A$2:A$99,\"NOVARTIS PHARMA SAS\",E$2:E$99)","v":6800},4.1333868242216465E-2,{"$f":"F111+G110","v":0.82033140036714203}]
[null,null,"BRISTOL-MYERS SQUIBB",null,{"$f":"SUMIF(A$2:A$99,\"BRISTOL-MYERS SQUIBB\",E$2:E$99)","v":3060},1.860024070899741E-2,0.83893164107613949]
[null,null,"ASTELLAS PHARMA",null,{"$f":"SUMIF(A$2:A$99,\"ASTELLAS PHARMA\",E$2:E$99)","v":4980},3.0270979977387941E-2,0.86920262105352741]
[null,null,"PFIZER SAS",null,{"$f":"SUMIF(A$2:A$99,\"PFIZER SAS\",E$2:E$99)","v":4240},2.5772882551029091E-2,0.89497550360455647]
[null,null,"IPSEN PHARMA",null,{"$f":"SUMIF(A$2:A$99,\"IPSEN PHARMA\",E$2:E$99)","v":3650},2.218656163001325E-2,0.91716206523456967]
[null,null,"Bayer HealthCare SAS",null,{"$f":"SUMIF(A$2:A$99,\"Bayer HealthCare SAS\",E$2:E$99)","v":3068},1.8648868789282371E-2,0.93581093402385207]
[null,null,"ASTRAZENECA",null,{"$f":"SUMIF(A$2:A$99,\"ASTRAZENECA\",E$2:E$99)","v":2700},1.6411977096174184E-2,0.95222291112002622]
[null,null,"EISAI SAS",null,{"$f":"SUMIF(A$2:A$99,\"EISAI SAS\",E$2:E$99)","v":1500},9.117765053430104E-3,0.96134067617345631]
[null,null,"MSD France",null,{"$f":"SUMIF(A$2:A$99,\"MSD France\",E$2:E$99)","v":1000},6.078510035620069E-3,0.96741918620907641]
[]
[]
[]
[]
[null,null,"SANOFI AVENTIS France",null,{"$f":"SUMIF(A$2:A$99,\"SANOFI AVENTIS France\",E$2:E$99)","v":55997}]
[null,null,"SANOFI-AVENTIS GROUPE",null,{"$f":"SUMIF(A$2:A$99,\"SANOFI-AVENTIS GROUPE\",E$2:E$99)","v":56869}]

{"sheet":"AVANTAGES","index":3,"n_rows":250,"n_cols":2,"rows_kept":250,"cut":false,"hidden":false,"merged":[]}
["TYPE_AVTG dans Transparence.sante.gouv.fr","TYPE_AVTG (libellé de regroupement)"]
["[Autre] : Participation Evenement Scientifique ","Congrès"]
["[Autre] inscription congrès ","Inscription"]
["[HEBERGEMENT] ","Hébergement"]
["[HOSPITALITE] ","Hospitalité"]
["[REPAS] ","Repas"]
["[TRANSPORT] ","Transport"]
["Acheminement ","Transport"]
["AUTRE ","Autre"]
["AUTRE (PRECISER) ","Autre"]
["AUTRE (PRECISER):[LOCATION DE MATERIEL] ","Autre"]
["Autre : [ Forfait journée d\u0092étude ] ","Autre"]
["Autre : [ Forfait journée d\u0092étude ou forfait congrès ] ","Congrès"]
["Autre : [ Forfait journée étude ] ","Autre"]
["Autre : [ Inscription ] ","Inscription"]
["AUTRE : [ACCOMPAGNEMENT] ","Autre"]
["AUTRE : [CONTRAT DE PARTENARIAT - LOCATION DE STAND] ","Congrès"]
["AUTRE : [COUTS PAR CENTRE] ","Autre"]
["AUTRE : [DEDOMMAGEMENT] ","Autre"]
["Autre : [DEJEUNER REUNION] ","Repas"]
["AUTRE : [DON EN NATURE] ","Autre"]
["Autre : [don] ","Autre"]
["AUTRE : [DONS] ","Autre"]
["Autre : [ECHANTILLON] ","Autre"]
["Autre : [Forfait] ","Autre"]
["Autre : [Formation] ","Autre"]
["Autre : [FRAIS D'INSCRIPTION] ","Inscription"]
["Autre : [HONORAIRE] ","Autre"]
["Autre : [Honoraires PdS] ","Autre"]
["Autre : [Honoraires] ","Repas"]
["Autre : [Hospitalité Evenement Scientifique] ","Hospitalité"]
["AUTRE : [HOSPITALITE] ","Hospitalité"]
["AUTRE : [INSCRIPTION CONGRÈS SCIENTIFIQUE] ","Inscription"]
["Autre : [Inscription Evenement Scientifique] ","Inscription"]
["Autre : [Inscription] ","Inscription"]
["Autre : [Location de stand] ","Congrès"]
["Autre : [note de frais] ","Autre"]
["Autre : [Notes de frais] ","Autre"]
["AUTRE : [PARTICIPATION EVENEMENT SCIENTIFIQUE] ","Congrès"]
["AUTRE : [PAUSE] ","Autre"]
["Autre : [Remboursement de frais] ","Autre"]
["AUTRE : [REMBOURSEMENT FRAIS LOGISTIQUE] ","Autre"]
["Autre : [Remis Publication scientifique] ","Autre"]
["Autre : [rémunération] ","Repas"]
["Autre : [Restauration] ","Repas"]
["Autre : [stand] ","Congrès"]
["Autre : cheque ","Autre"]
["AUTRE : CONGRES ","Autre"]
["AUTRE : DEJEUNER ","Repas"]
["AUTRE : DEUX PAUSES ","Repas"]
["AUTRE : DINER ","Repas"]
["AUTRE : DON DE MÉDICAMENT ","Autre"]
["autre : enquête internet ","Autre"]
["autre : enquête téléphonique ","Autre"]
["AUTRE : FORMATION MEDICALE CONTINUE ","Autre"]
["AUTRE : FRAIS DE RESTAURATION / RP ","Repas"]
["Autre : Frais d'inscription Congres ","Inscription"]
["Autre : Frais d'inscription Congrès ","Inscription"]
["AUTRE : HONORAIRE ","Autre"]
["AUTRE : HONORAIRE CONFERENCE TELEPHONIQUE ","Autre"]
["AUTRE : HONORAIRES ","Autre"]
["AUTRE : HONORAIRES CONFERENCE TELEPHONIQUE ","Autre"]
["AUTRE : HONORAIRES ETUDES ","Autre"]
["AUTRE : HONORAIRES REUNION ","Autre"]
["AUTRE : HOSPITALITE CONGRES ","Congrès"]
["AUTRE : HOSPITALITE STAFF ","Hospitalité"]
["Autre : Indemnite ","Autre"]
["Autre : Inscription ","Inscription"]
["Autre : LOCATION STAND ","Autre"]
["AUTRE : PRÊT ","Autre"]
["AUTRE : RELATIONS NORMALES DE TRAVAIL ","Autre"]
["AUTRE : REMBOURSEMENT DE FRAIS ","Autre"]
["AUTRE : REMUNERATION ","Autre"]
["AUTRE : REPAS PROFESSIONNEL ","Repas"]
["Autre : repas STAFF ","Repas"]
["AUTRE : REUNION ","Autre"]
["AUTRE : RNT ","Autre"]
["AUTRE : STAFF ","Repas"]
["AUTRE : STAND CONGRES ","Congrès"]
["Autre : Supports formation ","Autre"]
["Autre : surcoûts direction hospitalière ","Autre"]
["AUTRE [DINER REUNION] ","Repas"]
["AUTRE [DONS] ","Autre"]
["AUTRE [ENQUETE] ","Autre"]
["AUTRE [FRAIS D INSCRIPTION] ","Inscription"]
["AUTRE [INSCRIPTION] ","Inscription"]
["AUTRE [PAUSE] ","Autre"]
["AUTRE [RESTAURATION STAFF] ","Repas"]
["AUTRE: [DON] ","Autre"]
["AUTRE: [DONS] ","Autre"]
["Autre: [Enquête] ","Autre"]
["AUTRE: [HEBERGEMENT ET RESTAURATIONS] ","Hébergement"]
["AUTRE: [INSCRIPTION] ","Inscription"]
["AUTRE: [LIVRE A BUT PEDAGOGIQUE] ","Autre"]
["AUTRE: COLLATION ","Repas"]
["AUTRE: COLLATION/COLLATION ","Repas"]
["AUTRE: CONGRES/COCKTAIL ","Repas"]
["AUTRE: CONGRES/INSCRIPTION ","A définir"]
["AUTRE: DEJEUNER ","Repas"]
["AUTRE: DEJEUNER/DINER ","Repas"]
["AUTRE: DEJEUNER/RESTO ITALIEN BON ","Repas"]
["Autre: Don ","Autre"]
["AUTRE: HOSPITALITE ","Hospitalité"]
["AUTRE: INDEMNITE ","Autre"]
["AUTRE: INSCRIPTION ","Inscription"]
["Autre: Phone consult ","Autre"]
["AUTRE: SOIREE ","Hospitalité"]
["AUTRE: SOIREE/SOIREE ","Autre"]
["AUTRE: STAFF ","Repas"]
["AUTRE: VISITE/(2 X GO-ON 25MG) ","Autre"]
["AUTRE: VISITE/(3 X GO-ON 25MG) ","Autre"]
["AUTRE: VISITE/GO-ON 25MG ","Autre"]
["AUTRE:[FRAIS D'INSCRIPTION] ","Inscription"]
["AUTRE:[FRAIS FIXES CONVENTION] ","Autre"]
["AUTRE:[SURCOUTS HOSPITALIERS] ","Autre"]
["AUTRE:RECHERCHE ","Autre"]
["Autre[HONORAIRES] ","Autre"]
["Autre[inscription congrès] ","Congrès"]
["AUTRES ","Autre"]
["AUTRES : REMBOURSEMENT DE FRAIS ","Autre"]
["AUTRES: INSCRIPTION ","Inscription"]
["CADEAUX ","Autre"]
["COLLATION ","Repas"]
["COLLATION/COLLATION ","Repas"]
["CONGRES/ACHEMINEMENT (AVION) ","Transport"]
["CONGRES/DEJEUNERS / DINERS (4) ","Repas"]
["CONGRES/HEBERGEMENT ","Hébergement"]
["CONGRES/HEBERGEMENT (1 NUITEES) ","Hébergement"]
["CONGRES/HEBERGEMENT (2 NUITEES) ","Hébergement"]
["CONGRES/HEBERGEMENT 3 NUITS ","Hébergement"]
["CONGRES/INSCRIPTION ","Inscription"]
["CONGRES/REPAS 12.06.13 ","Repas"]
["CONGRES/REPAS 13.06.13 ","Repas"]
["CONGRES/REPAS 14.06.13 ","Repas"]
["CONGRES/REPAS X3 ","Repas"]
["conseil ","Autre"]
["Conseil - Intervention Ponctuelle ","Autre"]
["Dédommagement ","Autre"]
["DEJEUNER ","Repas"]
["déjeuner ","Repas"]
["DEJEUNER/DEJEUNER ","Repas"]
["DEJEUNER/REPAS ","Repas"]
["Déplacement ","Transport"]
["DINER ","Repas"]
["Dîner ","Repas"]
["DOCUMENTATION ","Autre"]
["Don ","Autre"]
["DON / SUBVENTION ","Autre"]
["DON DE MATERIEL POUR ETUDE CLINIQUE ","Autre"]
["DONS ","Autre"]
["Dons de fonctionnement ","Autre"]
["DONS DE FONCTIONNEMENT (RÉMUNÉRATION LIÉE À DES ACTIVITÉS DE RECHERCHE) ","Autre"]
["DONS DE FONCTIONNEMENT / RECHERCHE ","Autre"]
["DONS DE MATERIEL ","Autre"]
["Dons de matériel ","Autre"]
["Droits d'auteur pris en charge par UCB ","Autre"]
["Echantillon récipient de cryoconservation Nalgene Mister Frosty ","Autre"]
["enquête ","Autre"]
["EPU ","Repas"]
["EPU/DINER ","Repas"]
["EPU/EPU ","Congrès"]
["EPU/REPAS ","Repas"]
["FRAIS DE BOUCHE ","Repas"]
["Frais de dÃƒÂ©placement ","Transport"]
["FRAIS DE DEPLACEMENT ","Transport"]
["FRAIS DE RESTAURATION ","Repas"]
["FRAIS D'HOSPITALITÉ ","Hospitalité"]
["FRAIS D'INSCRIPTION ","Inscription"]
["Frais d'inscription à une réunion scientifique ","Inscription"]
["FRAIS RELATIFS A LA RECHERCHE IMPLIQUANT LA PERSONNE HUMAINE ","Autre"]
["Frais remboursés (transport) ","Transport"]
["H‚bergement ","Hébergement"]
["HÃ©bergement ","Hébergement"]
["HÃ‰BERGEMENT ","Hébergement"]
["HÃƒÂ©bergement ","Hébergement"]
["HE\u0090BERGEMENT ","Hospitalité"]
["HEBERGEMENT ","Hébergement"]
["Hébergement ","Hébergement"]
["Hébérgement ","Hébergement"]
["HEBERGEMENT SUR TOUTE LA DUREE DU CONGRES ","Hébergement"]
["Hébergement, restauration, transport ","Hospitalité"]
["Honoraire + hospitalité ","Hospitalité"]
["HONORAIRE HCP ","Autre"]
["HONORAIRES ","Autre"]
["Honoraires de consultant ","Autre"]
["HOSPITALITE ","Hospitalité"]
["HOSPITALITÉ ","Hospitalité"]
["HOSPITALITE - RELATIONS NORMALES DE TRAVAIL ","Hospitalité"]
["Hospitalité [ transport/repas/Hébergement] ","Hospitalité"]
["HOSPITALITE CONGRES ","Hospitalité"]
["Hospitalité Congrès Symposium ","Congrès"]
["HOSPITALITE REUNION PROFESSIONNELLE ","Hospitalité"]
["HOSPITALITE SITES PIERRE FABRE ","Hospitalité"]
["HOSPITALITE STAFF ","Hospitalité"]
["INCRIPTION ","Inscription"]
["INDEMNITE ","Autre"]
["INSCRIPTION ","Inscription"]
["INSCRIPTION CONGRES ","Inscription"]
["Inscription congrès ","Congrès"]
["Inscription Evenement Scientifique ","Inscription"]
["INSCRIPTION_REPAS_TRANSPORT_HEBERGEMENT ","Hospitalité"]
["INVITATIONS ","Autre"]
["Logement ","Hébergement"]
["MISE A DISPOSITION DE MATERIEL POUR RECHERCHE CLINIQUE ","Autre"]
["MISE A DISPOSITION DE MATERIELS POUR RECHERCHES ","Autre"]
["OPPORTUNITE ","Autre"]
["Participation Evenement Scientifique ","Congrès"]
["PAUSE ","Autre"]
["Prestation en tant que formateur et orateur ","Autre"]
["PRESTATION SERVICE ","Autre"]
["RECHERCHE ","Autre"]
["RECHERCHE - MISE A DISPOSITION DE MATERIEL ","Autre"]
["REMUNERATION ","Autre"]
["REPAS","Repas"]
["Repas ","Repas"]
["répas ","Repas"]
["Repas & Voyage de Train ","Hospitalité"]
["REPAS CONGRES ","Repas"]
["REPAS ET TRANSPORT ","Autre"]
["REPAS FORMATION ","Repas"]
["REPAS IMPROMPTU ","Repas"]
["REPAS MANIFESTATION DE FORMATION ","Repas"]
["REPAS PROFESSIONNEL ","Repas"]
["REPAS RELATION NORMALE DE TRAVAIL ","Repas"]
["REPAS REUNION ","Repas"]
["REPAS REUNION HOSPITALIERE ","Repas"]
["REPAS RÉUNION HOSPITALIÈRE ","Repas"]
["REPAS REUNION SCIENTIFIQUE ","Repas"]
["REPAS RÉUNION SCIENTIFIQUE ","Repas"]
["REPAS SUR TOUTE LA DUREE DU CONGRES ","Repas"]
["Restauration ","Repas"]
["Restauration / Dïner ","Repas"]
["Restauration / Pauses ","Repas"]
["SOIREE ","Repas"]
["SOIREE/REPAS ","Repas"]
["SOIREE/RP ","Autre"]
["SOUTIEN A L EDUCATION THERAPEUTIQUE ","Autre"]
["STAFF ","Autre"]
["Taxonomie EFPIA ","Autre"]
["TRANBSPORT ","Transport"]
["TRANSFERT ","Transport"]
["TRANSFERT-REPAS(DINER) ","Repas"]
["Transport ","Transport"]
["TRANSPORT ALLER/RETOUR -REPAS(DINER-DEJEUNER-PAUSES)-HEBERGEMENT-TRANSFERT ","Hospitalité"]
["TRANSPORT ALLER/RETOUR -REPAS(DINERS-DEJEUNERS-PAUSES)-HEBERGEMENT-TRANSFERT ","Hospitalité"]
["Transport pris en charge par UCB ","Transport"]
["TRANSPORT taxi ","Transport"]
["VISITE/(2 X GO-ON 25MG) ","Autre"]
["VISITE/(3 X GO-ON 25MG) ","Autre"]
["VISITE/GO-ON 25MG ","Autre"]

{"sheet":"CONVENTIONS","index":4,"n_rows":890,"n_cols":2,"rows_kept":890,"cut":false,"hidden":false,"merged":[]}
["TYPE_CONVENTION dans Transparence.sante.gouv.fr","TYPE_CONVENTION (libellé de regroupement)"]
["[AUTRE] : [COLLABORATION SCIENTIFIQUE] ","Expert"]
["[AUTRE] : [CONVENTION HOSPITALITE]","Hospitalité"]
["[AUTRE] : [CONVENTION HOSPITALITE] ","Hospitalité"]
["[BOARD EXPERTS] ","Réunion de « Board »"]
["[FORMATION] ","Autre"]
["[MARKETING]","Etude de marché"]
["[MARKETING] ","Etude de marché"]
["[ORATEUR] ","Orateur"]
["[ORATEURS MODERATEURS]","Orateur"]
["[ORATEURS MODERATEURS] ","Orateur"]
["[REUNION INFORMATION MEDICALE] ","Réunion professionnelle"]
["26E CONGRES FRANÇAIS DE RHUMATOLOGIE ","Réunion professionnelle"]
["ACCORD DE COOPERATION ","Expert"]
["Achat / location d'espace publicitaire ","Autre"]
["Achat / location d'espaces dans le cadre d'événements scientifiques","Autre"]
["Achat / location d'espaces dans le cadre d'événements scientifiques ","Autre"]
["AMERICAN COLLEGE OF RHEUMATHOLOGY ACR/ARHP ANNUAL MEETING 2012 ","Réunion professionnelle"]
["ANNUAL EUROPEAN CONGRESS OF RHEUMATOLOGY ","Réunion professionnelle"]
["ASSISES BARCELONE ","Réunion professionnelle"]
["ATELIERS SIMS ","Réunion professionnelle"]
["AUTRE","Autre"]
["AUTRE ","Autre"]
["Autre : ","Autre"]
["Autre : \"CONTRAT D'ORATEUR\" ","Orateur"]
["Autre : [ Collaboration Scientifique ]","Expert"]
["Autre : [ Collaboration Scientifique ] ","Expert"]
["AUTRE : [ CONSEIL / EXPERTISE SCIENTIFIQUE ] ","Conseil"]
["Autre : [ EPU ]","Réunion professionnelle"]
["Autre : [ EPU ] ","Réunion professionnelle"]
["Autre : [ Expert ]","Expert"]
["Autre : [ Expert ] ","Expert"]
["AUTRE : [ HOSPITALITE ]","Hospitalité"]
["AUTRE : [ HOSPITALITE ] ","Hospitalité"]
["Autre : [ hospitalité ] ","Hospitalité"]
["Autre : [ hospitalité liée à une manifestation scientifique ]","Hospitalité"]
["Autre : [ hospitalité liée à une manifestation scientifique ] ","Hospitalité"]
["Autre : [ Manifestation professionnelle ]","Réunion professionnelle"]
["Autre : [ Manifestation professionnelle ] ","Réunion professionnelle"]
["Autre : [ Orateur / Intervenant ]","Orateur"]
["Autre : [ Orateur / Intervenant ] ","Orateur"]
["Autre : [ Orateur ] ","Orateur"]
["Autre : [ Partenariat ] ","Autre"]
["Autre : [ Prestation ] ","Conseil"]
["Autre : [ R‚union professionnelle ]","Réunion professionnelle"]
["Autre : [ R‚union professionnelle ] ","Réunion professionnelle"]
["Autre : [ R\u0082union professionnelle ]","Réunion professionnelle"]
["Autre : [ R\u0082union professionnelle ] ","Réunion professionnelle"]
["Autre : [ Reunion professionnelle ]","Réunion professionnelle"]
["Autre : [ Réunion professionnelle ]","Réunion professionnelle"]
["Autre : [ Reunion professionnelle ] ","Réunion professionnelle"]
["Autre : [ Réunion professionnelle ] ","Réunion professionnelle"]
["Autre : [AUTRE: PRESTATION DE SERVICES] ","Conseil"]
["Autre : [AUTRE] : [CONTRAT DE COLLABORATION] ","Autre"]
["Autre : [AUTRE] : [CONVENTION HOSPITALITE] ","Hospitalité"]
["Autre : [BOARD EXPERTS] ","Expert"]
["Autre : [collaboration scientifique] ","Expert"]
["Autre : [Communication scientifique]","Expert"]
["Autre : [Communication scientifique] ","Conseil"]
["Autre : [Consultant (HCP)]","Conseil"]
["Autre : [Consultant (HCP)] ","Conseil"]
["Autre : [Consultant] ","Conseil"]
["Autre : [Contrat autre]","Autre"]
["Autre : [Contrat autre] ","Autre"]
["AUTRE : [CONTRAT DE COLLABORATION SCIENTIFIQUE]","Expert"]
["AUTRE : [CONTRAT DE COLLABORATION SCIENTIFIQUE] ","Expert"]
["AUTRE : [CONTRAT DE CONSEIL & PRESTATION]","Conseil"]
["AUTRE : [CONTRAT DE CONSEIL & PRESTATION] ","Conseil"]
["Autre : [Contrat de consultant] ","Conseil"]
["AUTRE : [CONTRAT DE PARTENARIAT - LOCATION DE STAND]","Réunion professionnelle"]
["AUTRE : [CONTRAT DE PARTENARIAT - LOCATION DE STAND] ","Réunion professionnelle"]
["AUTRE : [CONTRAT DE PARTENARIAT] ","Autre"]
["AUTRE : [CONTRAT D'ORATEUR]","Orateur"]
["AUTRE : [CONTRAT D'ORATEUR] ","Orateur"]
["Autre : [CONTRAT ORATEUR] ","Orateur"]
["Autre : [CONTRAT_DE_PRESTATIONS_DE_SERVICES] ","Conseil"]
["AUTRE : [CONVENTION D HOSPITALITE]","Hospitalité"]
["AUTRE : [CONVENTION D HOSPITALITE] ","Hospitalité"]
["Autre : [Convention d’Hospitalité] ","Hospitalité"]
["Autre : [Convention de consultant] ","Conseil"]
["Autre : [CONVENTION D'HOSPITALITE]","Hospitalité"]
["Autre : [Convention d'Hospitalité]","Hospitalité"]
["Autre : [CONVENTION D'HOSPITALITE] ","Hospitalité"]
["Autre : [Convention d'hospitalité] ","Hospitalité"]
["AUTRE : [CONVENTION HOSPITALITE] ","Hospitalité"]
["Autre : [Convention Orateur] ","Orateur"]
["AUTRE : [CONVENTION SANS REMUNERATION]. ","Autre"]
["AUTRE : [DONS] ","Autre"]
["Autre : [entretien]","Etude de marché"]
["Autre : [entretien] ","Etude de marché"]
["Autre : [Espace publicitaire]","Autre"]
["Autre : [Espace publicitaire] ","Autre"]
["AUTRE : [ETUDE CLINIQUE] ","Recherche Clinique"]
["Autre : [ETUDE DE MARCHE] ","Etude de marché"]
["Autre : [EXPERT CONSULTANT] ","Expert"]
["Autre : [Expertise] ","Expert"]
["Autre : [Face face] ","Autre"]
["AUTRE : [HOSPITALITÉ EVENEMENT SCIENTIFIQUE] ","Hospitalité"]
["Autre : [Hospitalité Evenement]","Hospitalité"]
["AUTRE : [HOSPITALITE EVENEMENT] ","Hospitalité"]
["Autre : [Hospitalité Evenement] ","Hospitalité"]
["Autre : [Hospitalité Genzyme] ","Hospitalité"]
["Autre : [Hospitalité] ","Hospitalité"]
["AUTRE : [INTERVENANT]","A définir"]
["AUTRE : [INTERVENANT] ","Orateur"]
["Autre : [Invitation individuelle]","Autre"]
["Autre : [Invitation individuelle] ","Autre"]
["Autre : [Location de stand / Congrès / Autre] ","Réunion professionnelle"]
["Autre : [Marketing]","Etude de marché"]
["Autre : [Marketing] ","Etude de marché"]
["Autre : [Opération SA/Journée-Soirée] ","Autre"]
["Autre : [Opérations Genzyme] ","Autre"]
["Autre : [Orateur]","Orateur"]
["Autre : [Orateur] ","Orateur"]
["Autre : [ORATEURS MODERATEURS]","Orateur"]
["AUTRE : [PARTENARIAT] ","Autre"]
["AUTRE : [PARTICIPATION RÉUNION SCIENTIFIQUE]","Réunion professionnelle"]
["AUTRE : [PARTICIPATION RÉUNION SCIENTIFIQUE] ","Réunion professionnelle"]
["AUTRE : [PARTICIPATION R�ION SCIENTIFIQUE]","Réunion professionnelle"]
["AUTRE : [PARTICIPATION R�ION SCIENTIFIQUE] ","Réunion professionnelle"]
["AUTRE : [PRESTATION DE SERVICE] ","Conseil"]
["Autre : [Recherche biomédicale]","Recherche Clinique"]
["Autre : [Recherche biomédicale] ","Recherche Clinique"]
["Autre : [Recherche/Développement]","Recherche Clinique"]
["Autre : [Recherche/Développement] ","Recherche Clinique"]
["Autre : [RECHERCHE] ","Recherche Clinique"]
["Autre : [Rédaction d'articles scientifiques] ","Rédacteur"]
["Autre : [Repas] ","Hospitalité"]
["Autre : [Réunion]","Réunion professionnelle"]
["Autre : [Réunion] ","Réunion professionnelle"]
["Autre : [RP Prédéclarée Hospitalité] ","Hospitalité"]
["AUTRE : [RP Table ronde actu Rhumatologie] ","Réunion professionnelle"]
["AUTRE : [RP TFI] ","Orateur"]
["Autre : [STAFF]","Réunion professionnelle"]
["Autre : [STAFF] ","Réunion professionnelle"]
["AUTRE : [STAND/TABLE] ","Réunion professionnelle"]
["Autre : 3116001; site 101; ","Autre"]
["Autre : Accord d'Orateur","Orateur"]
["Autre : Accord d'Orateur ","Orateur"]
["Autre : ACHAT / LOCATION DE STAND ","Autre"]
["Autre : ACHAT/LOCATION DE STAND ","Autre"]
["Autre : Auteur - rédacteur ","Rédacteur"]
["Autre : AUTRE","Autre"]
["Autre : AUTRE ","Autre"]
["Autre : AUTRE / HOSPITALITES ","Hospitalité"]
["Autre : AUTRE / STAND","Réunion professionnelle"]
["Autre : AUTRE / STAND ","Autre"]
["Autre : Autre : ","Autre"]
["Autre : AUTRE : [ CONSEIL / EXPERTISE SCIENTIFIQUE ] ","Conseil"]
["Autre : Autre : [ EPU ] ","Réunion professionnelle"]
["Autre : Autre : [ Expert ]","Expert"]
["Autre : Autre : [ Expert ] ","Expert"]
["Autre : AUTRE : [ HOSPITALITE ] ","Hospitalité"]
["Autre : Autre : [ hospitalité liée à une manifestation scientifique ] ","Hospitalité"]
["Autre : Autre : [ Location de stand ] ","Réunion professionnelle"]
["Autre : Autre : [ Manifestation professionnelle ]","Réunion professionnelle"]
["Autre : Autre : [ Manifestation professionnelle ] ","Réunion professionnelle"]
["Autre : Autre : [ Orateur / Intervenant ]","Orateur"]
["Autre : Autre : [ Orateur / Intervenant ] ","Orateur"]
["Autre : Autre : [ Parrainage ] ","Autre"]
["Autre : Autre : [ Partenariat ] ","Autre"]
["Autre : Autre : [ Prestation ] ","Conseil"]
["Autre : AUTRE : [ RECHERCHE SCIENTIFIQUE ] ","Recherche Clinique"]
["Autre : Autre : [ Reunion professionnelle ]","Réunion professionnelle"]
["Autre : Autre : [ Réunion professionnelle ]","Réunion professionnelle"]
["Autre : Autre : [ Reunion professionnelle ] ","Réunion professionnelle"]
["Autre : Autre : [ Réunion professionnelle ] ","Réunion professionnelle"]
["Autre : Autre : [Autre] ","Autre"]
["Autre : AUTRE : [AVENANT ENQUETE] ","Etude de marché"]
["Autre : Autre : [collaboration scientifique à titre gratuit] ","Expert"]
["Autre : Autre : [Collaboration Scientifique non remuneree] ","Expert"]
["Autre : AUTRE : [COLLABORATION SCIENTIFIQUE]","Expert"]
["Autre : Autre : [Collaboration Scientifique] ","Expert"]
["Autre : Autre : [Communication scientifique]","Expert"]
["Autre : Autre : [Communication scientifique] ","Expert"]
["Autre : Autre : [Conseil communication] ","Conseil"]
["Autre : Autre : [Consultant (HCP)]","Conseil"]
["Autre : Autre : [Consultant (HCP)] ","Conseil"]
["Autre : AUTRE : [CONSULTANT] ","Conseil"]
["Autre : Autre : [Contrat autre] ","Autre"]
["Autre : AUTRE : [CONTRAT DE COLLABORATION SCIENTIFIQUE] ","Expert"]
["Autre : AUTRE : [CONTRAT DE COLLABORATION] ","Expert"]
["Autre : Autre : [Contrat de conseil & prestation]","Conseil"]
["Autre : AUTRE : [CONTRAT DE CONSEIL & PRESTATION] ","Conseil"]
["Autre : Autre : [Contrat de conseilprestation] ","Conseil"]
["Autre : Autre : [CONTRAT DE CONSULTANT] ","Conseil"]
["Autre : AUTRE : [CONTRAT DE PARTENARIAT - LOCATION DE STAND] ","Réunion professionnelle"]
["Autre : AUTRE : [CONTRAT DE PARTENARIAT]","Autre"]
["Autre : AUTRE : [CONTRAT DE PARTENARIAT] ","Autre"]
["Autre : Autre : [Contrat de recherche] ","Recherche Clinique"]
["Autre : AUTRE : [CONTRAT D'ORATEUR] ","Orateur"]
["Autre : Autre : [CONTRAT_DE_PRESTATIONS_DE_SERVICES] ","Conseil"]
["Autre : Autre : [Convention d ’Hospitalite] ","Hospitalité"]
["Autre : AUTRE : [CONVENTION D HOSPITALITE] ","Hospitalité"]
["Autre : Autre : [Convention d’Hospitalite]","Hospitalité"]
["Autre : Autre : [Convention d’Hospitalite] ","Hospitalité"]
["Autre : Autre : [Convention d’Hospitalité] ","Hospitalité"]
["Autre : Autre : [Convention d\u0092Hospitalité] ","Hospitalité"]
["Autre : Autre : [Convention de consultant] ","Conseil"]
["Autre : Autre : [Convention de partenariat]","Autre"]
["Autre : Autre : [Convention de partenariat] ","Autre"]
["Autre : Autre : [CONVENTION D'HOSPITALITE] ","Hospitalité"]
["Autre : Autre : [Convention d'Hospitalité] ","Hospitalité"]
["Autre : AUTRE : [CONVENTION HOSPITALITE] ","Hospitalité"]
["Autre : Autre : [Convention mécénat]","Autre"]
["Autre : Autre : [Convention mécénat] ","Autre"]
["Autre : AUTRE : [CONVENTION PRESTATION DE SERVICE] ","Conseil"]
["Autre : Autre : [Conventiond'hospitalité] ","Hospitalité"]
["Autre : AUTRE : [DROIT A L IMAGE] ","Autre"]
["Autre : AUTRE : [ENQUETE] ","Etude de marché"]
["Autre : Autre : [entretien]","Etude de marché"]
["Autre : Autre : [entretien] ","Etude de marché"]
["Autre : AUTRE : [ETUDE CLINIQUE]","Recherche Clinique"]
["Autre : AUTRE : [ETUDE CLINIQUE] ","Recherche Clinique"]
["Autre : AUTRE : [ETUDE DE MARCHE] ","Etude de marché"]
["Autre : Autre : [EXPERT CONSULTANT] ","Expert"]
["Autre : Autre : [Expertise]","Expert"]
["Autre : Autre : [Expertise] ","Expert"]
["Autre : Autre : [HONORAIRES ou CONTRAT] ","Autre"]
["Autre : Autre : [HONORAIRES] ","Autre"]
["Autre : Autre : [Hospitalité Evenement Scientifique] ","Réunion professionnelle"]
["Autre : Autre : [Hospitalité Evenement]","Hospitalité"]
["Autre : AUTRE : [HOSPITALITE EVENEMENT] ","Hospitalité"]
["Autre : Autre : [Hospitalité Evenement] ","Hospitalité"]
["Autre : Autre : [HOSPITALITE] ","Hospitalité"]
["Autre : Autre : [Hospitalité] ","Hospitalité"]
["Autre : AUTRE : [INTERVENANT] ","Orateur"]
["Autre : Autre : [Lettre/mail Intervenant] ","Autre"]
["Autre : AUTRE : [LOCATION DE STAND]","Réunion professionnelle"]
["Autre : AUTRE : [LOCATION DE STAND] ","Réunion professionnelle"]
["Autre : AUTRE : [LOCATION ESPACE DE CONFERENCE]","Autre"]
["Autre : AUTRE : [LOCATION ESPACE DE CONFERENCE] ","Autre"]
["Autre : AUTRE : [LOCATION ESPACE STAND]","Réunion professionnelle"]
["Autre : AUTRE : [LOCATION ESPACE STAND] ","Réunion professionnelle"]
["Autre : Autre : [Opération SA/Journée-Soirée] ","Hospitalité"]
["Autre : Autre : [Orateur]","Orateur"]
["Autre : Autre : [Orateur] ","Orateur"]
["Autre : Autre : [Partenariat / Collaboration scientifique]","Autre"]
["Autre : Autre : [Partenariat / Collaboration scientifique] ","Expert"]
["Autre : Autre : [Partenariat scientifique] ","Autre"]
["Autre : AUTRE : [PARTENARIAT/STAND] ","Réunion professionnelle"]
["Autre : Autre : [PARTENARIAT] ","Autre"]
["Autre : AUTRE : [PARTICIPATION RÉUNION SCIENTIFIQUE]","Réunion professionnelle"]
["Autre : AUTRE : [PARTICIPATION RÉUNION SCIENTIFIQUE] ","Réunion professionnelle"]
["Autre : AUTRE : [PARTICIPATION R�ION SCIENTIFIQUE]","Autre"]
["Autre : AUTRE : [PARTICIPATION R�ION SCIENTIFIQUE] ","Réunion professionnelle"]
["Autre : AUTRE : [PRESTATION DE SERVICE] ","Conseil"]
["Autre : AUTRE : [PRESTATION DE SERVICES] ","Conseil"]
["Autre : AUTRE : [PRESTATIONS DE SERVICE] ","Conseil"]
["Autre : AUTRE : [PRESTATIONS DE SERVICES]","Conseil"]
["Autre : AUTRE : [PROJET] ","Autre"]
["Autre : Autre : [Recherche biomédicale] ","Recherche Clinique"]
["Autre : Autre : [Recherche/Développement]","Recherche Clinique"]
["Autre : Autre : [Recherche/Développement] ","Recherche Clinique"]
["Autre : Autre : [Repas] ","Autre"]
["Autre : Autre : [Réunion] ","Réunion professionnelle"]
["Autre : Autre : [RP Prédéclarée Hospitalité] ","Hospitalité"]
["Autre : Autre : [RP VACCINER EN 2012 : Q/R] ","Autre"]
["Autre : Autre : [RP] ","Autre"]
["Autre : Autre : [Stand] ","Réunion professionnelle"]
["Autre : AUTRE : ASSISTANCE ","Autre"]
["Autre : AUTRE : CANCER DU POUMON EGFR MUTE ","Expert"]
["Autre : AUTRE : CONSULTANT SCIENTIFIQUE ","Conseil"]
["Autre : Autre : Contrat consultant ","Conseil"]
["Autre : Autre : contrat de collaboration ","Autre"]
["Autre : AUTRE : CONTRAT DE PRESTATIONS DE SERVICES ","Conseil"]
["Autre : Autre : Contrat de Sponsoring Evènement Commercial ","Autre"]
["Autre : Autre : Contrat de Visites sur Site ","Autre"]
["Autre : AUTRE : CONVENTION DE RECHERCHE ","Recherche Clinique"]
["Autre : AUTRE : CONVENTION D'HOSPITALITE ","Hospitalité"]
["Autre : AUTRE : CONVENTION D'HOSPITALITE ET DE COLLABORATION SCIENTIFIQUE ","Expert"]
["Autre : AUTRE : CONVENTION FINANCIERE DE RECHERCHE 14861A","Recherche Clinique"]
["Autre : Autre : Dépôt Vente ","Autre"]
["Autre : autre : enquête téléphonique ","Etude de marché"]
["Autre : autre : enquête web ","Etude de marché"]
["Autre : Autre : Etude de marché","Etude de marché"]
["Autre : Autre : ETUDE DE MARCHE ","Etude de marché"]
["Autre : Autre : Etude de marché ","Etude de marché"]
["Autre : AUTRE : EXPERT INTERVENANT ","Orateur"]
["Autre : AUTRE : EXPERTISE PARTAGEE ","Expert"]
["Autre : Autre : HOSPITALITE RP ","Hospitalité"]
["Autre : Autre : Intervenant (Orateur/ ModÃ©rateur/ PrÃ©sident...) ","Orateur"]
["Autre : Autre : Intervenant (Orateur/ Modérateur/ Président...)","Orateur"]
["Autre : Autre : Intervenant (Orateur/ Modérateur/ Président...) ","Orateur"]
["Autre : AUTRE : LOCATION DE STAND ","Réunion professionnelle"]
["Autre : AUTRE : MANIFESTATION DE PROMOTION ","Orateur"]
["Autre : Autre : Manifestation Scientifique","Réunion professionnelle"]
["Autre : Autre : Manifestation Scientifique ","Réunion professionnelle"]
["Autre : AUTRE : ORATEUR","Orateur"]
["Autre : AUTRE : ORATEUR ","Orateur"]
["Autre : Autre : Partenariat","Autre"]
["Autre : AUTRE : Partenariat ","Autre"]
["Autre : AUTRE : PARTICIPATION A MANIFESTATION SCIENTIFIQUE","Réunion professionnelle"]
["Autre : AUTRE : PARTICIPATION A MANIFESTATION SCIENTIFIQUE ","Réunion professionnelle"]
["Autre : Autre : Prestation de service ","Conseil"]
["Autre : AUTRE : PRESTATION DE SERVICE POUR ROCHE ","Conseil"]
["Autre : AUTRE : PRÊT DE MATERIEL ","Autre"]
["Autre : AUTRE : REFLEXION DANS LE DOMAINE DU CANCER GASTRIQUE METASTASE HER2+ ","Expert"]
["Autre : AUTRE : REFLEXION SCIENTFIQUE AUTOUR DE L'IMMUNOTHERAPIE DANS LA PRISE EN CHARGE DU CANCER BRONCHIQUE ","Expert"]
["Autre : Autre : Réunion professionnelle ou scientifique","Réunion professionnelle"]
["Autre : Autre : Reunion professionnelle ou scientifique ","Réunion professionnelle"]
["Autre : Autre : Réunion professionnelle ou scientifique ","Réunion professionnelle"]
["Autre : Autre : Réunion scientifique ","Réunion professionnelle"]
["Autre : Autre : site de référence ","Autre"]
["Autre : Autre : Stand ","Réunion professionnelle"]
["Autre : Autre : Stand location ","Autre"]
["Autre : Autre :[Collaboration Scientifique] ","Expert"]
["Autre : Autre :Contrat de location de stand","Réunion professionnelle"]
["Autre : Autre :Contrat de location de stand ","Réunion professionnelle"]
["Autre : Autre :Contrat de prestation de service ","Conseil"]
["Autre : AUTRE :RECHERCHE BIOMEDICALE ","Recherche Clinique"]
["Autre : AUTRE [CONNEXION] ","Autre"]
["Autre : AUTRE [CONTRAT D ORATEUR]","Orateur"]
["Autre : AUTRE [CONTRAT D ORATEUR] ","Orateur"]
["Autre : AUTRE [CONTRAT DE CONSULTANT]","Conseil"]
["Autre : AUTRE [CONTRAT DE CONSULTANT] ","Conseil"]
["Autre : Autre [Contrat de prestation de service étude clinique n°CH/12RPC095/00] ","Recherche Clinique"]
["Autre : Autre [Contrat de prestation de service First Addendum to Clinical Trial Agreement] ","Recherche Clinique"]
["Autre : AUTRE [CONTRAT ORATEUR] ","Orateur"]
["Autre : AUTRE [CONVENTION D EXPERT] ","Expert"]
["Autre : AUTRE [CONVENTION D HOSPITALITE]","Hospitalité"]
["Autre : AUTRE [CONVENTION D HOSPITALITE] ","Hospitalité"]
["Autre : Autre [CONVENTION D ORATEUR] ","Orateur"]
["Autre : AUTRE [CONVENTION DE PARTENARIAT] ","Autre"]
["Autre : AUTRE [CONVENTION HOSPITALITE] ","Hospitalité"]
["Autre : AUTRE [LOCATION DE STAND] ","Réunion professionnelle"]
["Autre : AUTRE [PRESTATIONS DE SERVICE]","Conseil"]
["Autre : AUTRE [PRESTATIONS DE SERVICE] ","Conseil"]
["Autre : AUTRE ETUDE DE MARCHE","Etude de marché"]
["Autre : AUTRE ETUDE DE MARCHE ","Etude de marché"]
["Autre : AUTRE: [CONTRAT DE COLLABORATION SCENTIFIQUE] ","Expert"]
["Autre : AUTRE: [CONTRAT DE COLLABORATION SCIENTIFIQUE]","Expert"]
["Autre : AUTRE: [CONTRAT DE COLLABORATION SCIENTIFIQUE] ","Expert"]
["Autre : AUTRE: [CONTRAT DE PRESTATIONS DE SERVICES] ","Conseil"]
["Autre : Autre: [Convention d'hospitalité] ","Hospitalité"]
["Autre : AUTRE: [CONVENTION HOSPITALIERE] ","Autre"]
["Autre : AUTRE: [CONVENTION HOSPITALITE]","Hospitalité"]
["Autre : AUTRE: [CONVENTION HOSPITALITE] ","Hospitalité"]
["Autre : Autre: [convention recherche clinique 3 hôpitaux : la Pitié, Georges Pompidou, henri Mondor Créteil ] ","Recherche Clinique"]
["Autre : AUTRE: [DONS] ","Autre"]
["Autre : AUTRE: [ETUDE DE MARCHE] ","Etude de marché"]
["Autre : AUTRE: [HOSPITALITE] ","Hospitalité"]
["Autre : Autre: [Prestation de service] ","Conseil"]
["Autre : Autre: Collaboration pour une Etude de Marché ","Etude de marché"]
["Autre : Autre: Convention Etablissement de Santé/Promoteur dans le cadre d'une recherche implqiuant la personne humaine ","Recherche Clinique"]
["Autre : Autre: Etude observationnelle ","Recherche Clinique"]
["Autre : AUTRE: ETUDES DE MARCHE SONDAGES","Etude de marché"]
["Autre : AUTRE: ETUDES DE MARCHE SONDAGES ","Etude de marché"]
["Autre : Autre: Intervenant ","Orateur"]
["Autre : Autre: Orateur ","Orateur"]
["Autre : Autre: Phone consult ","Autre"]
["Autre : AUTRE: PROJET DE RECHERCHE CLINIQUE : ADSORPTION EXTRACORPORELLE DE SFLT1 POUR PERMETTRE LA NAISSANCE AU DELA DE 26 SEMAINE D'AMENORRHEE DES FŒTUS EXPOSES IN UTERO A UNE PREECLAMPSIE SEVERE ET PRECOCE. ","Recherche Clinique"]
["Autre : AUTRE: RECHERCHE ","Recherche Clinique"]
["Autre : AUTRE:[ETUDE CLINIQUE] ","Recherche Clinique"]
["Autre : AUTRE:[Frais fixes, surcoûts et facturation des prestations d'investigation (investigateur : Pr Labetoulle)] ","Recherche Clinique"]
["Autre : AUTRE:[FRAIS SUPPLEMENTAIRES SUITE A L'OUVERTURE DE 2 NOUVEAUX CENTRES] ","Autre"]
["Autre : AUTRE:[GRILLE DES SURCOUTS ET DETERMINATION HONORAIRES POUR INCLUSIONS DES PATIENTS] ","Recherche Clinique"]
["Autre : AUTRE:[INCLUSION DE PATIENTS ET VISITES DE SUIVI] ","Recherche Clinique"]
["Autre : AUTRE:[SURCOUTS] ","Autre"]
["Autre : AVENANT A CONVENTION DE PRESTATION DE SERVICES ","Conseil"]
["Autre : AVENANT A LA CONVENTION DE PRESTATION DE SERVICES ","Conseil"]
["Autre : Avenant à la convention de recherche ","Recherche Clinique"]
["Autre : Avenant CONV ref. MANUEL_17318; site #041 Dr Kiladjian ","Recherche Clinique"]
["Autre : Board","Réunion de « Board »"]
["Autre : Board ","Réunion de « Board »"]
["Autre : Bourse d'étude, de recherche ","Recherche Clinique"]
["Autre : Collaboration en matière de Recherche ","Recherche Clinique"]
["Autre : collaboration scientifique ","Expert"]
["Autre : Collaboration Scientifique - Conseil","Conseil"]
["Autre : Collaboration Scientifique - Conseil ","Conseil"]
["Autre : CONFÉRENCE PRESSE ","Autre"]
["Autre : Congr\u008as / Symposium","Réunion professionnelle"]
["Autre : Congr\u008as / Symposium ","Réunion professionnelle"]
["Autre : CONGRES ","Réunion professionnelle"]
["Autre : Congres / Symposium","Réunion professionnelle"]
["Autre : Congrés / Symposium","Réunion professionnelle"]
["Autre : Congrès / Symposium","Réunion professionnelle"]
["Autre : CONGRES / SYMPOSIUM ","Réunion professionnelle"]
["Autre : Congrés / Symposium ","Réunion professionnelle"]
["Autre : Congrès / Symposium ","Réunion professionnelle"]
["Autre : CONGRES / SYMPOSIUM / BOARD ","Réunion professionnelle"]
["Autre : CONGRES / SYMPOSIUM / RP ","Réunion professionnelle"]
["Autre : CONGRÈS / SYMPOSIUM/ RP ","Réunion professionnelle"]
["Autre : CONGRES SYMPOSIUM ","Réunion professionnelle"]
["Autre : CONGRES/ SYMPOSIUM ","Réunion professionnelle"]
["Autre : CONGRES/SYMPO ","Réunion professionnelle"]
["Autre : CONGRES/SYMPOSIUM","Réunion professionnelle"]
["Autre : congrès/symposium","Réunion professionnelle"]
["Autre : CONGRES/SYMPOSIUM ","Réunion professionnelle"]
["Autre : congrés/symposium ","Réunion professionnelle"]
["Autre : congrès/symposium ","Réunion professionnelle"]
["Autre : congrès/symposium3 ","Réunion professionnelle"]
["Autre : CONSEIL","Conseil"]
["Autre : CONSEIL ","Conseil"]
["Autre : CONSEIL - PRESTATIONS MULTIPLES ","Conseil"]
["Autre : CONSEIL / PARTENARIAT SCIENTIFIQUE ","Conseil"]
["Autre : CONSEIL / PRESTATION ","Conseil"]
["Autre : Conseil : Invitation Board ","Réunion de « Board »"]
["Autre : Conseil : Invitation Congrès ","Réunion professionnelle"]
["Autre : Conseil : Orateur Board ","Réunion de « Board »"]
["Autre : Conseil en R&D ","Conseil"]
["Autre : CONSEIL ET COMMUNICATION MEDICO-SCIENTIFIQUE ","Conseil"]
["Autre : Conseil et Communication Médico-Scientifique ","Conseil"]
["Autre : conseil et interview ","Conseil"]
["Autre : conseil réunion scientifique ","Conseil"]
["Autre : CONSEIL SCIENTIFIQUE - BAYER USA ","Conseil"]
["Autre : Consultant ","Conseil"]
["Autre : Consultant (HCP) ","Conseil"]
["Autre : Contrat consultant","Conseil"]
["Autre : Contrat consultant ","Conseil"]
["AUTRE : CONTRAT DE COLLABORATION SCIENTIFIQUE ","Expert"]
["Autre : CONTRAT DE CONFIDENTIALITE ","Autre"]
["Autre : Contrat de conseil scientifique ","Conseil"]
["Autre : CONTRAT DE CONSULTANT ","Conseil"]
["Autre : contrat de consultant/expert/intervenant ","Orateur"]
["Autre : Contrat de Formation ","Autre"]
["Autre : CONTRAT DE LOCATION DE STAND ","Réunion professionnelle"]
["Autre : CONTRAT DE PARTENARIAT ","Autre"]
["Autre : CONTRAT DE PARTENARIAT - PRESTATION ","Conseil"]
["Autre : CONTRAT DE PRESTATION DE RECHERCHE ","Recherche Clinique"]
["Autre : CONTRAT DE PRESTATION DE SERVICE ","Conseil"]
["Autre : Contrat de prestations de service ","Conseil"]
["Autre : CONTRAT DE RECHERCHE ","Recherche Clinique"]
["Autre : Contrat de recherche interventionnelle et non-interventionnelle ","Recherche Clinique"]
["Autre : Contrat intervenant","Orateur"]
["Autre : Contrat intervenant ","Orateur"]
["Autre : CONTRAT ORATEUR ","Orateur"]
["Autre : Contrat Parrainage Inauguration ","Autre"]
["Autre : Contrat relatif au protocole de recherche ","Recherche Clinique"]
["Autre : CONTRATS D'HOSPITALITE ","Hospitalité"]
["Autre : Convention assimilé à de la recherche ","Recherche Clinique"]
["Autre : CONVENTION D HOSPITALITE","Hospitalité"]
["Autre : CONVENTION D HOSPITALITE ","Hospitalité"]
["Autre : CONVENTION D’HOSPITALITÉ","Hospitalité"]
["Autre : CONVENTION D’HOSPITALITE ","Hospitalité"]
["Autre : CONVENTION D’HOSPITALITÉ ","Hospitalité"]
["Autre : CONVENTION D'ACHAT : EVALUATION ","Autre"]
["Autre : CONVENTION D'ACHAT : FORMATION ","Autre"]
["Autre : CONVENTION DE COLLABORATION","Expert"]
["Autre : CONVENTION DE COLLABORATION ","Expert"]
["AUTRE : CONVENTION DE COLLABORATION SCIENTIFIQUE ","Expert"]
["Autre : CONVENTION DE CONSULTANT ","Conseil"]
["Autre : Convention de contibution financière pour une recherche non interventionnelle ","Recherche Clinique"]
["Autre : CONVENTION DE DONS (SUBVENTIONS) ","Autre"]
["Autre : CONVENTION DE PARTENARIAT","Expert"]
["Autre : CONVENTION DE PARTENARIAT ","Autre"]
["Autre : CONVENTION DE PARTENRIAT ","Autre"]
["Autre : CONVENTION DE PRATIQUES CHIRURGICALES ET DE CENTRE D EDUCATION ","Autre"]
["Autre : Convention de prestation de service ","Conseil"]
["Autre : CONVENTION DE PRESTATION DE SERVICES","Conseil"]
["Autre : Convention de prestation de services ","Conseil"]
["Autre : CONVENTION DE RECHERCHE","Recherche Clinique"]
["Autre : CONVENTION DE RECHERCHE ","Recherche Clinique"]
["Autre : Convention de Recherche Biomédicale ","Recherche Clinique"]
["Autre : CONVENTION DE RECHERCHE BIOMEDICALE TRIPARTITE ","Recherche Clinique"]
["Autre : Convention de recherche biomédicale. ","Recherche Clinique"]
["Autre : Convention de recherche biomédicale/Annexe: roles et responsabilité des différentes parties impliquées ","Recherche Clinique"]
["Autre : CONVENTION D'HOSPITALITÃ‰ ","Hospitalité"]
["Autre : CONVENTION D'HOSPITALITE","Hospitalité"]
["Autre : Convention d'Hospitalité","Hospitalité"]
["AUTRE : CONVENTION D'HOSPITALITE ","Hospitalité"]
["Autre : Convention d'Hospitalité ","Hospitalité"]
["AUTRE : CONVENTION D'HOSPITALITE ET DE COLLABORATION SCIENTIFIQUE ","Expert"]
["Autre : CONVENTION FINANCIERE DE RECHERCHE 14861B ","Recherche Clinique"]
["Autre : CONVENTION HOSPITALITE ","Hospitalité"]
["Autre : CONVENTION ORATEUR ","Orateur"]
["Autre : Convention pour la participation à un comité de surveillance et de suivi d’une recherche clinique ","Autre"]
["Autre : CONVENTION RECHERCHE ","Recherche Clinique"]
["Autre : Convention unique Etablissement associé version septembre 2016 ","Autre"]
["Autre : CONVENTIONS DE RECHERCHE BIO MEDICALE","Recherche Clinique"]
["Autre : CONVENTIONS DE RECHERCHE BIO MEDICALE ","Recherche Clinique"]
["Autre : Crossborder ","Autre"]
["Autre : ENGAGEMENT UNILATERAL","Autre"]
["Autre : ENGAGEMENT UNILATERAL ","Autre"]
["autre : enquête téléphonique","Etude de marché"]
["autre : enquête téléphonique ","Etude de marché"]
["autre : enquête téléphonique ","Etude de marché"]
["autre : enquête téléphonique ","Etude de marché"]
["autre : enquête web","Etude de marché"]
["autre : enquête web ","Etude de marché"]
["Autre : ESSAI CLINIQUE ","Recherche Clinique"]
["autre : ETUDE ","Etude de marché"]
["Autre : Etude clinique ","Recherche Clinique"]
["Autre : Etude clinique (Registre) ","Recherche Clinique"]
["Autre : ETUDE DE MARCHE","Etude de marché"]
["Autre : Etude de marché","Etude de marché"]
["Autre : ETUDE DE MARCHE ","Etude de marché"]
["Autre : Etude de marché ","Etude de marché"]
["Autre : étude non interventionnelle ","Recherche Clinique"]
["Autre : EXPERT","Expert"]
["Autre : EXPERT ","Expert"]
["AUTRE : EXPERT INTERVENANT","Orateur"]
["AUTRE : EXPERT INTERVENANT ","Expert"]
["AUTRE : EXPERTISE PARTAGEE ","Expert"]
["Autre : HONORAIRES ","Expert"]
["Autre : Hospitalité Congrès Symposium ","Réunion professionnelle"]
["Autre : HOSPITALITE RP/CONGRES / SYMPO","Réunion professionnelle"]
["Autre : HOSPITALITE RP/CONGRES / SYMPO ","Hospitalité"]
["Autre : Intervenant (Orateur/ ModÃ©rateur/ PrÃ©sident...) ","Orateur"]
["Autre : Intervenant (Orateur/ Modérateur/ Président...) ","Orateur"]
["Autre : Interview","Expert"]
["Autre : Interview ","Expert"]
["Autre : INVITATION ","Hospitalité"]
["Autre : LETTRE ACCORD ","Autre"]
["Autre : LOCATION DE STAND ","Réunion professionnelle"]
["Autre : LOCATION STAND ","Réunion professionnelle"]
["AUTRE : MANIFESTATION DE PROMOTION ","Autre"]
["Autre : Manifestation scientifique","Réunion professionnelle"]
["Autre : Manifestation scientifique ","Réunion professionnelle"]
["Autre : MARKETING","Conseil"]
["Autre : Marketing ","Etude de marché"]
["Autre : Marketing et Parrainage ","Autre"]
["Autre : Mise à disposition echographe ","Autre"]
["Autre : Orateur","Orateur"]
["Autre : Orateur ","Orateur"]
["Autre : ORATEUR INTERVENANT ","Orateur"]
["Autre : ORATEUR REUNION POST EULAR MONTPELLIER ","Orateur"]
["Autre : ORATEUR RP/CONGRES/SYMPO ","Orateur"]
["Autre : ORATEUR RP/CONGRES/SYMPOSIUM ","Orateur"]
["Autre : ORATEUR SOIREE EPU \"Actualités sur les Biothérapies\" ","Orateur"]
["Autre : ORATEUR SYMPOSIUM ARIAD SFH ","Orateur"]
["Autre : ORATEUR/MODERATEUR ","Orateur"]
["AUTRE : PARTENARIAT ","Autre"]
["Autre : Partenariat / Collaboration scientifique ","Autre"]
["Autre : PARTENARIAT MEDICAL ","Expert"]
["Autre : PARTENARIAT RECHERCHE ","Recherche Clinique"]
["AUTRE : PARTICIPATION A MANIFESTATION SCIENTIFIQUE","Réunion professionnelle"]
["AUTRE : PARTICIPATION A MANIFESTATION SCIENTIFIQUE ","Orateur"]
["Autre : Participation à une étude de marché ","Etude de marché"]
["Autre : PARTICIPATION A UNE REUNION SCIENTIFIQUE","Réunion professionnelle"]
["Autre : PARTICIPATION REUNION SCIENTIFIQUE","Réunion professionnelle"]
["Autre : PARTICIPATION REUNION SCIENTIFIQUE ","Réunion professionnelle"]
["Autre : PRESTATION CONSEIL SCIENTIF/ PARTICIPATION BOARD ","Réunion de « Board »"]
["Autre : Prestation de service","Conseil"]
["Autre : Prestation de service ","Conseil"]
["Autre : PRESTATION EVENEMENTIELLE (STAND, AUTRE) ","Réunion professionnelle"]
["Autre : PRESTATION SERVICE","Conseil"]
["Autre : PRESTATION SERVICE ","Conseil"]
["Autre : prestations de services ","Conseil"]
["Autre : PRESTATIONS DE SERVICES AVEC DES PERSONNES MORALES ","Conseil"]
["Autre : PRESTATIONS DE SERVICES PRESTATAIRE DE SERVICE DANS LE SECTEUR PHARMACEUTIQUE ","Conseil"]
["Autre : Pret d'un instrument ","Autre"]
["Autre : PUBLICITE ","Autre"]
["Autre : PUBLICITE STAND ","Réunion professionnelle"]
["Autre : RÃ©union scientifique ","Réunion professionnelle"]
["Autre : REALISATION D'UNE ENQUETE ","Etude de marché"]
["Autre : REALISATION D'UNE ENQUÊTE ","Etude de marché"]
["Autre : RECHERCHE ","Recherche Clinique"]
["Autre : Recherche - Dr. Bahi ","Recherche Clinique"]
["Autre : Recherche - Dr. Bourgeois ","Recherche Clinique"]
["Autre : Recherche - Dr. Nabbout ","Recherche Clinique"]
["Autre : RECHERCHE - ETUDE OBSERVATIONNELLE - OBSERVATEUR","Recherche Clinique"]
["Autre : RECHERCHE - ETUDE OBSERVATIONNELLE - OBSERVATEUR ","Etude de marché"]
["Autre : RECHERCHE - ETUDE SALT-II ","Recherche Clinique"]
["Autre : RECHERCHE AVENANT ","Recherche Clinique"]
["Autre : RECHERCHE BIOMEDICALE","Recherche Clinique"]
["Autre : RECHERCHE BIOMÉDICALE","Recherche Clinique"]
["Autre : RECHERCHE BIOMEDICALE ","Recherche Clinique"]
["Autre : recherche biomédicale ","Recherche Clinique"]
["Autre : RECHERCHE BIOMEDICALE - 11001 ","Recherche Clinique"]
["Autre : Recherche biomédicale - Avenant n° 1","Recherche Clinique"]
["Autre : Recherche biomédicale - Avenant n° 1 ","Recherche Clinique"]
["Autre : Recherche biomédicale - Avenant n° 2 ","Recherche Clinique"]
["Autre : Recherche biomédicale - convention prêt de matériel ","Recherche Clinique"]
["Autre : RECHERCHE BIOMEʄICALE ","Recherche Clinique"]
["Autre : Recherche CH/13HAP083/00 ","Recherche Clinique"]
["Autre : RECHERCHE CLINIQUE","Recherche Clinique"]
["Autre : Recherche Clinique ","Recherche Clinique"]
["Autre : RECHERCHE CLINIQUE POUR LE COMPTE DE PFIZER INC ","Recherche Clinique"]
["Autre : Recherche et Développement ","Recherche Clinique"]
["Autre : Recherche et Evaluation","Recherche Clinique"]
["Autre : Recherche et Evaluation ","Recherche Clinique"]
["Autre : recherche impliquant la personne humaine - surcoûts hospitaliers (étude LUM001-304) ","Recherche Clinique"]
["Autre : Recherche impliquant la personne humaine (Etude PA101-SM-02) ","Recherche Clinique"]
["Autre : Recherche impliquant la personne humaine (étude UX023-CL303) ","Recherche Clinique"]
["Autre : Recherche impliquant la personne humaine (étude UX023-CL304) ","Recherche Clinique"]
["Autre : Recherche impliquant la personne humaine (graspanc 2013-03)","Recherche Clinique"]
["Autre : Recherche impliquant la personne humaine (graspanc 2013-03) ","Recherche Clinique"]
["Autre : recherche impliquant la personne humaine (prestations de l'investigateur) - étude LUM304 ","Recherche Clinique"]
["Autre : recherche medicale ","Recherche Clinique"]
["Autre : RECHERCHE PRET ","Recherche Clinique"]
["Autre : RECHERCHE SCIENTIFIQUE ","Recherche Clinique"]
["Autre : Recherche/Développement ","Recherche Clinique"]
["Autre : RECHERCHE-ETUDE FUJI","Recherche Clinique"]
["Autre : RECHERCHE-ETUDE FUJI ","Recherche Clinique"]
["AUTRE : REFLEXION SCIENTFIQUE EVENEMENT INTERDISCIPLINAIRE ","Conseil"]
["Autre : REFLEXION SCIENTIFIQUE AUTOUR DE LA PRISE EN CHARGE DU CANCER DU REIN ","Expert"]
["Autre : Research agreement ","Recherche Clinique"]
["Autre : Reunion Medicale","Réunion professionnelle"]
["Autre : Reunion Medicale ","Réunion professionnelle"]
["Autre : Reunion professionnelle ou scientifique","Réunion professionnelle"]
["Autre : Réunion professionnelle ou scientifique","Réunion professionnelle"]
["Autre : Reunion professionnelle ou scientifique ","Réunion professionnelle"]
["Autre : Réunion professionnelle ou scientifique ","Réunion professionnelle"]
["Autre : Réunion scientifique","Réunion professionnelle"]
["Autre : REUNION SCIENTIFIQUE ","Réunion professionnelle"]
["Autre : Réunion scientifique ","Réunion professionnelle"]
["Autre : RP de type EPU (2007-01)","Réunion professionnelle"]
["Autre : RP de type EPU (2007-01)","Orateur"]
["Autre : RP de type EPU (2007-01) ","Réunion professionnelle"]
["Autre : soutien à la recherche biomédicale ","Recherche Clinique"]
["Autre : SUBVENTION ","Autre"]
["Autre : subventions","Autre"]
["Autre : subventions ","Autre"]
["Autre : surcout Loi Huriet ","Recherche Clinique"]
["Autre : SURCOUTS HOSPITALIERS ","Autre"]
["Autre : Surcoûts Recherche Biomédicale ","Recherche Clinique"]
["Autre : SUVENTIONS ","Autre"]
["Autre : VISITE USINE ","Autre"]
["AUTRE [CONNEXION]","Autre"]
["AUTRE [CONNEXION] ","Autre"]
["AUTRE [CONTRAT D ORATEUR]","Orateur"]
["AUTRE [CONTRAT D ORATEUR] ","Orateur"]
["AUTRE [CONTRAT DE CONSULTANT]","Conseil"]
["AUTRE [CONTRAT DE CONSULTANT] ","Conseil"]
["AUTRE [CONTRAT DE PRESTATION DE SERVICE] ","Conseil"]
["AUTRE [CONTRAT ORATEUR]","Orateur"]
["AUTRE [CONTRAT ORATEUR] ","Orateur"]
["AUTRE [CONVENTION D EXPERT]","Expert"]
["AUTRE [CONVENTION D EXPERT] ","Expert"]
["Autre [CONVENTION D HOSPITALITE]","Hospitalité"]
["AUTRE [CONVENTION D HOSPITALITE] ","Hospitalité"]
["AUTRE [CONVENTION D ORATEUR]","Orateur"]
["AUTRE [CONVENTION D ORATEUR] ","Orateur"]
["AUTRE [CONVENTION DE PARTENARIAT] ","Autre"]
["AUTRE [CONVENTION HOSPITALITE] ","Hospitalité"]
["AUTRE [EXPERT]","Expert"]
["AUTRE [EXPERT] ","Expert"]
["AUTRE [ORATEUR] ","Orateur"]
["AUTRE ETUDE DE MARCHE","Etude de marché"]
["AUTRE ETUDE DE MARCHE ","Etude de marché"]
["AUTRE: [CONTRAT DE COLLABORATION SCENTIFIQUE]","Expert"]
["AUTRE: [CONTRAT DE COLLABORATION SCENTIFIQUE] ","Expert"]
["AUTRE: [CONTRAT DE COLLABORATION SCIENTIFIQUE]","Expert"]
["AUTRE: [CONTRAT DE COLLABORATION SCIENTIFIQUE] ","Expert"]
["AUTRE: [CONTRAT DE PRESTATIONS DE SERVICES] ","Conseil"]
["AUTRE: [CONTRAT INVESTIGATEUR] ","Recherche Clinique"]
["Autre: [Convention d'hospitalité] ","Hospitalité"]
["AUTRE: [CONVENTION HOSPITALITE]","Hospitalité"]
["AUTRE: [CONVENTION HOSPITALITE] ","Hospitalité"]
["AUTRE: [CONVENTION] ","Autre"]
["AUTRE: [DONS] ","Autre"]
["AUTRE: [ETUDE DE MARCHE]","Etude de marché"]
["AUTRE: [ETUDE DE MARCHE] ","Etude de marché"]
["AUTRE: [HOSPITALITE] ","Hospitalité"]
["AUTRE: [PARTENARIAT] ","Autre"]
["AUTRE: 27EME JOURNEE SCIENTIFIQUE DU GRIO ","Réunion professionnelle"]
["Autre: Collaboration pour une Etude de Marché","Etude de marché"]
["Autre: Collaboration pour une Etude de Marché","Etude de marché"]
["AUTRE: COLLABORATION POUR UNE ETUDE DE MARCHÉ ","Etude de marché"]
["AUTRE: CONVENTION D'HOSPITALITE ","Hospitalité"]
["AUTRE: DON ","Autre"]
["autre: ETUDE ","Etude de marché"]
["AUTRE: ETUDES DE MARCHE SONDAGES ","Etude de marché"]
["Autre: Intervenant ","Orateur"]
["AUTRE: PARTENARIAT ","Autre"]
["AUTRE: PRESTATION ","Conseil"]
["autre: REDACTION D'ARTICLES ","Rédacteur"]
["AUTRE:[CONVENTION HOSPITALITE] ","Hospitalité"]
["Autre:[RP] ","Autre"]
["AUTRE[EXPERTISE] ","Expert"]
["Autre[INTERVENTION EPU LIMOGES 13/01/2015] ","Orateur"]
["Autre[INTERVENTION REUNION BEZIERS 21 MAI] ","Réunion professionnelle"]
["Autre[INTERVENTION REUNION BEZIERS 21 MAI] ","Orateur"]
["Autre[INTERVENTION REUNION P EULAR LIMOGES 8 OCTOBRE 15] ","Orateur"]
["Autre[INTERVENTION REUNION P EULAR LYON LE 2 JUILLET] ","Orateur"]
["Autre[ORATEUR REUNION POST EULAR AGEN] ","Orateur"]
["Autre[ORATEUR REUNION POST EULAR BORDEAUX] ","Orateur"]
["Autre[ORATEUR REUNION POST EULAR PARIS 94] ","Orateur"]
["Autre[ORATEUR REUNION POST EULAR PARIS] ","Orateur"]
["Autre[ORATEUR REUNION POST EULAR ROUEN] ","Orateur"]
["Autre[ORATEUR REUNION POST EULAR ST ETENNE 18 SEPTEMBRE 14] ","Orateur"]
["Autre[ORATEUR REUNION POST EULAR TOULOUSE] ","Orateur"]
["Autre[ORATEUR REUNION POST EULAR TOURS]","Orateur"]
["AUTRE_CONNEXION ","Autre"]
["Autres ","Autre"]
["Autres prestations de services","Conseil"]
["Autres prestations de services ","Conseil"]
["AVENANT 2 CONVENTION DE RECHERCHE ","Recherche Clinique"]
["Board ","Réunion de « Board »"]
["Collaboration Editions Scientifiques ","Rédacteur"]
["Collaboration Scientifique - Conseil ","Conseil"]
["COLLABORATION SCIENTIFIQUE ET PROFESSIONNELLE ","Expert"]
["Comite Echange scientifique ","Expert"]
["Comite Expert","Expert"]
["Comite Experts ","Expert"]
["COMITE SCIENTIFIQUE ","Expert"]
["COMITÉ SCIENTIFIQUE ","Expert"]
["CONFÉRENCE PRESSE ","Autre"]
["CONFÉRENCE PRESSE ","Orateur"]
["Congès / Symposium ","Réunion professionnelle"]
["Congr\u008as / Symposium","Réunion professionnelle"]
["Congr\u008as / Symposium ","Réunion professionnelle"]
["CongrÃ¨s / Symposium ","Réunion professionnelle"]
["CONGRES","Réunion professionnelle"]
["Congrès","Réunion professionnelle"]
["CONGRES ","Réunion professionnelle"]
["Congrès ","Réunion professionnelle"]
["CONGRES / SYMPOSIUM","Réunion professionnelle"]
["Congrès / symposium","Réunion professionnelle"]
["Congres / Symposium ","Réunion professionnelle"]
["Congrès / Symposium ","Réunion professionnelle"]
["CONGRES / SYMPOSIUM / BOARD ","Réunion de « Board »"]
["CONGRÈS / SYMPOSIUM/ RP ","Réunion professionnelle"]
["CONGRES REUNION SCIENTIFIQUE STRASBOURG ","Réunion professionnelle"]
["CONGRES SYMPOSIUM","Réunion professionnelle"]
["CONGRES SYMPOSIUM ","Réunion professionnelle"]
["CONGRES, SYMPOSIUM ","Réunion professionnelle"]
["CONGRES/SYMPO ","Réunion professionnelle"]
["CONGRES/SYMPOSIUM","Réunion professionnelle"]
["CONGRES/SYMPOSIUM ","Réunion professionnelle"]
["Congrès/symposium ","Réunion professionnelle"]
["congrès-symposium","Réunion professionnelle"]
["congrès-symposium ","Réunion professionnelle"]
["conseil","Conseil"]
["Conseil ","Conseil"]
["CONSEIL ","Conseil"]
["Conseil : Invitation Board ","Réunion de « Board »"]
["Conseil : Invitation Congrès ","Réunion professionnelle"]
["Conseil : Orateur Board ","Réunion de « Board »"]
["Conseil : Orateur RP ","Orateur"]
["Conseil et Communication Médico-Scientifique ","Conseil"]
["Conseil Relations professionnelles ","Conseil"]
["Conseil réunion d'experts ","Conseil"]
["CONSEIL SCIENTIFIQUE ","Expert"]
["Conseil, réunion d'experts ","Conseil"]
["Consultance ","Conseil"]
["Consultance (rhumatologie) ","Conseil"]
["CONSULTANT ","Conseil"]
["Consultation Scientifique ","Conseil"]
["Contrat / expertise autre que scientifique","Expert"]
["Contrat / expertise autre que scientifique ","Expert"]
["Contrat de conseil scientifique","Expert"]
["Contrat de conseil scientifique ","Expert"]
["CONTRAT DE CONSULTANT ","Conseil"]
["CONTRAT DE PARTENARIAT ","Autre"]
["CONTRAT DE PRESTATION DE SERVICE ","Conseil"]
["CONTRAT DE PRESTATION DE SERVICES ","Conseil"]
["Contrat de recherche interventionnelle et non-interventionnelle ","Recherche Clinique"]
["Contrat d'essai clinique ","Recherche Clinique"]
["Contrat d'expert scientifique, contrat dans le cadre d'une recherche, contrat de consultant","Conseil"]
["Contrat d'expert scientifique, contrat dans le cadre d'une recherche, contrat de consultant ","Conseil"]
["Contrat d'intervenant à une manifestation / orateur","Orateur"]
["Contrat d'intervenant à une manifestation / orateur ","Orateur"]
["Contrat d'interview","Expert"]
["Contrat d'interview ","Expert"]
["CONTRAT D'ORATEUR ","Orateur"]
["CONTRAT ORATEUR ","Orateur"]
["CONTRATS D'HOSPITALITE","Hospitalité"]
["CONTRATS D'HOSPITALITE ","Hospitalité"]
["Convention assimilé à de la recherche ","Recherche Clinique"]
["CONVENTION D HOSPITALITE","Hospitalité"]
["CONVENTION D HOSPITALITE ","Hospitalité"]
["CONVENTION D’HOSPITALITÉ","Hospitalité"]
["CONVENTION D’HOSPITALITE ","Hospitalité"]
["CONVENTION D’HOSPITALITÉ ","Hospitalité"]
["CONVENTION DE COLLABORATION","Expert"]
["CONVENTION DE COLLABORATION ","Expert"]
["CONVENTION DE CONSULTANT ","Conseil"]
["Convention de prestation de service ","Conseil"]
["CONVENTION DE PRESTATION DE SERVICES ","Conseil"]
["CONVENTION DE RECHERCHE","Recherche Clinique"]
["CONVENTION DE RECHERCHE ","Recherche Clinique"]
["Convention de recherche biomédicale /Annexe: Roles et responsabilites des differentes parties impliquees","Recherche Clinique"]
["Convention de recherche biomédicale /Annexe: Roles et responsabilites des differentes parties impliquees ","Recherche Clinique"]
["Convention de recherche biomédicale Investigateur-Coordinateur ","Recherche Clinique"]
["CONVENTION D'HOSPITALITE","Hospitalité"]
["CONVENTION D'HOSPITALITÉ","Hospitalité"]
["CONVENTION D'HOSPITALITE ","Hospitalité"]
["CONVENTION D'HOSPITALITÉ ","Hospitalité"]
["CONVENTION D'ORATEUR RÉUNION D'ÉCHANGES SCIENTIFIQUES ","Orateur"]
["CONVENTION D'ORATEUR RÉUNION PROFESSIONNELLE ","Orateur"]
["CONVENTION HOSPITALITE ","Hospitalité"]
["CONVENTION ORATEUR ","Orateur"]
["CONVENTION RECHERCHE","Recherche Clinique"]
["CONVENTION RECHERCHE ","Recherche Clinique"]
["CONVENTIONDE RECHERCHE ","Recherche Clinique"]
["CONVENTIONS CONSEIL","Conseil"]
["CONVENTIONS ORATEUR ","Orateur"]
["Don / Mécénat","Autre"]
["Don / Mécénat ","Autre"]
["ECCEO ","Réunion professionnelle"]
["EDITION ","Rédacteur"]
["EFIC ","Réunion professionnelle"]
["Enquête / Etude / Etude de marché (hors recherche)","Etude de marché"]
["Enquête / Etude / Etude de marché (hors recherche) ","Etude de marché"]
["EPU ","Réunion professionnelle"]
["ESCEO ","Autre"]
["ÉTUDE / INTERVIEW","Etude de marché"]
["ÉTUDE / INTERVIEW ","Etude de marché"]
["ETUDE DE MARCHE","Etude de marché"]
["ETUDE DE MARCHE","Etude de marché"]
["ETUDE DE MARCHE","Etude de marché"]
["ETUDE DE MARCHE ","Etude de marché"]
["Etudes","Etude de marché"]
["Etudes ","Autre"]
["EULAR ","Réunion professionnelle"]
["Evaluation ","Autre"]
["Evaluation produit cosmétique ","Autre"]
["EXPERT","Expert"]
["EXPERT ","Expert"]
["EXPERTISE ","Expert"]
["EXPERTISE SCIENTIFIQUE","Réunion professionnelle"]
["EXPERTISE SCIENTIFIQUE ","Expert"]
["FORMATION","Formateur"]
["FORMATION ","Formateur"]
["FORMATION CONTINUE ","Autre"]
["FORMATION PERSONNEL ","Autre"]
["Formation, Conseil et Congrès ","Conseil"]
["Hospitalité","Hospitalité"]
["Hospitalité ","Hospitalité"]
["HOSPITALITE RP/CONGRES / SYMPO","Hospitalité"]
["HOSPITALITE RP/CONGRES / SYMPO ","Hospitalité"]
["HOSPITALITE RP/CONGRES/SYMPO ","Hospitalité"]
["HOSPITALITE RP/CONGRES/SYMPOSIUM","Réunion professionnelle"]
["HOSPITALITE RP/CONGRES/SYMPOSIUM ","Réunion professionnelle"]
["Inscription congrès","Réunion professionnelle"]
["Inscription congrès ","Réunion professionnelle"]
["INTERNATIONAL SYMPOSIUM ON INTRA ARTICULAR TREATMENT ","Réunion professionnelle"]
["Interview ","Etude de marché"]
["INVITATION","Hospitalité"]
["INVITATION ","Hospitalité"]
["LETTRE ACCORD","Autre"]
["LETTRE ACCORD ","Autre"]
["Manifestation scientifique - congrès - table ronde - ... (A SUP. APRES FIX INDACFOBJCNV) ","Réunion professionnelle"]
["Marketing","Etude de marché"]
["Marketing","Etude de marché"]
["MARKETING ","Etude de marché"]
["ORATEUR","Orateur"]
["ORATEUR ","Orateur"]
["ORATEUR INTERVENANT ","Orateur"]
["ORATEUR RP/CONGRES/SYMPO","Orateur"]
["Orateur RP/Congres/Sympo ","Orateur"]
["ORATEUR RP/CONGRES/SYMPOSIUM","Orateur"]
["ORATEUR RP/CONGRES/SYMPOSIUM ","Orateur"]
["Orateur symposium","Orateur"]
["Parrainage","Autre"]
["Parrainage ","Autre"]
["Partenariat","Autre"]
["Partenariat ","Autre"]
["PARTENARIAT MEDICAL ","Autre"]
["PARTICIPATION À UN COMITÉ CONSULTATIF SCIENTIFIQUE SUR LA SPÉCIALITÉ CINRYZE À PARIS LE 02/07/2013 ","Expert"]
["Participation à une étude de marché","Etude de marché"]
["Participation à une étude de marché ","Etude de marché"]
["PHYSIOPATHOLOGIE DE L'ARTHROSE ","Autre"]
["PRESTATION","Conseil"]
["PRESTATION ","Conseil"]
["PRESTATION CONSEIL SCIENTIF/ PARTICIPATION BOARD ","Conseil"]
["PRESTATION DE SERVICES ","Conseil"]
["Prestation en tant que formateur et orateur ","Formateur"]
["PRESTATION ÉVÈNEMENTIELLE (STAND, AUTRE) ","Réunion professionnelle"]
["prestation scientifique ","Conseil"]
["PRESTATION SERVICE","Conseil"]
["PRESTATION SERVICE ","Conseil"]
["PRESTATION SERVICE ","Conseil"]
["Prêt de matériel ","Autre"]
["RACHIS AQUITANE CONGRES ","Réunion professionnelle"]
["Recherche","Recherche Clinique"]
["RECHERCHE ","Recherche Clinique"]
["RECHERCHE BIOMEDICALE","Recherche Clinique"]
["RECHERCHE BIOMÉDICALE","Recherche Clinique"]
["RECHERCHE BIOMEDICALE ","Recherche Clinique"]
["recherche biomédicale ","Recherche Clinique"]
["Recherche biomédicale - Avenant n° 1 ","Recherche Clinique"]
["Recherche biomédicale - Avenant n° 2 ","Recherche Clinique"]
["Recherche biomédicale - Avenant n° 3 ","Recherche Clinique"]
["RECHERCHE CLINIQUE","Recherche Clinique"]
["Recherche Clinique ","Recherche Clinique"]
["Recherche et Développement ","Recherche Clinique"]
["RECHERCHE MARKETING ","Etude de marché"]
["Recherche non interventionnelle ou observationnelle ","Etude de marché"]
["RECHERCHE PRET ","Autre"]
["Recherche scientifique","Recherche Clinique"]
["Recherche scientifique ","Recherche Clinique"]
["REDACTEUR SCIENTIFIQUE ","Rédacteur"]
["research ","Recherche Clinique"]
["Réunion de board ","Réunion de « Board »"]
["Reunion Medicale","Réunion professionnelle"]
["Reunion Medicale ","Réunion professionnelle"]
["Reunion Professionnelle ","Réunion professionnelle"]
["Réunion Professionnelle ","Réunion professionnelle"]
["REUNION SCIENTIFIQUE","Réunion professionnelle"]
["REUNION SCIENTIFIQUE ","Réunion professionnelle"]
["REUNION SCIENTIQUE ","Réunion professionnelle"]
["SFR","Réunion professionnelle"]
["SOCIETE FRANCAISE DE RHUMATOLOGIE ","Autre"]
["Subventions ","Autre"]
["SYMPOSIUM SFH ","Réunion professionnelle"]
["VIGGO PETERSEN ","Autre"]
["WCO-IOF-ESCEO ","Réunion professionnelle"]

{"sheet":"FIRMES","index":5,"n_rows":2109,"n_cols":2,"rows_kept":2109,"cut":false,"hidden":false,"merged":[]}
["FIRME dans Transparence.sante.gouv.fr","FIRME (libellé de regroupement)"]
["22 Juillet Conseil","22 Juillet Conseil"]
["3-D Matrix Europe SAS","3-D Matrix Europe SAS"]
["3M Belgium bvba/sprl","3M Belgium bvba/sprl"]
["3M Deutschland GmbH","3M Deutschland GmbH"]
["3M France","3M France"]
["3M MAROC","3M MAROC"]
["3M United Kingdom PLC","3M United Kingdom PLC"]
["3S ORTHO","3S ORTHO"]
["4Tech Cardio Ltd","4Tech Cardio Ltd"]
["7 MED INDUSTRIE","7 MED INDUSTRIE"]
["A a Z SANTE","A a Z SANTE"]
["A DEC INTERNATIONAL INC","A DEC INTERNATIONAL INC"]
["A.I.R.","A.I.R."]
["A.MENARINI diagnostics","A.MENARINI diagnostics"]
["A.R.C. Pharma","A.R.C. Pharma"]
["A+A","A+A"]
["a2m rehateam","a2m rehateam"]
["AADAIRC","AADAIRC"]
["ABBOTT FRANCE","ABBOTT"]
["ABBOTT HEALTHCARE SAS","ABBOTT"]
["ABBOTT PRODUCTS SAS","ABBOTT"]
["AbbVie","AbbVie"]
["ABENA-FRANTEX","ABENA-FRANTEX"]
["Abiomed GmbH","Abiomed GmbH"]
["ABM","ABM"]
["abmedica","abmedica"]
["ABS-Bolton Medical","ABS-Bolton Medical"]
["accomed","accomed"]
["ACCORD HEALTHCARE FRANCE SAS","ACCORD HEALTHCARE FRANCE SAS"]
["ACCOVION SARL","ACCOVION SARL"]
["Accuray Europe","Accuray Europe"]
["ACIST Europe BV","ACIST Europe BV"]
["ACM","ACM"]
["Acorda Therapeutics, Inc.","Acorda Therapeutics, Inc."]
["ACOUSTIQUE MEDICAL DU LITTORAL","ACOUSTIQUE MEDICAL DU LITTORAL"]
["ACS-Agence Conseil Santé","ACS-Agence Conseil Santé"]
["ACS-Agence Conseil Santé","ACS-Agence Conseil Santé"]
["ACT+ Consulting","ACT+ Consulting"]
["ACTAVIS GROUP PTC EHF","ACTAVIS GROUP PTC EHF"]
["Actelion Pharmaceuticals France","Actelion"]
["Actelion Pharmaceuticals Ltd","Actelion"]
["ACTION D'ECLAT","ACTION D'ECLAT"]
["ADAIR","ADAIR"]
["ADAPSIA","ADAPSIA"]
["Adaptimmune LTD","Adaptimmune LTD"]
["ADARE PHARMACEUTICALS SAS","ADARE PHARMACEUTICALS SAS"]
["ADDMEDICA","ADDMEDICA"]
["ADEP ASSISTANCE","ADEP ASSISTANCE"]
["Adept Field Solutions","Adept Field Solutions"]
["ADIR ASSISTANCE","ADIR ASSISTANCE"]
["Adiral Assistance","Adiral Assistance"]
["ADIRAL Association d'Aide aux Traitements À Domicile","ADIRAL Association d'Aide aux Traitements À Domicile"]
["ADLER ORTHO France","ADLER ORTHO France"]
["Adler Ortho srl","Adler Ortho srl"]
["ADS ALSACE","ADS ALSACE"]
["ADS CHAMPAGNE ARDENNE","ADS CHAMPAGNE ARDENNE"]
["ADS LORRAINE","ADS LORRAINE"]
["ADVANCE SAS","ADVANCE SAS"]
["Advanced Accelerator Applications","Advanced Accelerator Applications"]
["Advanced Accelerator Applications International SA","Advanced Accelerator Applications International SA"]
["ADVANCED BIONICS SARL","ADVANCED BIONICS SARL"]
["Advanced Medical Services, AMS GmbH","Advanced Medical Services, AMS GmbH"]
["ADVICENNE","ADVICENNE"]
["Aegerion Pharmaceuticals","Aegerion Pharmaceuticals"]
["Aepodia France SARL","Aepodia France SARL"]
["AERIS Medical SAS","AERIS Medical SAS"]
["AEROGEN","AEROGEN"]
["AFFINITES SANTE","AFFINITES SANTE"]
["Agence Conseil 3P","Agence Conseil 3P"]
["agence européenne informatique","agence européenne informatique"]
["Agfa HealthCare France SA","Agfa HealthCare France SA"]
["AGFA Healthcare Imaging Agents France","AGFA Healthcare Imaging Agents France"]
["AGILENT TECHNOLOGIES FRANCE","AGILENT TECHNOLOGIES FRANCE"]
["AGIR À dom Assistance","AGIR À dom Assistance"]
["Aide aux Insuffisants Respiratoires de la Région Auvergne (A.I.R.R.A.)","Aide aux Insuffisants Respiratoires de la Région Auvergne (A.I.R.R.A.)"]
["Aide aux Insuffisants Respiratoires de la Région Auvergne (A.I.R.R.A.)","Aide aux Insuffisants Respiratoires de la Région Auvergne (A.I.R.R.A.)"]
["AIR A DOMICILE","AIR A DOMICILE"]
["AIR DE BRETAGNE","AIR DE BRETAGNE"]
["AIR DOMICILE SANTE ALPES","AIR DOMICILE SANTE ALPES"]
["AIR DOMICILE VALLEE DU RHONE","AIR DOMICILE VALLEE DU RHONE"]
["Air Liquide European Homecare Operations Services","Air Liquide European Homecare Operations Services"]
["AIR LIQUIDE MEDICAL SYSTEMS","AIR LIQUIDE MEDICAL SYSTEMS"]
["AIR LIQUIDE SANTE (INTERNATIONAL)","AIR LIQUIDE SANTE (INTERNATIONAL)"]
["AIR LIQUIDE SANTE FRANCE","AIR LIQUIDE SANTE FRANCE"]
["AIR SANTE","AIR SANTE"]
["AIRE","AIRE"]
["AIREL","AIREL"]
["AIXIAL","AIXIAL"]
["AIXPER'F","AIXPER'F"]
["AJ4MED","AJ4MED"]
["ALAIN AFFLELOU FRANCHISEUR","ALAIN AFFLELOU FRANCHISEUR"]
["ALAIR & AVD","ALAIR & AVD"]
["Alcimed GmbH","Alcimed GmbH"]
["Alcimed Inc","Alcimed Inc"]
["Alcimed SARL","Alcimed SARL"]
["Alcimed SAS","Alcimed SAS"]
["Alcimed Sprl","Alcimed Sprl"]
["Alcura France","Alcura France"]
["ALERE E-SANTE SAS","ALERE E-SANTE SAS"]
["ALERE SAS","ALERE SAS"]
["Alexion Pharma France","Alexion Pharma France"]
["ALFA WASSERMANN PHARMA","ALFA WASSERMANN PHARMA"]
["Align Technology SAS","Align Technology SAS"]
["Alimera Sciences France","Alimera Sciences France"]
["ALISEO","ALISEO"]
["Alizé Pharma SAS","Alizé Pharma SAS"]
["Alizé Pharma SAS","Alizé Pharma SAS"]
["Alizé Santé","Alizé Santé"]
["Alizé Santé","Alizé Santé"]
["ALK-Abelló","ALK-Abelló"]
["ALK-AbellÓ","ALK-AbellÓ"]
["ALKAPHARM","ALKAPHARM"]
["All Global","All Global"]
["ALLERGAN FRANCE","ALLERGAN FRANCE"]
["alliance healthcare repartition","alliance healthcare repartition"]
["ALLIANCE PHARMA FRANCE","ALLIANCE PHARMA FRANCE"]
["ALLIANCE'PERF","ALLIANCE'PERF"]
["ALLP MEDITEC","ALLP MEDITEC"]
["ALMIRALL SAS","ALMIRALL SAS"]
["ALMUS","ALMUS"]
["ALPHATEC SPINE INC","ALPHATEC SPINE INC"]
["ALPHEGA","ALPHEGA"]
["ALPINE SCIENTIFIC","ALPINE SCIENTIFIC"]
["ALSANZA sarl","ALSANZA sarl"]
["ALTEOR","ALTEOR"]
["alveol'air","alveol'air"]
["ALVIMEDICA Medical Technologie France","ALVIMEDICA Medical Technologie France"]
["AM AUDITION","AM AUDITION"]
["AMADEUS SANTE","AMADEUS SANTE"]
["AMB-I SANTE PROVENCE","AMB-I SANTE PROVENCE"]
["AMC APPAREILLAGE ET MATERIEL DE CARDIOLOGIE","AMC APPAREILLAGE ET MATERIEL DE CARDIOLOGIE"]
["American Medical Systems France","American Medical Systems France"]
["American Orthodontics","American Orthodontics"]
["AMGEN SAS","Amgen"]
["AMICUS THERAPEUTICS SAS","AMICUS THERAPEUTICS SAS"]
["AMO FRANCE SAS","AMO FRANCE SAS"]
["AMO Germany GmbH","AMO Germany GmbH"]
["AMO INC USA","AMO INC USA"]
["Amplifon Groupe France","Amplifon Groupe France"]
["AMPLITUDE","AMPLITUDE"]
["AMS 25","AMS 25"]
["AMS 70","AMS 70"]
["AMS 88","AMS 88"]
["ANERA","ANERA"]
["ANNAYAKE","ANNAYAKE"]
["ANTADIR","ANTADIR"]
["Antadir Assistance SAS","Antadir Assistance SAS"]
["ANTHOGYR","ANTHOGYR"]
["ANTILLES AUDITION GUADELOUPE","ANTILLES AUDITION GUADELOUPE"]
["AOTI Ltd","AOTI Ltd"]
["APARD","APARD"]
["apol","apol"]
["APOLLO ENDOSURGERY UK LTD","APOLLO ENDOSURGERY UK LTD"]
["Applied Medical France","Applied Medical France"]
["APROVA","APROVA"]
["APTALIS PHARMA SAS","APTALIS PHARMA SAS"]
["Aptiv Solutions","Aptiv Solutions"]
["AQUILAB","AQUILAB"]
["ARAIR Assistance","ARAIR Assistance"]
["ARAIR Assistance S.A.","ARAIR Assistance S.A."]
["ARAIRCHAR","ARAIRCHAR"]
["arard","arard"]
["ARCHIMEDES PHARMA France","ARCHIMEDES PHARMA France"]
["ARCOS","ARCOS"]
["ARGON MEDICAL DEVICES","ARGON MEDICAL DEVICES"]
["ARIAD Pharmaceuticals (France)","ARIAD Pharmaceuticals (France)"]
["ARJOHUNTLEIGH","ARJOHUNTLEIGH"]
["ARROW GENERIQUES SAS","ARROW GENERIQUES SAS"]
["ARSENAL-CDM","ARSENAL-CDM"]
["ART&COS","ART&COS"]
["ARTHES","ARTHES"]
["Arthrex SAS","Arthrex SAS"]
["Arthritis Fondation Courtin","Arthritis Fondation Courtin"]
["ArthroCare France","ArthroCare France"]
["Artialis","Artialis"]
["ARX SAS","ARX SAS"]
["ASAHI INTECC CO., LTD.","ASAHI INTECC CO., LTD."]
["Ascensia Diabetes Care France","Ascensia Diabetes Care France"]
["ASDIA","ASDIA"]
["Asept InMed","Asept InMed"]
["ASKLE SANTE","ASKLE SANTE"]
["ASPEN FRANCE","ASPEN FRANCE"]
["ASPIDE AESTHETIC","ASPIDE AESTHETIC"]
["ASPIDE MEDICAL","ASPIDE MEDICAL"]
["ASSISTANCE DU GRAND EST","ASSISTANCE DU GRAND EST"]
["ASSISTANCES MEDICALES SPECIALISEES","ASSISTANCES MEDICALES SPECIALISEES"]
["Association Françoise et Eugène MINKOWSKI pour la santé mentale des migrants","Association Françoise et Eugène MINKOWSKI pour la santé mentale des migrants"]
["Association Françoise et Eugène MINKOWSKI pour la santé mentale des migrants","Association Françoise et Eugène MINKOWSKI pour la santé mentale des migrants"]
["Association pour le Développement de l'Enseignement et des Recherches auprès des universités des centres de recherches et des entreprises d'Aquitaine (ADERA)","Association pour le Développement de l'Enseignement et des Recherches auprès des universités des centres de recherches et des entreprises d'Aquitaine (ADERA)"]
["Association pour le Développement de l'Enseignement et des Recherches auprès des universités des centres de recherches et des entreprises d'Aquitaine (ADERA)","Association pour le Développement de l'Enseignement et des Recherches auprès des universités des centres de recherches et des entreprises d'Aquitaine (ADERA)"]
["ASTELLAS PHARMA","ASTELLAS PHARMA"]
["ASTELLAS PHARMA B.V.","ASTELLAS PHARMA B.V."]
["ASTELLAS PHARMA GLOBAL DEVELOPMENT","ASTELLAS PHARMA GLOBAL DEVELOPMENT"]
["ASTELLAS PHARMA GmbH","ASTELLAS PHARMA GmbH"]
["ASTELLAS PHARMA Inc","ASTELLAS PHARMA Inc"]
["ASTELLAS PHARMA Ltd","ASTELLAS PHARMA Ltd"]
["ASTELLAS PHARMA S.A.","ASTELLAS PHARMA S.A."]
["Astellas Pharma Singapore Pte. Ltd.","Astellas Pharma Singapore Pte. Ltd."]
["ASTELLAS PHARMACEUTICALS AE","ASTELLAS PHARMACEUTICALS AE"]
["ASTON MEDICAL Anciennement SOCIETE DE GENIE MEDICAL - S.G.M.","ASTON MEDICAL Anciennement SOCIETE DE GENIE MEDICAL - S.G.M."]
["ASTRAZENECA","AstraZeneca"]
["Athersys, Inc.","Athersys, Inc."]
["Atlantic Pharmacetuicals Ltd","Atlantic Pharmacetuicals Ltd"]
["ATLANTIC SURDITE","ATLANTIC SURDITE"]
["ATLANTIS DIFFUSION","ATLANTIS DIFFUSION"]
["ATLANTIS DIFFUSION SAM","ATLANTIS DIFFUSION SAM"]
["ATOS MEDICAL SAS","ATOS MEDICAL SAS"]
["AtriCure, Inc.","AtriCure, Inc."]
["AUDARMOR","AUDARMOR"]
["Audika Groupe SA","Audika Groupe SA"]
["audio acoustique sud","audio acoustique sud"]
["AUDIOCONSULTING","AUDIOCONSULTING"]
["AUDIOELYSCAU","AUDIOELYSCAU"]
["AUDIOMEDI SAS","AUDIOMEDI SAS"]
["AudioNova France SAS","AudioNova France SAS"]
["AUDIOPTIC TRADE SERVICES","AUDIOPTIC TRADE SERVICES"]
["AUDITION 50","AUDITION 50"]
["AUDITION AQUITAINE CARBON BLANC","AUDITION AQUITAINE CARBON BLANC"]
["AUDITION B&H","AUDITION B&H"]
["AUDITION BOULEVARD MARIE","AUDITION BOULEVARD MARIE"]
["AUDITION CONSEIL FRANCE","AUDITION CONSEIL FRANCE"]
["Audition DEBRUILLE","Audition DEBRUILLE"]
["AUDITION DEBRUILLE BEZANNES","AUDITION DEBRUILLE BEZANNES"]
["AUDITION FISMES","AUDITION FISMES"]
["AUDITION GAMBETTA","AUDITION GAMBETTA"]
["AUDITION LYON EST","AUDITION LYON EST"]
["AUDITION MARIE SIRVEN","AUDITION MARIE SIRVEN"]
["Audition Martin","Audition Martin"]
["AUDITION OUTRE MER","AUDITION OUTRE MER"]
["AUDITION PARIS EST","AUDITION PARIS EST"]
["AUDITION REMI LAMOINE","AUDITION REMI LAMOINE"]
["AUDITION SANTE","AUDITION SANTE"]
["AUDITION TRIBUT VERJUS","AUDITION TRIBUT VERJUS"]
["AUDITIONLAC","AUDITIONLAC"]
["AUXESIA","AUXESIA"]
["AVANTEC","AVANTEC"]
["AX'AIR MEDICAL","AX'AIR MEDICAL"]
["AXDOM VAR","AXDOM VAR"]
["Axess Research","Axess Research"]
["AXIS biodental SA","AXIS biodental SA"]
["AXIS Dental Sarl","AXIS Dental Sarl"]
["AXIS Santé","AXIS Santé"]
["AXIS Santé","AXIS Santé"]
["AXONAL","AXONAL"]
["Axonics Modulation Technologies, Inc.","Axonics Modulation Technologies, Inc."]
["AX'PERF MEDICAL","AX'PERF MEDICAL"]
["AZ MEDICAL","AZ MEDICAL"]
["B. Braun Avitum France SAS","B. Braun Avitum France SAS"]
["B.BRAUN MEDICAL SAS","B.BRAUN MEDICAL SAS"]
["B.R.A. SAS","B.R.A. SAS"]
["B3TSI","B3TSI"]
["BAC OPTIQUE","BAC OPTIQUE"]
["BALJO","BALJO"]
["BALT EXTRUSION SAS","BALT EXTRUSION SAS"]
["BALT INTERNATIONAL","BALT INTERNATIONAL"]
["BARD FRANCE SAS","BARD FRANCE SAS"]
["Bastide Le Confort Médical","Bastide Le Confort Médical"]
["Bastide Le Confort Médical","Bastide Le Confort Médical"]
["BAUERFEIND FRANCE","BAUERFEIND FRANCE"]
["BAXALTA FRANCE SAS","BAXALTA FRANCE SAS"]
["Baxter SAS","Baxter SAS"]
["Bayer HealthCare SAS","Bayer HealthCare SAS"]
["BAYER SANTE FAMILIALE","BAYER SANTE FAMILIALE"]
["BBGR SAS","BBGR SAS"]
["BEAUFOUR IPSEN INDUSTRIE","BEAUFOUR IPSEN INDUSTRIE"]
["BEAUTE PRESTIGE INTERNATIONAL","BEAUTE PRESTIGE INTERNATIONAL"]
["Beaver-Visitec Int'l Sales Ltd","Beaver-Visitec Int'l Sales Ltd"]
["BECKMAN COULTER FRANCE","BECKMAN COULTER FRANCE"]
["Becton Dickinson France SAS","Becton Dickinson France SAS"]
["Beiersdorf s.a.s","Beiersdorf s.a.s"]
["BELLCO FRANCE","BELLCO FRANCE"]
["BEST OF OPTIMIZERS","BEST OF OPTIMIZERS"]
["Bien-Air France","Bien-Air France"]
["BIO COMPOSANTS MEDICAUX","BIO COMPOSANTS MEDICAUX"]
["BIOCODEX","BIOCODEX"]
["Biocompatibles UK Ltd","Biocompatibles UK Ltd"]
["BIOCORP PRODUCTION","BIOCORP PRODUCTION"]
["BioCryst Pharmaceuticals Inc.","BioCryst Pharmaceuticals Inc."]
["BIOCYTEX","BIOCYTEX"]
["BIODIMED Conseils","BIODIMED Conseils"]
["Biofortis SAS","Biofortis SAS"]
["BIOGARAN","BIOGARAN"]
["BIOGEN FRANCE SAS","BIOGEN FRANCE SAS"]
["BioHorizons Iberica S.R.L.","BioHorizons Iberica S.R.L."]
["Biomarin Europe Ltd.","Biomarin Europe Ltd."]
["BIOMATLANTE SA","BIOMATLANTE SA"]
["bioMérieux","bioMérieux"]
["bioMérieux","bioMérieux"]
["BIOMET","BIOMET"]
["BIOMET 3i","BIOMET 3i"]
["BIOMET BELGIUM BVBA","BIOMET BELGIUM BVBA"]
["BIOMET CHINA","BIOMET CHINA"]
["Biomet France","Biomet France"]
["BIOMET GLOBAL SUPPLY CHAIN CENTER B.V.","BIOMET GLOBAL SUPPLY CHAIN CENTER B.V."]
["Biomet Inc","Biomet Inc"]
["Biomet Japan, Inc.","Biomet Japan, Inc."]
["Biomet Orthopaedics Sweeden","Biomet Orthopaedics Sweeden"]
["Biomet Spain Orthopaedics S.L.","Biomet Spain Orthopaedics S.L."]
["BIOMET UK Limited","BIOMET UK Limited"]
["BIOM'UP","BIOM'UP"]
["Bioprojet","Bioprojet"]
["BIOPROJET PHARMA","BIOPROJET PHARMA"]
["BIO-RAD","BIO-RAD"]
["BIO-RAD AbD Serotec Ltd","BIO-RAD AbD Serotec Ltd"]
["BIO-RAD Innovations","BIO-RAD Innovations"]
["BIO-RAD Laboratories Inc.","BIO-RAD Laboratories Inc."]
["BIO-RAD Laboratories Limited","BIO-RAD Laboratories Limited"]
["BIO-RAD Laboratories S.A.S.","BIO-RAD Laboratories S.A.S."]
["Biosensors Europe SA","Biosensors Europe SA"]
["Biosensors France SAS","Biosensors France SAS"]
["BIOSERENITY","BIOSERENITY"]
["Biosphere Medical, Inc.","Biosphere Medical, Inc."]
["Biosphere Medical, S.A.","Biosphere Medical, S.A."]
["BIOSPINE IMPLANTS","BIOSPINE IMPLANTS"]
["BIOSTATEM","BIOSTATEM"]
["BIOTECH DENTAL","BIOTECH DENTAL"]
["BIOTECH ORTHO","BIOTECH ORTHO"]
["BIOTEST AG","BIOTEST AG"]
["BIOTEST FRANCE SAS","BIOTEST FRANCE SAS"]
["BIOTEST HUNGARIA KFT.","BIOTEST HUNGARIA KFT."]
["BIOTRIAL","BIOTRIAL"]
["BIOTRONIK AG","BIOTRONIK AG"]
["BIOTRONIK Belgium","BIOTRONIK Belgium"]
["BIOTRONIK FRANCE SAS","BIOTRONIK FRANCE SAS"]
["BIOTRONIK SE & Co. KG","BIOTRONIK SE & Co. KG"]
["BIOVENTUS","BIOVENTUS"]
["Bisico","Bisico"]
["BLOCKADE MEDICAL, LLC","BLOCKADE MEDICAL, LLC"]
["BLUE-REG PHARMA CONSULT","BLUE-REG PHARMA CONSULT"]
["BLUESOM","BLUESOM"]
["BOEHRINGER INGELHEIM FRANCE","BOEHRINGER INGELHEIM FRANCE"]
["BOIRON","BOIRON"]
["BOIRON CARAIBES","BOIRON CARAIBES"]
["BOIRON OCEAN INDIEN","BOIRON OCEAN INDIEN"]
["Bone Therapeutics","Bone Therapeutics"]
["BONNET SOUYRIS PROSPECTIVE","BONNET SOUYRIS PROSPECTIVE"]
["Boston Healthcare International","Boston Healthcare International"]
["BOSTON SCIENTIFIC SAS","BOSTON SCIENTIFIC SAS"]
["BRACCO DIAGNOSTICS INC","BRACCO DIAGNOSTICS INC"]
["BRACCO IMAGING FRANCE","BRACCO IMAGING FRANCE"]
["BRACCO IMAGING ITALIA SRL","BRACCO IMAGING ITALIA SRL"]
["BRACCO IMAGING SPA","BRACCO IMAGING SPA"]
["BRACCO SUISSE SA","BRACCO SUISSE SA"]
["BRAHMS FRANCE SAS","BRAHMS FRANCE SAS"]
["BRAHMS GmbH","BRAHMS GmbH"]
["Brainlab","Brainlab"]
["Brand Institute","Brand Institute"]
["Branding Science (UK) Ltd","Branding Science (UK) Ltd"]
["BREAS MEDICAL","BREAS MEDICAL"]
["Bristol -Myers Squibb GmbH & Co. KGaA","Bristol -Myers Squibb"]
["BRISTOL-MYERS SQUIBB","Bristol -Myers Squibb"]
["Bristol-Myers Squibb Australia Pty Limited","Bristol -Myers Squibb"]
["Bristol-Myers Squibb Business Services Limited","Bristol-Myers Squibb Business Services Limited"]
["BRISTOL-MYERS SQUIBB COMPANY","Bristol -Myers Squibb"]
["Bristol-Myers Squibb EMEA","Bristol -Myers Squibb"]
["Bristol-Myers Squibb Finlande Ab","Bristol-Myers Squibb Finlande Ab"]
["Bristol-Myers Squibb Israel","Bristol-Myers Squibb Israel"]
["Bristol-Myers Squibb K.K","Bristol-Myers Squibb K.K"]
["Bristol-Myers Squibb Middle East & Africa FZ-LLC","Bristol-Myers Squibb Middle East & Africa FZ-LLC"]
["BRISTOL-MYERS SQUIBB PHARMACEUTICALS LTD","Bristol -Myers Squibb"]
["BRISTOL-MYERS SQUIBB SA","Bristol -Myers Squibb"]
["Bristol-Myers Squibb, S.A.U.","Bristol-Myers Squibb, S.A.U."]
["Bruker Daltonique","Bruker Daltonique"]
["bruneau","bruneau"]
["BSN medical SAS","BSN medical SAS"]
["BSN-RADIANTE SAS","BSN-RADIANTE SAS"]
["Buhlmann France","Buhlmann France"]
["Bull's Eye Innovations","Bull's Eye Innovations"]
["BVA","BVA"]
["BY AGENCY GROUP","BY AGENCY GROUP"]
["C.F.E.B. SISLEY","C.F.E.B. SISLEY"]
["C@RDISTIM","C@RDISTIM"]
["C2F IMPLANTS","C2F IMPLANTS"]
["C2R SAS","C2R SAS"]
["CAB","CAB"]
["CAIR LGL","CAIR LGL"]
["CANAL 55 COMMUNICATION","CANAL 55 COMMUNICATION"]
["CAPIDEL SANTE SARL","CAPIDEL SANTE SARL"]
["CAPRON PODOLOGIE","CAPRON PODOLOGIE"]
["carco","carco"]
["Cardiac Dimensions, Pty LTD","Cardiac Dimensions, Pty LTD"]
["Cardial SAS","Cardial SAS"]
["CardiAQ Valve Technologies, Inc.","CardiAQ Valve Technologies, Inc."]
["CARDIF ASSISTANCE","CARDIF ASSISTANCE"]
["Cardim@t","Cardim@t"]
["CARDINAL HEALTH FRANCE 506 SAS","CARDINAL HEALTH FRANCE 506 SAS"]
["CARDIOLOGS TECHNOLOGIES","CARDIOLOGS TECHNOLOGIES"]
["cardipulse","cardipulse"]
["CAREFUSION FRANCE 309 SAS","CAREFUSION FRANCE 309 SAS"]
["CAREFUSION SWITZERLAND 317 SÀrl","CAREFUSION SWITZERLAND 317 SÀrl"]
["CARESTREAM HEALTH FRANCE","CARESTREAM HEALTH FRANCE"]
["CARL ZEISS MEDITEC AG","CARL ZEISS MEDITEC AG"]
["Carl Zeiss Meditec France","Carl Zeiss Meditec France"]
["CARL ZEISS MEDITEC SAS","CARL ZEISS MEDITEC SAS"]
["Carl Zeiss Vision France","Carl Zeiss Vision France"]
["CARMAT","CARMAT"]
["CAROLINE ROBIN AUDITION","CAROLINE ROBIN AUDITION"]
["CARPENTER SAS","CARPENTER SAS"]
["Carvadys S.A.S","Carvadys S.A.S"]
["CBPartners","CBPartners"]
["CDL OPTIQUE","CDL OPTIQUE"]
["CECS","CECS"]
["CELGENE","CELGENE"]
["CELGENE SAS","CELGENE SAS"]
["Celldex Therapeutics","Celldex Therapeutics"]
["CELLforCURE","CELLforCURE"]
["CELONOVA BIOSCIENCES OF EUROPE B.V","CELONOVA BIOSCIENCES OF EUROPE B.V"]
["cemka","cemka"]
["CENDRES+METAUX FRANCE SAS","CENDRES+METAUX FRANCE SAS"]
["CENTRALE DES OPTICIENS","CENTRALE DES OPTICIENS"]
["CENTRALE DES PEELINGS","CENTRALE DES PEELINGS"]
["CENTRALE DES PHARMACIENS","CENTRALE DES PHARMACIENS"]
["Centre d'Audition Bruant","Centre d'Audition Bruant"]
["Centre de stomathérapie","Centre de stomathérapie"]
["Centre de stomathérapie","Centre de stomathérapie"]
["Centre d'Etudes et de Recherches cosmétologiques CERCO","Centre d'Etudes et de Recherches cosmétologiques CERCO"]
["Centre d'Etudes et de Recherches cosmétologiques CERCO","Centre d'Etudes et de Recherches cosmétologiques CERCO"]
["centre d'optique et d'audition","centre d'optique et d'audition"]
["Cepheid Europe SAS","Cepheid Europe SAS"]
["Ceramconcept France","Ceramconcept France"]
["CERC","CERC"]
["CERECARE","CERECARE"]
["CEREDAS","CEREDAS"]
["CEREPLAS","CEREPLAS"]
["CERI MEDICAL","CERI MEDICAL"]
["CERMAVEIN","CERMAVEIN"]
["CERP RHIN RHONE MEDITERRANEE","CERP RHIN RHONE MEDITERRANEE"]
["CERP ROUEN","CERP ROUEN"]
["Cerus Corporation","Cerus Corporation"]
["Cerus Europe B.V.","Cerus Europe B.V."]
["Cezanne","Cezanne"]
["CHEMO S.A. FRANCE","CHEMO S.A. FRANCE"]
["CHIESI SAS","CHIESI SAS"]
["Chiltern International SARL","Chiltern International SARL"]
["CHOC","CHOC"]
["chris eyes","chris eyes"]
["CHRISTEYNS FRANCE","CHRISTEYNS FRANCE"]
["CHUGAI PHARMA FRANCE","CHUGAI"]
["CID","CID"]
["CIDELEC","CIDELEC"]
["Cido Research GmbH","Cido Research GmbH"]
["Cirrina","Cirrina"]
["CIS BIO INTERNATIONAL","CIS BIO INTERNATIONAL"]
["Cisbio Bioassays","Cisbio Bioassays"]
["CIZETA MEDICALI France","CIZETA MEDICALI France"]
["CLARIANCE","CLARIANCE"]
["CLARIANCE INC","CLARIANCE INC"]
["CLARIPHARM","CLARIPHARM"]
["CLCA consulting","CLCA consulting"]
["CLIN DATA MANAGEMENT","CLIN DATA MANAGEMENT"]
["CLINHOSPI","CLINHOSPI"]
["Clinical Trial Consulting","Clinical Trial Consulting"]
["CLINICPROSPORT SAS","CLINICPROSPORT SAS"]
["CLINSEARCH","CLINSEARCH"]
["CLS Paris","CLS Paris"]
["Cochlear France","Cochlear France"]
["Codexial Dermatologie","Codexial Dermatologie"]
["colgate palmolive","colgate palmolive"]
["COLGATE PALMOLIVE EUROPE SARL","COLGATE PALMOLIVE EUROPE SARL"]
["COLLIN","COLLIN"]
["COLOPLAST A/S","COLOPLAST A/S"]
["Coloplast Manufacturing France","Coloplast Manufacturing France"]
["COMM Santé","COMM Santé"]
["COMM Santé","COMM Santé"]
["COMMUNICATION GLOBALE SANTE","COMMUNICATION GLOBALE SANTE"]
["Conceptus SAS","Conceptus SAS"]
["CONGRES COLLOQUES CONVENTIONS","CONGRES COLLOQUES CONVENTIONS"]
["CONMED France","CONMED France"]
["Consentio","Consentio"]
["ConsuMed Research","ConsuMed Research"]
["CONVATEC Inc.","CONVATEC Inc."]
["Cook France SARL","Cook France SARL"]
["COOPERATION PHARMACEUTIQUE FRANCAISE","COOPERATION PHARMACEUTIQUE FRANCAISE"]
["COOPERVISION SAS","COOPERVISION SAS"]
["CORDIS","CORDIS"]
["CORMOVE","CORMOVE"]
["CORONA MEDICAL SAS","CORONA MEDICAL SAS"]
["CORREVIO","CORREVIO"]
["CORSE OXYGENE","CORSE OXYGENE"]
["CORTEX VISION TECH","CORTEX VISION TECH"]
["Corvia Medical Inc.","Corvia Medical Inc."]
["COSMACT","COSMACT"]
["COSMETIQUE ACTIVE FRANCE","COSMETIQUE ACTIVE FRANCE"]
["COSMETIQUE ACTIVE INTERNATIONAL","COSMETIQUE ACTIVE INTERNATIONAL"]
["Côté Audition","Côté Audition"]
["Côté Audition","Côté Audition"]
["COUSIN BIOSERV","COUSIN BIOSERV"]
["COUSIN BIOTECH","COUSIN BIOTECH"]
["COUSIN ENDOSURG","COUSIN ENDOSURG"]
["Covalia Interactive","Covalia Interactive"]
["Covance Clinical And Periapproval Services SARL","Covance Clinical And Periapproval Services SARL"]
["Covidien AG","Covidien AG"]
["COVIDIEN FRANCE S.A.S.","COVIDIEN FRANCE S.A.S."]
["CREAFIRST","CREAFIRST"]
["Creativ-Ceutical France","Creativ-Ceutical France"]
["CRISTALENS SA","CRISTALENS SA"]
["CRISTERS","CRISTERS"]
["CROMA","CROMA"]
["CROMA FRANCE SASU","CROMA FRANCE SASU"]
["CRYOLIFE FRANCE","CRYOLIFE FRANCE"]
["CSA","CSA"]
["CSL BEHRING SA","CSL BEHRING SA"]
["CTI Clinical Trial and Consulting Services France SARL","CTI Clinical Trial and Consulting Services France SARL"]
["Cubist Pharmaceuticals France","Cubist Pharmaceuticals France"]
["Cutting Edge","Cutting Edge"]
["CVRx Inc.","CVRx Inc."]
["Cyberonics BVBA","Cyberonics BVBA"]
["Cyberonics SA","Cyberonics SA"]
["Cyble Marketing","Cyble Marketing"]
["Cytori Therapeutics Inc.","Cytori Therapeutics Inc."]
["DAIICHI SANKYO FRANCE SAS","DAIICHI SANKYO FRANCE SAS"]
["DAKO FRANCE SAS","DAKO FRANCE SAS"]
["Damos","Damos"]
["DÃœRR DENTAL FRANCE","DÃœRR DENTAL FRANCE"]
["Datamonitor Healthcare","Datamonitor Healthcare"]
["DATEXIM","DATEXIM"]
["DATIS NORD","DATIS NORD"]
["David Pruce","David Pruce"]
["DDB Health Paris","DDB Health Paris"]
["DDS Assistance","DDS Assistance"]
["DDSM SARL","DDSM SARL"]
["DEBREGEAS ET ASSOCIES PHARMA","DEBREGEAS ET ASSOCIES PHARMA"]
["DEDIENNE SANTE","DEDIENNE SANTE"]
["DEFI ORTHO","DEFI ORTHO"]
["DENTALINOV","DENTALINOV"]
["DENTAURUM FRANCE","DENTAURUM FRANCE"]
["DENTSPLY FRANCE","DENTSPLY FRANCE"]
["Dentsply Gac Europe","Dentsply Gac Europe"]
["DENTSPLY IH AB","DENTSPLY IH AB"]
["DENTSPLY IH K.K.","DENTSPLY IH K.K."]
["DENTSPLY IH SAS","DENTSPLY IH SAS"]
["DENTSPLY Implants","DENTSPLY Implants"]
["DENTSPLY Implants Manufacturing GmbH","DENTSPLY Implants Manufacturing GmbH"]
["DEPUY France","DEPUY France"]
["Devicor Medical","Devicor Medical"]
["Dexter","Dexter"]
["DFine Europe GmbH","DFine Europe GmbH"]
["DFINE Inc","DFINE Inc"]
["DIABSANTE","DIABSANTE"]
["DIADOM SAS","DIADOM SAS"]
["DIAGAST","DIAGAST"]
["DIAGNOSTICA STAGO","DIAGNOSTICA STAGO"]
["Diamed France SA","Diamed France SA"]
["Diamed GmbH","Diamed GmbH"]
["DIASORIN SA","DIASORIN SA"]
["DIAXONHIT","DIAXONHIT"]
["DIDACTIC","DIDACTIC"]
["DINNO SANTE","DINNO SANTE"]
["Direct Medica","Direct Medica"]
["DIS PAR","DIS PAR"]
["DISMEDIS","DISMEDIS"]
["DISTRICLASS MEDICAL SA","DISTRICLASS MEDICAL SA"]
["DIXI microtechniques","DIXI microtechniques"]
["DJO France SAS","DJO France SAS"]
["DMEDICA","DMEDICA"]
["DOM'AIR","DOM'AIR"]
["Dominique TATE","Dominique TATE"]
["DOMISANTE PROXIMED","DOMISANTE PROXIMED"]
["DON'ORTHO","DON'ORTHO"]
["DR WEIGERT FRANCE SAS","DR WEIGERT FRANCE SAS"]
["Draeger Medical Canada","Draeger Medical Canada"]
["Draeger Medical Systems, Inc","Draeger Medical Systems, Inc"]
["DRÄGER MEDICAL GmbH","DRÄGER MEDICAL GmbH"]
["DRÄGER MEDICAL GmbH","DRÄGER MEDICAL GmbH"]
["DRAGER MEDICAL S.A.S.","DRAGER MEDICAL S.A.S."]
["Drägerwerk AG & Co. KGaA","Drägerwerk AG & Co. KGaA"]
["DRAPER PHARMA","DRAPER PHARMA"]
["DUFLOT SANTE","DUFLOT SANTE"]
["DUNES MEDICAL","DUNES MEDICAL"]
["DUOTECH","DUOTECH"]
["DUX B.V.","DUX B.V."]
["Dynavie","Dynavie"]
["E Coach Cardio","E Coach Cardio"]
["e(ye)BRAIN","e(ye)BRAIN"]
["Echosens","Echosens"]
["Eckert & Ziegler BEBIG","Eckert & Ziegler BEBIG"]
["ECM PROXIMED","ECM PROXIMED"]
["EDAP TMS France SAS","EDAP TMS France SAS"]
["EDIMARK","EDIMARK"]
["EDITION DE L'INTERLIGNE","EDITION DE L'INTERLIGNE"]
["EDUSANTE","EDUSANTE"]
["EDWARDS LIFESCIENCES","EDWARDS LIFESCIENCES"]
["EDWARDS LIFESCIENCES ALLEMAGNE","EDWARDS LIFESCIENCES ALLEMAGNE"]
["EDWARDS LIFESCIENCES AUSTRALIE","EDWARDS LIFESCIENCES AUSTRALIE"]
["EDWARDS LIFESCIENCES AUTRICHE","EDWARDS LIFESCIENCES AUTRICHE"]
["EDWARDS LIFESCIENCES BELGIQUE","EDWARDS LIFESCIENCES BELGIQUE"]
["EDWARDS LIFESCIENCES BRESIL","EDWARDS LIFESCIENCES BRESIL"]
["EDWARDS LIFESCIENCES CANADA","EDWARDS LIFESCIENCES CANADA"]
["EDWARDS LIFESCIENCES CHINA","EDWARDS LIFESCIENCES CHINA"]
["EDWARDS LIFESCIENCES COREE DU SUD","EDWARDS LIFESCIENCES COREE DU SUD"]
["EDWARDS LIFESCIENCES CORPORATION","EDWARDS LIFESCIENCES CORPORATION"]
["Edwards Lifesciences Danemark","Edwards Lifesciences Danemark"]
["EDWARDS LIFESCIENCES ESPAGNE","EDWARDS LIFESCIENCES ESPAGNE"]
["EDWARDS LIFESCIENCES GRECE","EDWARDS LIFESCIENCES GRECE"]
["EDWARDS LIFESCIENCES IRLANDE","EDWARDS LIFESCIENCES IRLANDE"]
["EDWARDS LIFESCIENCES ISRAEL","EDWARDS LIFESCIENCES ISRAEL"]
["EDWARDS LIFESCIENCES ITALIE","EDWARDS LIFESCIENCES ITALIE"]
["EDWARDS LIFESCIENCES JAPON","EDWARDS LIFESCIENCES JAPON"]
["EDWARDS LIFESCIENCES NORDIC/FINLAND","EDWARDS LIFESCIENCES NORDIC/FINLAND"]
["EDWARDS LIFESCIENCES PAYS-BAS","EDWARDS LIFESCIENCES PAYS-BAS"]
["EDWARDS LIFESCIENCES PORTUGAL","EDWARDS LIFESCIENCES PORTUGAL"]
["EDWARDS LIFESCIENCES REPUBLIQUE TCHEQUE","EDWARDS LIFESCIENCES REPUBLIQUE TCHEQUE"]
["EDWARDS LIFESCIENCES ROYAUME-UNI","EDWARDS LIFESCIENCES ROYAUME-UNI"]
["EDWARDS LIFESCIENCES RUSSIE","EDWARDS LIFESCIENCES RUSSIE"]
["Edwards Lifesciences SA","Edwards Lifesciences SA"]
["EDWARDS LIFESCIENCES SUEDE","EDWARDS LIFESCIENCES SUEDE"]
["EDWARDS LIFESCIENCES SUISSE","EDWARDS LIFESCIENCES SUISSE"]
["EDWARDS LIFESCIENCES TURQUIE","EDWARDS LIFESCIENCES TURQUIE"]
["EFFICARE SARL","EFFICARE SARL"]
["EFFIK","EFFIK"]
["EG LABO - LABORATOIRES EUROGENERICS","EG LABO - EUROGENERICS"]
["EISAI SAS","EISAI SAS"]
["ELEKTA SAS","ELEKTA SAS"]
["ELIA MEDICAL","ELIA MEDICAL"]
["ELIA MEDICAL MEDITERRANEE","ELIA MEDICAL MEDITERRANEE"]
["ELIA MEDICAL OUEST","ELIA MEDICAL OUEST"]
["ELIA MEDICAL PARIS","ELIA MEDICAL PARIS"]
["ELIA MEDICAL PARIS OUEST","ELIA MEDICAL PARIS OUEST"]
["ELIA SUD OUEST","ELIA SUD OUEST"]
["ELIAMM SARL","ELIAMM SARL"]
["ELITech France","ELITech France"]
["Elixo SAS","Elixo SAS"]
["Elma Research srl","Elma Research srl"]
["ELOI MEDICAL","ELOI MEDICAL"]
["Eloi Pernet","Eloi Pernet"]
["ELSODENT","ELSODENT"]
["EM Services","EM Services"]
["EMA SARL","EMA SARL"]
["EMETROP'","EMETROP'"]
["EMS FRANCE SARL","EMS FRANCE SARL"]
["EMULSAR","EMULSAR"]
["ENDOCONTROL","ENDOCONTROL"]
["ENDOLOGIX INTERNATIONAL BV","ENDOLOGIX INTERNATIONAL BV"]
["ENTENDRE","ENTENDRE"]
["Eole santé","Eole santé"]
["Eole santé","Eole santé"]
["EOLIS SANTE","EOLIS SANTE"]
["Eos imaging","Eos imaging"]
["EPISKIN","EPISKIN"]
["EQINOX HEALTHCARE FRANCE","EQINOX HEALTHCARE FRANCE"]
["ERYTECH Pharma","ERYTECH Pharma"]
["esanum GmbH","esanum GmbH"]
["ESAOTE Medical","ESAOTE Medical"]
["ESPACE MEDICAL BOURGES","ESPACE MEDICAL BOURGES"]
["espace medical medic centre","espace medical medic centre"]
["ESPACE MEDICAL MONTLUCON","ESPACE MEDICAL MONTLUCON"]
["ESPACE MEDICAL MOULINS","ESPACE MEDICAL MOULINS"]
["espace medical nevers","espace medical nevers"]
["espace medical vichy","espace medical vichy"]
["esprimed","esprimed"]
["Essilor","Essilor"]
["ESSOR FRANCE","ESSOR FRANCE"]
["Et Si ?","Et Si ?"]
["ETHICON","ETHICON"]
["ethimedix","ethimedix"]
["ETHYPHARM","ETHYPHARM"]
["EUMEDICA s.a.","EUMEDICA s.a."]
["EURAXI PHARMA","EURAXI PHARMA"]
["EURL Antoine Durouchez Audition","EURL Antoine Durouchez Audition"]
["Eurl Chaudemanche","Eurl Chaudemanche"]
["eurl generale d'optique","eurl generale d'optique"]
["Eurl Pharmacie Cantarelli","Eurl Pharmacie Cantarelli"]
["EUROBIO","EUROBIO"]
["Eurodep Exploitant","Eurodep Exploitant"]
["EUROFINS OPTIMED","EUROFINS OPTIMED"]
["EUROFINS OPTIMED LYON","EUROFINS OPTIMED LYON"]
["EUROMEDICA IMAGING","EUROMEDICA IMAGING"]
["EUROMEDS","EUROMEDS"]
["EUROPHTA","EUROPHTA"]
["EUROS SAS","EUROS SAS"]
["EUROSAFE","EUROSAFE"]
["EUROSILICONE SAS","EUROSILICONE SAS"]
["EUROSPINE SARL","EUROSPINE SARL"]
["EUROTEKNIKA","EUROTEKNIKA"]
["EUSA Pharma (France) SAS","EUSA Pharma (France) SAS"]
["EUSA PHARMA SAS","EUSA PHARMA SAS"]
["EV3 EUROPE S.A.S.","EV3 EUROPE S.A.S."]
["EVALYS SAS","EVALYS SAS"]
["EVAUX Laboratoires","EVAUX Laboratoires"]
["EVIC FRANCE","EVIC FRANCE"]
["EVIDENCE BASED COMMUNICATION","EVIDENCE BASED COMMUNICATION"]
["EVOLUTIS","EVOLUTIS"]
["EXACTECH FRANCE SAS","EXACTECH FRANCE SAS"]
["EXACTECH INTERNATIONAL OPERATION Ltd.","EXACTECH INTERNATIONAL OPERATION Ltd."]
["EXAFIELD","EXAFIELD"]
["EXPERF AQUITAINE","EXPERF AQUITAINE"]
["EXPERF AUVERGNE","EXPERF AUVERGNE"]
["EXPERF COTE D'AZUR","EXPERF COTE D'AZUR"]
["EXPERF DROME","EXPERF DROME"]
["EXPERF ISERE","EXPERF ISERE"]
["EXPERF LANGUEDOC ROUSSILLON","EXPERF LANGUEDOC ROUSSILLON"]
["EXPERF LORRAINE","EXPERF LORRAINE"]
["EXPERF MIDI PYRENEES","EXPERF MIDI PYRENEES"]
["EXPERF NORD","EXPERF NORD"]
["EXPERF NORMANDIE","EXPERF NORMANDIE"]
["EXPERF PACA","EXPERF PACA"]
["EXPERF PYRENEES ORIENTALES","EXPERF PYRENEES ORIENTALES"]
["EXPERF RHONE ALPES","EXPERF RHONE ALPES"]
["EXPERF VAUCLUSE DROME","EXPERF VAUCLUSE DROME"]
["EXPERTISE RESEARCH","EXPERTISE RESEARCH"]
["EYETECHCARE","EYETECHCARE"]
["Fab'entech","Fab'entech"]
["FAGRON","FAGRON"]
["FARCODERM France","FARCODERM France"]
["FCI SAS","FCI SAS"]
["FeetMe","FeetMe"]
["FERRING SAS","FERRING SAS"]
["FFF AUDIO","FFF AUDIO"]
["FH ORTHOPEDICS","FH ORTHOPEDICS"]
["Field Scope Int Ltd","Field Scope Int Ltd"]
["Field Scope International","Field Scope International"]
["FII","FII"]
["FIMED","FIMED"]
["FINANCIERE BATTEUR","FINANCIERE BATTEUR"]
["FINOX BIOTECH FRANCE SARL","FINOX BIOTECH FRANCE SARL"]
["Firme","Firme"]
["FISHER & PAYKEL HEALTHCARE SAS","FISHER & PAYKEL HEALTHCARE SAS"]
["FISHER SCIENTIFIC SAS","FISHER SCIENTIFIC SAS"]
["FLUOPTICS","FLUOPTICS"]
["Fondation Transplantation","Fondation Transplantation"]
["FOVEA PHARMACEUTICALS","FOVEA PHARMACEUTICALS"]
["France Oxygène","France Oxygène"]
["France Oxygène","France Oxygène"]
["FRANCHIS OPTIQUE AUDITION DE LA SCELLERIE","FRANCHIS OPTIQUE AUDITION DE LA SCELLERIE"]
["FRANCOPIA","FRANCOPIA"]
["FRESENIUS KABI FRANCE","FRESENIUS KABI FRANCE"]
["Fresenius Medical Care France S.A.S.","Fresenius Medical Care France S.A.S."]
["FRESENIUS VIAL","FRESENIUS VIAL"]
["FUJIFILM Medical Systems France","FUJIFILM Medical Systems France"]
["Fujifilm Sonosite France SARL","Fujifilm Sonosite France SARL"]
["FUJIREBIO FRANCE SARL","FUJIREBIO FRANCE SARL"]
["FUKUDA DENSHI CO., LTD","FUKUDA DENSHI CO., LTD"]
["FUMOUZE DIAGNOSTICS - SOFIBEL","FUMOUZE DIAGNOSTICS - SOFIBEL"]
["Future Thinking France","Future Thinking France"]
["FV Clinical","FV Clinical"]
["FX SOLUTIONS","FX SOLUTIONS"]
["GACD","GACD"]
["galderma international","galderma international"]
["Galderma Research & Development","Galderma Research & Development"]
["GaldermaQMed","GaldermaQMed"]
["GALLILEO BUSINESS CONSULTING","GALLILEO BUSINESS CONSULTING"]
["GAMAIN LEGROS","GAMAIN LEGROS"]
["GAMAMABS PHARMA","GAMAMABS PHARMA"]
["GAMBRO HOSPAL SAS","GAMBRO HOSPAL SAS"]
["GAMBRO INDUSTRIES","GAMBRO INDUSTRIES"]
["GAMIDA","GAMIDA"]
["GC FRANCE SAS","GC FRANCE SAS"]
["GC Orthodonics Europe GmbH","GC Orthodonics Europe GmbH"]
["GC TECHNOLOGY","GC TECHNOLOGY"]
["GE HEALTHCARE SAS","GE HEALTHCARE SAS"]
["GE Medical Systems SCS","GE Medical Systems SCS"]
["GECEM","GECEM"]
["GEDEON RICHTER France - Division Santé de la Femme","GEDEON RICHTER France - Division Santé de la Femme"]
["GEDEON RICHTER France - Division Santé de la Femme","GEDEON RICHTER France - Division Santé de la Femme"]
["GEISTLICH PHARMA FRANCE","GEISTLICH PHARMA FRANCE"]
["GemSeek","GemSeek"]
["Genactis SAS","Genactis SAS"]
["GENBIOTECH","GENBIOTECH"]
["Genen-Tech Inc","Genen-Tech Inc"]
["GENERIC IMPLANTS","GENERIC IMPLANTS"]
["generique international","generique international"]
["GENETHON","GENETHON"]
["GeNeuro","GeNeuro"]
["GeNeuro Innovation","GeNeuro Innovation"]
["GENEWAVE S.A.S","GENEWAVE S.A.S"]
["Genmab A/S","Genmab A/S"]
["GENOMIC HEALTH","GENOMIC HEALTH"]
["GENTICEL","GENTICEL"]
["Genzyme","Genzyme"]
["GENZYME POLYCLONALS","GENZYME POLYCLONALS"]
["GEP Santé","GEP Santé"]
["GEP Santé","GEP Santé"]
["Gesellschaft für Konsumforschung (GfK SE)","Gesellschaft für Konsumforschung (GfK SE)"]
["Gesellschaft fÜr Konsumforschung (GfK SE)","Gesellschaft fÜr Konsumforschung (GfK SE)"]
["GETINGE France","GETINGE France"]
["GFK ISL CUSTOM RESEARCH FRANCE","GFK ISL CUSTOM RESEARCH FRANCE"]
["GfK Market Access","GfK Market Access"]
["GfK NOP","GfK NOP"]
["GIBAUD","GIBAUD"]
["GIE DIALYSE SERVICES","GIE DIALYSE SERVICES"]
["GIFRER BARBEZAT","GIFRER BARBEZAT"]
["GILEAD SCIENCES","GILEAD SCIENCES"]
["GIM France","GIM France"]
["Gina","Gina"]
["GIVEN IMAGING","GIVEN IMAGING"]
["GlaxoSmithKline Biologicals","GlaxoSmithKline Biologicals"]
["GLAXOSMITHKLINE SANTE GRAND PUBLIC","GLAXOSMITHKLINE SANTE GRAND PUBLIC"]
["GLOBAL D","GLOBAL D"]
["GLOBAL MEDIA SANTE","GLOBAL MEDIA SANTE"]
["GlobalData","GlobalData"]
["Globe Life Sciences","Globe Life Sciences"]
["Glocal Mind","Glocal Mind"]
["GLocal Mind Inc","GLocal Mind Inc"]
["GLPTest","GLPTest"]
["gn hearing sas","gn hearing sas"]
["GN OTOMETRICS","GN OTOMETRICS"]
["GNB AUDIO 7","GNB AUDIO 7"]
["GNM Healthcare Consulting Ltd","GNM Healthcare Consulting Ltd"]
["GRAFTYS SA","GRAFTYS SA"]
["Grayling","Grayling"]
["GREAT PROJECTS 66","GREAT PROJECTS 66"]
["Grey Healthcare Paris","Grey Healthcare Paris"]
["GRIFOLS France","GRIFOLS France"]
["Groupe d'Etudes pour la Chirurgie Osseuse","Groupe d'Etudes pour la Chirurgie Osseuse"]
["GROUPE LEPINE","GROUPE LEPINE"]
["GROUPE SEBBIN","GROUPE SEBBIN"]
["GROUPE WELCOOP","GROUPE WELCOOP"]
["GT Urological, LLC","GT Urological, LLC"]
["GTO","GTO"]
["Guerbet","Guerbet"]
["GUERBET France","Guerbet"]
["GUILDE DES LUNETIERS","GUILDE DES LUNETIERS"]
["GXEL MEDICAL SARL","GXEL MEDICAL SARL"]
["H.A.C.Pharma","H.A.C.Pharma"]
["H32","H32"]
["H4D","H4D"]
["HALYARD France","HALYARD France"]
["HANDI PHARM ATLANTIQUE","HANDI PHARM ATLANTIQUE"]
["HANDI PHARM CHARENTES","HANDI PHARM CHARENTES"]
["HANDI PHARM GROUPE","HANDI PHARM GROUPE"]
["HANDI PHARM LIMOUSIN","HANDI PHARM LIMOUSIN"]
["HANDI PHARM NORMANDIE","HANDI PHARM NORMANDIE"]
["HANDI PHARM OCEAN","HANDI PHARM OCEAN"]
["HANDI PHARM PERCHE","HANDI PHARM PERCHE"]
["HANDI PHARM POITOU","HANDI PHARM POITOU"]
["HANSATON","HANSATON"]
["Hansen Medical, Inc.","Hansen Medical, Inc."]
["HARD CAB'","HARD CAB'"]
["HARMONIE MEDICAL SERVICE GRAND EST","HARMONIE MEDICAL SERVICE GRAND EST"]
["HAVAS LIFE PARIS","HAVAS LIFE PARIS"]
["HD MEDICAL","HD MEDICAL"]
["Health Advances","Health Advances"]
["HEALTHCARE COMPLIANCE CONSULTING FRANCE SAS","HEALTHCARE COMPLIANCE CONSULTING FRANCE SAS"]
["HEALTHCAREGEN COMMUNICATION","HEALTHCAREGEN COMMUNICATION"]
["HEARTWARE FRANCE","HEARTWARE FRANCE"]
["HeartWare Inc.","HeartWare Inc."]
["HELP ORTHO PRODUCTION","HELP ORTHO PRODUCTION"]
["HEMA.T MEDICAL","HEMA.T MEDICAL"]
["HEMODIA SAS","HEMODIA SAS"]
["HEMOTECH","HEMOTECH"]
["HENRY SCHEIN FRANCE SCA","HENRY SCHEIN FRANCE SCA"]
["HERAEUS","HERAEUS"]
["HERAEUS KULZER FRANCE","HERAEUS KULZER FRANCE"]
["HERINOMENJANAHARY ZAFITSARA","HERINOMENJANAHARY ZAFITSARA"]
["HEXACATH FRANCE","HEXACATH FRANCE"]
["HEXACATH SA","HEXACATH SA"]
["HEXAMEDICAL SAS","HEXAMEDICAL SAS"]
["HILL-ROM S.A.S.","HILL-ROM S.A.S."]
["HITACHI MEDICAL SYSTEMS SAS","HITACHI MEDICAL SYSTEMS SAS"]
["Hogan Lovells International LLP","Hogan Lovells International LLP"]
["Holaira, Inc.","Holaira, Inc."]
["HOLLISTER FRANCE Incorporated","HOLLISTER FRANCE Incorporated"]
["HOLOGIC","HOLOGIC"]
["Hologic Deutschland GmbH","Hologic Deutschland GmbH"]
["HOME AIR","HOME AIR"]
["HOMEDIS SANTE","HOMEDIS SANTE"]
["Homeperf","Homeperf"]
["HORIBA ABX SAS","HORIBA ABX SAS"]
["HORMETA FRANCE","HORMETA FRANCE"]
["horus pharma","horus pharma"]
["HOSPIDOM","HOSPIDOM"]
["HOSPIRA FRANCE","HOSPIRA"]
["HOYA LENS FRANCE SAS","HOYA LENS FRANCE SAS"]
["HOYA Surgical Optics GmbH","HOYA Surgical Optics GmbH"]
["HRA PHARMA FRANCE","HRA PHARMA FRANCE"]
["H-research Asia","H-research Asia"]
["HUERRE ALAIN FRANCOIS","HUERRE ALAIN FRANCOIS"]
["HUMANAIR MEDICAL","HUMANAIR MEDICAL"]
["HYPHEN BIOMED SAS","HYPHEN BIOMED SAS"]
["Hyprevention sas","Hyprevention sas"]
["I.CERAM","I.CERAM"]
["ICARE","ICARE"]
["ICOMED","Icomed"]
["ICON CLINICAL RESEARCH SARL","ICON CLINICAL RESEARCH SARL"]
["ICON CLINICAL RESEARCH UK LIMITED","ICON CLINICAL RESEARCH UK LIMITED"]
["ICTA PROJECT MANAGEMENT","ICTA PROJECT MANAGEMENT"]
["Ideal Gourmet","Ideal Gourmet"]
["IDEC 56","IDEC 56"]
["ID-NEST Medical","ID-NEST Medical"]
["idrm","idrm"]
["IFOP","IFOP"]
["IHEALTHLABS","IHEALTHLABS"]
["Illumina France","Illumina France"]
["IMACCESS","IMACCESS"]
["IMACTIS","IMACTIS"]
["IMAGO RESEARCH","IMAGO RESEARCH"]
["Imaxio","Imaxio"]
["Immucor France","Immucor France"]
["ImmunoDiagnostic Systems SAS","ImmunoDiagnostic Systems SAS"]
["IMPACT MEDICOM","IMPACT MEDICOM"]
["Impatients N.V","Impatients N.V"]
["IMPETO MEDICAL","IMPETO MEDICAL"]
["IMPLANET SA","IMPLANET SA"]
["IMPLANTS SERVICE ORTHOPEDIE","IMPLANTS SERVICE ORTHOPEDIE"]
["IMS Health Belgique","IMS Health Belgique"]
["IMS Health Cambridge","IMS Health Cambridge"]
["IMS HEALTH SAS","IMS HEALTH SAS"]
["IMS Medical Radar","IMS Medical Radar"]
["In2Bones","In2Bones"]
["INC RESEARCH, LLC","INC RESEARCH, LLC"]
["Incyte Biosciences France","Incyte Biosciences France"]
["Incyte Corporation","Incyte Corporation"]
["Indigo Medical","Indigo Medical"]
["INFECO","INFECO"]
["INGEN","INGEN"]
["INIT","INIT"]
["INNATE PHARMA","INNATE PHARMA"]
["InnOpath sarl","InnOpath sarl"]
["INNOPSYS","INNOPSYS"]
["Innothera Chouzy","Innothera Chouzy"]
["Innothera Services","Innothera Services"]
["INOVITALE","INOVITALE"]
["INRESA Sarl","INRESA Sarl"]
["Insight Research Group","Insight Research Group"]
["INSMED France SAS","INSMED France SAS"]
["INSMED INCORPORATED","INSMED INCORPORATED"]
["INSTITUT DE BIOTECHNOLOGIES J. BOY","INSTITUT DE BIOTECHNOLOGIES J. BOY"]
["INSTITUT GEORGES LOPEZ","INSTITUT GEORGES LOPEZ"]
["INSTITUT MERIEUX","INSTITUT MERIEUX"]
["Institut Roche","Institut Roche"]
["INSTITUT STERLING COOPER","INSTITUT STERLING COOPER"]
["Integra LifeSciences Services (France)","Integra LifeSciences Services (France)"]
["Integra MicroFrance","Integra MicroFrance"]
["Integra NeuroSciences Implants (France)","Integra NeuroSciences Implants (France)"]
["INTEGRAL ORTHO","INTEGRAL ORTHO"]
["INTER ORTHO","INTER ORTHO"]
["Interactive Biosoftware","Interactive Biosoftware"]
["Intercept Pharma France SAS","Intercept Pharma France SAS"]
["Intercept Pharmaceuticals Inc.","Intercept Pharmaceuticals Inc."]
["InterMune France SAS","InterMune France SAS"]
["InterMune International AG","InterMune International AG"]
["INTERSURGICAL SARL","INTERSURGICAL SARL"]
["Inter-View Partners France","Inter-View Partners France"]
["INTUITIVE SURGICAL SARL","INTUITIVE SURGICAL SARL"]
["INVACARE POIRIER SAS","INVACARE POIRIER SAS"]
["INVENTIVA","INVENTIVA"]
["Inventivhealthclinical","Inventivhealthclinical"]
["IP Santé domicile","IP Santé domicile"]
["IP Santé domicile","IP Santé domicile"]
["IPAD Médical","IPAD Médical"]
["IPAD Médical","IPAD Médical"]
["Ipanema Healthcare Consulting","Ipanema Healthcare Consulting"]
["IPPMed GmbH","IPPMed GmbH"]
["IPSEN INNOVATION","IPSEN INNOVATION"]
["IPSEN PHARMA","IPSEN PHARMA"]
["IPSEN PHARMA BIOTECH","IPSEN PHARMA BIOTECH"]
["Ipsos (France)","Ipsos (France)"]
["Ipsos Insight LLC","Ipsos Insight LLC"]
["Ipsos Mori UK Limited","Ipsos Mori UK Limited"]
["Ipsos Observer","Ipsos Observer"]
["Iris Pharma","Iris Pharma"]
["ISIS ADOUR","ISIS ADOUR"]
["ISIS ATLANTIQUE","ISIS ATLANTIQUE"]
["ISIS COTE D'AZUR","ISIS COTE D'AZUR"]
["ISIS DIABETE","ISIS DIABETE"]
["ISIS DIABETE EST","ISIS DIABETE EST"]
["ISIS DIABETE SERVICE","ISIS DIABETE SERVICE"]
["ISIS DIABETE SUD","ISIS DIABETE SUD"]
["ISIS GUADELOUPE","ISIS GUADELOUPE"]
["ISIS LANGUEDOC ROUSSILLON","ISIS LANGUEDOC ROUSSILLON"]
["ISIS MARTINIQUE","ISIS MARTINIQUE"]
["ISIS MÉDICAL VAR","ISIS MÉDICAL VAR"]
["ISIS MÉDICAL VAR","ISIS MÉDICAL VAR"]
["Isis Méditerranée","Isis Méditerranée"]
["Isis Méditerranée","Isis Méditerranée"]
["ISIS MIDI PYRENEES","ISIS MIDI PYRENEES"]
["ISIS NORMANDIE","ISIS NORMANDIE"]
["ISIS PARIS EST","ISIS PARIS EST"]
["ISIS PARIS NORD","ISIS PARIS NORD"]
["ISIS PARIS NORMANDIE","ISIS PARIS NORMANDIE"]
["ISIS PARIS OUEST","ISIS PARIS OUEST"]
["ISIS PARIS SUD","ISIS PARIS SUD"]
["ISIS PAYS DE LA LOIRE","ISIS PAYS DE LA LOIRE"]
["ISIS PERFUSION","ISIS PERFUSION"]
["ISIS PERFUSION NORD","ISIS PERFUSION NORD"]
["ISIS RHONE ALPES","ISIS RHONE ALPES"]
["IsoTis International SÀRL","IsoTis International SÀRL"]
["IST cardiology","IST cardiology"]
["ITEC SERVICES","ITEC SERVICES"]
["ITEM","ITEM"]
["ITENA CLINICAL","ITENA CLINICAL"]
["Ivoclar Vivadent SAS","Ivoclar Vivadent SAS"]
["IVTEC (Iol Vision Technology)","IVTEC (Iol Vision Technology)"]
["IXAIR","IXAIR"]
["IXAIR ASSISTANCE","IXAIR ASSISTANCE"]
["IXXI","IXXI"]
["JANSSEN-CILAG","Janssen-Cilag"]
["JAZZ PHARMACEUTICALS FRANCE","JAZZ PHARMACEUTICALS FRANCE"]
["Jean-Manuel Toussaint, IHMT","Jean-Manuel Toussaint, IHMT"]
["JLM MEDICAL","JLM MEDICAL"]
["Johnson & Johnson Diabetes Institute SAS","Johnson & Johnson Diabetes Institute SAS"]
["Johnson et Johnson Santé Beauté France","Johnson et Johnson Santé Beauté France"]
["Johnson et Johnson Santé Beauté France","Johnson et Johnson Santé Beauté France"]
["JOTEC GmbH","JOTEC GmbH"]
["JULIUS CLINICAL RESEARCH B.V.","JULIUS CLINICAL RESEARCH B.V."]
["Julius Zorn GmbH","Julius Zorn GmbH"]
["Junicon","Junicon"]
["Junicon Europe SL","Junicon Europe SL"]
["K. PARTICULIER","K. PARTICULIER"]
["Kadence international","Kadence international"]
["Kantar Health","Kantar Health"]
["Kappa Santé","Kappa Santé"]
["Kappa Santé","Kappa Santé"]
["KARL STORZ ENDOSCOPIE FRANCE SAS","KARL STORZ ENDOSCOPIE FRANCE SAS"]
["Karl Storz Gmbh and co KG","Karl Storz Gmbh and co KG"]
["KARUKERA AUDITION","KARUKERA AUDITION"]
["Karyopharm Therapeutics Inc.","Karyopharm Therapeutics Inc."]
["KASIOS","KASIOS"]
["Kavo Dental SAS","Kavo Dental SAS"]
["KCI EUROPE HOLDING B.V.","KCI EUROPE HOLDING B.V."]
["KCI KK JAPAN","KCI KK JAPAN"]
["KCI MEDICAL (CHINA) CO. LTD.","KCI MEDICAL (CHINA) CO. LTD."]
["KEBOMED","KEBOMED"]
["KEOCYT","KEOCYT"]
["KEPHREN","KEPHREN"]
["KERI MEDICAL FRANCE","KERI MEDICAL FRANCE"]
["KeyQuest Health Ltd","KeyQuest Health Ltd"]
["KeyQuest Health Ltd.","KeyQuest Health Ltd."]
["KEYSTONE DENTAL SAS","KEYSTONE DENTAL SAS"]
["Kimberly-Clark SAS","Kimberly-Clark SAS"]
["KINETIC CONCEPTS, INC.","KINETIC CONCEPTS, INC."]
["KISCO International","KISCO International"]
["KOELIS","KOELIS"]
["KOMET FRANCE","KOMET FRANCE"]
["KPL","KPL"]
["KRKA FRANCE EURL","KRKA FRANCE EURL"]
["Kuraray Europe France","Kuraray Europe France"]
["KYD ORTHOPEDIE","KYD ORTHOPEDIE"]
["L&L Rsourcing","L&L Rsourcing"]
["LA DIFFUSION TECHNIQUE FRANCAISE","LA DIFFUSION TECHNIQUE FRANCAISE"]
["LA FONDERIE","LA FONDERIE"]
["LA REGIE PUBLIQUE","LA REGIE PUBLIQUE"]
["LA SOLUTION AUDITIVE","LA SOLUTION AUDITIVE"]
["Lab Marketing SL","Lab Marketing SL"]
["LABCATAL","LABCATAL"]
["LABODIAL","LABODIAL"]
["Laboratoier Innotech international","Laboratoier Innotech international"]
["LABORATOIR CLAYTONE-TERRAFOR","LABORATOIR CLAYTONE-TERRAFOR"]
["Laboratoire AGUETTANT, Société par Actions Simplifiée","AGUETTANT, Société par Actions Simplifiée"]
["Laboratoire AGUETTANT, Société par Actions Simplifiée","Laboratoire AGUETTANT, Société par Actions Simplifiée"]
["LABORATOIRE ATO-ZIZINE","ATO-ZIZINE"]
["laboratoire audioprothèse lorrain","audioprothèse lorrain"]
["laboratoire audioprothèse lorrain","laboratoire audioprothèse lorrain"]
["laboratoire BAUSCH&LOMB","BAUSCH&LOMB"]
["Laboratoire Bioderma","Bioderma"]
["LABORATOIRE BIODIM","BIODIM"]
["Laboratoire CAT","CAT"]
["Laboratoire CCD","CCD"]
["LABORATOIRE CEVIDRA","LABORATOIRE CEVIDRA"]
["LABORATOIRE CORRECTION AUDITIVE DRAGUIGNAN","CORRECTION AUDITIVE DRAGUIGNAN"]
["LABORATOIRE CORRECTION AUDITIVE ST RAPHAEL-FREJUS","CORRECTION AUDITIVE ST RAPHAEL-FREJUS"]
["LABORATOIRE COSMETIQUE DE LECOUSSE","COSMETIQUE DE LECOUSSE"]
["Laboratoire de correction auditive","de correction auditive"]
["Laboratoire de correction auditive d'Aix en Provence","de correction auditive d'Aix en Provence"]
["laboratoire de correction auditive d'Aubagne","de correction auditive d'Aubagne"]
["LABORATOIRE DE CORRECTION AUDITIVE D'AVIGNON SAINT ROCH","DE CORRECTION AUDITIVE D'AVIGNON SAINT ROCH"]
["LABORATOIRE DE CORRECTION AUDITIVE DE CAVAILLON","DE CORRECTION AUDITIVE DE CAVAILLON"]
["laboratoire de correction auditive de dijon","de correction auditive de dijon"]
["LABORATOIRE DE CORRECTION AUDITIVE DE ISTRES","DE CORRECTION AUDITIVE DE ISTRES"]
["Laboratoire de correction auditive de lambesc","de correction auditive de lambesc"]
["LABORATOIRE DE CORRECTION AUDITIVE DE MARTIGUES","DE CORRECTION AUDITIVE DE MARTIGUES"]
["LABORATOIRE DE CORRECTION AUDITIVE DE TOULON","DE CORRECTION AUDITIVE DE TOULON"]
["Laboratoire de Correction Auditive de Villeneuve lez Avignon","de Correction Auditive de Villeneuve lez Avignon"]
["laboratoire de correction auditive Sylvain Chopinaud","de correction auditive Sylvain Chopinaud"]
["LABORATOIRE DE CORRECTION DE LA SURDITE","DE CORRECTION DE LA SURDITE"]
["laboratoire de correction de l'audition","de correction de l'audition"]
["Laboratoire de Dermocosmétique Active Docteur Pierre Ricaud","de Dermocosmétique Active Docteur Pierre Ricaud"]
["Laboratoire de Dermocosmétique Active Docteur Pierre Ricaud","Laboratoire de Dermocosmétique Active Docteur Pierre Ricaud"]
["LABORATOIRE DE DIFFUSION DE PRODUITS DE SANTE APPLIQUEE","DE DIFFUSION DE PRODUITS DE SANTE APPLIQUEE"]
["LABORATOIRE DE LA MER","DE LA MER"]
["LABORATOIRE DENSMORE","DENSMORE"]
["Laboratoire DERMSCAN","DERMSCAN"]
["LABORATOIRE DES GRANIONS","DES GRANIONS"]
["LABORATOIRE DISSOLVUROL","DISSOLVUROL"]
["Laboratoire du Dermophil Indien","Dermophil Indien"]
["LABORATOIRE DU SOLVIREX","LABORATOIRE DU SOLVIREX"]
["Laboratoire Eneomey","Laboratoire Eneomey"]
["LABORATOIRE EREMPHARMA","EREMPHARMA"]
["LABORATOIRE FLORENCE VERJUS","FLORENCE VERJUS"]
["Laboratoire français du Fractionnement et des Biotechnologies","LFB"]
["Laboratoire français du Fractionnement et des Biotechnologies","Laboratoire français du Fractionnement et des Biotechnologies"]
["Laboratoire GANDHOUR","GANDHOUR"]
["LABORATOIRE GLAXOSMITHKLINE","GSK"]
["Laboratoire HEPATOUM","HEPATOUM"]
["Laboratoire Innothera","Innothéra"]
["LABORATOIRE JALDES","JALDES"]
["LABORATOIRE KCI MEDICAL","KCI MEDICAL"]
["Laboratoire Kreussler pharma","Kreussler pharma"]
["laboratoire leblanc et associés","leblanc et associés"]
["laboratoire leblanc et associés","laboratoire leblanc et associés"]
["LABORATOIRE MENE ET MOY","MENE ET MOY"]
["Laboratoire MSD Chibret","MSD France"]
["LABORATOIRE NOVEX PHARMA","NOVEX PHARMA"]
["LABORATOIRE NUXE","NUXE"]
["Laboratoire PEDIACT","PEDIACT"]
["Laboratoire PHARMASTRA","PHARMASTRA"]
["Laboratoire Protec'Som","Protec'Som"]
["LABORATOIRE RENAUDIN","RENAUDIN"]
["Laboratoire SCIENCEX","SCIENCEX"]
["LABORATOIRE SOBER","SOBER"]
["LABORATOIRE TETRA MEDICAL","TETRA MEDICAL"]
["Laboratoire TRADIPHAR","TRADIPHAR"]
["LABORATOIRE UNITHER","UNITHER"]
["LABORATOIRES ALCON","ALCON"]
["LABORATOIRES ALTER","ALTER"]
["LABORATOIRES ARION","ARION"]
["Laboratoires ARKOPHARMA","ARKOPHARMA"]
["Laboratoires AUVEX","AUVEX"]
["Laboratoires Bailleul","Bailleul"]
["Laboratoires BESINS INTERNATIONAL","BESINS INTERNATIONAL"]
["LABORATOIRES BOUCHARA - RECORDATI","BOUCHARA - RECORDATI"]
["LABORATOIRES BROTHIER","BROTHIER"]
["Laboratoires Carilène","Carilène"]
["Laboratoires Carilène","Laboratoires Carilène"]
["LABORATOIRES CHAIX ET DU MARAIS","CHAIX ET DU MARAIS"]
["LABORATOIRES CLARINS","CLARINS"]
["LABORATOIRES COLOPLAST","COLOPLAST"]
["LABORATOIRES CONVATEC","CONVATEC"]
["Laboratoires Crinex","Crinex"]
["LABORATOIRES CTRS","CTRS"]
["Laboratoires CYCLOPHARMA","CYCLOPHARMA"]
["Laboratoires de Biologie Marine Daniel Jouvance","de Biologie Marine Daniel Jouvance"]
["Laboratoires de Biologie Végétale Yves Rocher","de Biologie Végétale Yves Rocher"]
["Laboratoires de Biologie Végétale Yves Rocher","Laboratoires de Biologie Végétale Yves Rocher"]
["Laboratoires DELBERT","DELBERT"]
["laboratoires dermatologiques d'Uriage","dermatologiques d'Uriage"]
["Laboratoires des Réalisations Thérapeutiques ELERTE","des Réalisations Thérapeutiques ELERTE"]
["Laboratoires des Réalisations Thérapeutiques ELERTE","Laboratoires des Réalisations Thérapeutiques ELERTE"]
["Laboratoires Doliage","Doliage"]
["Laboratoires ETHYPHARM","ETHYPHARM"]
["Laboratoires Expanscience","Expanscience"]
["LABORATOIRES GENEVRIER","GENEVRIER"]
["LABORATOIRES GERDA","GERDA"]
["LABORATOIRES GILBERT","GILBERT"]
["LABORATOIRES GRIMBERG SA","GRIMBERG SA"]
["Laboratoires Grünenthal SAS","Grünenthal"]
["Laboratoires Grünenthal SAS","Laboratoires Grünenthal SAS"]
["Laboratoires INELDEA","INELDEA"]
["Laboratoires inneov SNC","inneov SNC"]
["Laboratoires IPRAD PHARMA","IPRAD PHARMA"]
["LABORATOIRES JOLLY-JATEL","JOLLY-JATEL"]
["Laboratoires Juva Production","Juva Production"]
["Laboratoires Juva Santé","Juva Santé"]
["Laboratoires Juva Santé","Laboratoires Juva Santé"]
["LABORATOIRES JUVISE PHARMACEUTICALS","JUVISE PHARMACEUTICALS"]
["LABORATOIRES LEHNING SAS","LEHNING SAS"]
["Laboratoires Leurquin Mediolanum","Leurquin Mediolanum"]
["Laboratoires Lohmann & Rauscher","Lohmann & Rauscher"]
["LABORATOIRES M&L","M&L"]
["Laboratoires MAJORELLE","MAJORELLE"]
["LABORATOIRES MAYOLY SPINDLER","MAYOLY SPINDLER"]
["Laboratoires Moulin Royal Cosmetics","Moulin Royal Cosmetics"]
["Laboratoires NEGMA","NEGMA"]
["Laboratoires Nicox","Laboratoires Nicox"]
["LABORATOIRES NIGY","NIGY"]
["LABORATOIRES NOREVA LED","NOREVA LED"]
["LABORATOIRES OMEGA PHARMA FRANCE","OMEGA PHARMA FRANCE"]
["Laboratoires PHARMA 2000","PHARMA 2000"]
["LABORATOIRES PHARMACEUTIQUES DEXO","PHARMACEUTIQUES DEXO"]
["LABORATOIRES PHARMY II","PHARMY II"]
["Laboratoires PRED","PRED"]
["LABORATOIRES SUPER DIET","SUPER DIET"]
["Laboratoires SVR France","SVR France"]
["Laboratoires TERUMO S.A","TERUMO S.A"]
["Laboratoires THEA","THEA"]
["Laboratoires TONIPHARM SARL","TONIPHARM SARL"]
["LABORATOIRES URGO","URGO"]
["Laboratoires URSAPHARM SAS","URSAPHARM SAS"]
["LABORATORY IMPLANT MEDICAL DEVICE - LIMMED","LABORATORY IMPLANT MEDICAL DEVICE - LIMMED"]
["Labvoratoire CHAUVIN","Labvoratoire CHAUVIN"]
["Lamidey Noury Medical","Lamidey Noury Medical"]
["larm-o-tec","larm-o-tec"]
["LARS","LARS"]
["LASER","LASER"]
["LASOL ROYAN","LASOL ROYAN"]
["LAUVAL","LAUVAL"]
["LCA S.A.","LCA S.A."]
["LDR Médical","LDR Médical"]
["LDR Médical","LDR Médical"]
["Leica Biosystems Nussloch GmbH","Leica Biosystems Nussloch GmbH"]
["Leica Microsystèmes SAS","Leica Microsystèmes SAS"]
["Leica Microsystèmes SAS","Leica Microsystèmes SAS"]
["Leica Microsystems Inc.","Leica Microsystems Inc."]
["LeMaitre Vascular SAS","LeMaitre Vascular SAS"]
["LEN Médical","LEN Médical"]
["LEN Médical","LEN Médical"]
["LENTILLES SAS","LENTILLES SAS"]
["L'Entreprise Médicale","L'Entreprise Médicale"]
["L'Entreprise Médicale","L'Entreprise Médicale"]
["LEO Pharma","LEO Pharma"]
["LES LABORATOIRES OSTEAL MEDICAL","LES OSTEAL MEDICAL"]
["LES LABORATOIRES SERVIER","LES SERVIER"]
["LES SALONS DU PALAIS ROYAL SHISEIDO","LES SALONS DU PALAIS ROYAL SHISEIDO"]
["LFB BIOMANUFACTURING","LFB"]
["LFB BIOMEDICAMENTS","LFB"]
["LFB BIOTECHNOLOGIES","LFB"]
["LG HOMEO","LG HOMEO"]
["LIFE PARTNERS EUROPE","LIFE PARTNERS EUROPE"]
["Life Technologies Corporation","Life Technologies Corporation"]
["LIFE TECHNOLOGIES SAS","LIFE TECHNOLOGIES SAS"]
["LifeCell EMEA Limited","LifeCell EMEA Limited"]
["Lifescan","Lifescan"]
["Lilly France SAS","Lilly"]
["LIMA FRANCE","LIMA FRANCE"]
["LINDE FRANCE","LINDE FRANCE"]
["LINDE HOMECARE FRANCE SAS","LINDE HOMECARE FRANCE SAS"]
["LION / SENECA FRANCE AUDIO","LION / SENECA FRANCE AUDIO"]
["Lipomed GmbH","Lipomed GmbH"]
["Listening Pharma","Listening Pharma"]
["LivaNova","LivaNova"]
["LIVE ! BY GL EVENTS","LIVE ! BY GL EVENTS"]
["LKN MEDICAL SARL","LKN MEDICAL SARL"]
["Lohmann & Rauscher International GmbH & Co KG","Lohmann & Rauscher International GmbH & Co KG"]
["LOL PHARMA","LOL PHARMA"]
["LONGUEUR D'ONDES","LONGUEUR D'ONDES"]
["L'OREAL S.A.","L'OREAL S.A."]
["LPV","LPV"]
["LUCANE PHARMA","LUCANE PHARMA"]
["LUCAS MEYER COSMETICS","LUCAS MEYER COSMETICS"]
["Lumenis Ltd.","Lumenis Ltd."]
["LUNDBECK SAS","LUNDBECK SAS"]
["LV2","LV2"]
["LVL MEDICAL CENTRE EST","LVL MEDICAL CENTRE EST"]
["LVL MEDICAL EST","LVL MEDICAL EST"]
["LVL MEDICAL GROUPE","LVL MEDICAL GROUPE"]
["LVL MEDICAL OUEST","LVL MEDICAL OUEST"]
["LVL MEDICAL PARIS ET NORD","LVL MEDICAL PARIS ET NORD"]
["LVL MEDICAL SUD","LVL MEDICAL SUD"]
["LVL MEDICAL SUD OUEST","LVL MEDICAL SUD OUEST"]
["LYON KLEBER SANTE","LYON KLEBER SANTE"]
["Lysogene","Lysogene"]
["M3 Global Research Ltd","M3 Global Research Ltd"]
["MACO PHARMA","MACO PHARMA"]
["MACO PRODUCTIONS","MACO PRODUCTIONS"]
["MALLINCKRODT FRANCE SARL","MALLINCKRODT FRANCE SARL"]
["MANTARAY","MANTARAY"]
["MAPI SAS","MAPI SAS"]
["MAQUET SAS","MAQUET SAS"]
["MARIE AMELIE LENOIR CONSULTING - VICTA CONSEIL","MARIE AMELIE LENOIR CONSULTING - VICTA CONSEIL"]
["MARINA","MARINA"]
["mark'ennovy SARL","mark'ennovy SARL"]
["MARKET VISION","MARKET VISION"]
["MARQUAT GENIE BIOMEDICAL","MARQUAT GENIE BIOMEDICAL"]
["MARQUE VERTE WELCOOP SANTE","MARQUE VERTE WELCOOP SANTE"]
["MASIMO","MASIMO"]
["MAST THERAPEUTICS","MAST THERAPEUTICS"]
["Mathys Orthopédie","Mathys Orthopédie"]
["Mathys Orthopédie","Mathys Orthopédie"]
["Mauna Kea Technologies","Mauna Kea Technologies"]
["MAVALA FRANCE SA","MAVALA FRANCE SA"]
["MCCANN HEALTHCARE","MCCANN HEALTHCARE"]
["MD HANDICAP ET SOINS","MD HANDICAP ET SOINS"]
["MD ORTHO","MD ORTHO"]
["MDC-Partners","MDC-Partners"]
["Mdoloris Medical Systems","Mdoloris Medical Systems"]
["MECCELLIS BIOTECH","MECCELLIS BIOTECH"]
["MED OUEST","MED OUEST"]
["MED PLANET","MED PLANET"]
["med&you","med&you"]
["MEDA PHARMA","MEDA PHARMA"]
["MEDAC SAS","MEDAC SAS"]
["MEDACTA FRANCE","MEDACTA FRANCE"]
["MEDARTIS SARL","MEDARTIS SARL"]
["MEDCARE","MEDCARE"]
["medDigital","medDigital"]
["MED-EL Elektromedizinische Geraete Gesellschaft m.b.H","MED-EL Elektromedizinische Geraete Gesellschaft m.b.H"]
["Medela France Sarl","Medela France Sarl"]
["M-Eden","M-Eden"]
["MEDEX","MEDEX"]
["MEDEXACT","MEDEXACT"]
["medi","medi"]
["MEDI SYS","MEDI SYS"]
["Median Conseil","Median Conseil"]
["MEDIAN Technologies","MEDIAN Technologies"]
["MEDIATION CONSEIL SANTE","MEDIATION CONSEIL SANTE"]
["MEDIBOUM","MEDIBOUM"]
["MEDIC CENTRE EQUIPEMENT","MEDIC CENTRE EQUIPEMENT"]
["MEDIC CENTRE INDUSTRIE","MEDIC CENTRE INDUSTRIE"]
["MEDICAL AXÃˆS","MEDICAL AXÃˆS"]
["MEDICAL BEL AIR","MEDICAL BEL AIR"]
["Medical Eye Tec","Medical Eye Tec"]
["MEDICAL IMPLANTS","MEDICAL IMPLANTS"]
["MEDICAL INNOVATION DEVELOPPEMENT","MEDICAL INNOVATION DEVELOPPEMENT"]
["MEDICAL SANTE GRAND NORD","MEDICAL SANTE GRAND NORD"]
["Medicalo2","Medicalo2"]
["Medicals International (Off-Shore) SARL","Medicals International (Off-Shore) SARL"]
["Medicare_HTM","Medicare_HTM"]
["MEDICO FRANCE","MEDICO FRANCE"]
["MEDICONSEIL","MEDICONSEIL"]
["MEDICREA Europe Francophone","MEDICREA Europe Francophone"]
["MEDICREA INTERNATIONAL","MEDICREA INTERNATIONAL"]
["Medicys Limited","Medicys Limited"]
["Médi-Fav","Médi-Fav"]
["Médi-Fav","Médi-Fav"]
["MEDIKEA","MEDIKEA"]
["MEDIMARK EUROPE SARL","MEDIMARK EUROPE SARL"]
["MEDIOUTREMER","MEDIOUTREMER"]
["MEDIPHA SANTE","MEDIPHA SANTE"]
["MEDIPREMA","MEDIPREMA"]
["MEDISPORT","MEDISPORT"]
["MEDITEX","MEDITEX"]
["MEDITOR","MEDITOR"]
["MEDIVAL OUTRE-MER","MEDIVAL OUTRE-MER"]
["Mediwound Germany GmbH","Mediwound Germany GmbH"]
["Medline Assembly France SAS","Medline Assembly France SAS"]
["Medline International France SAS","Medline International France SAS"]
["Medtech","Medtech"]
["MEDTRONIC France S.A.S","MEDTRONIC France S.A.S"]
["MEDUSIMS","MEDUSIMS"]
["medwork France","medwork France"]
["MEGA DENTAL SAS","MEGA DENTAL SAS"]
["MELISANA","MELISANA"]
["MELLITUS CARE","MELLITUS CARE"]
["MENARINI FRANCE","MENARINI"]
["MENETRIER NARD SAS","MENETRIER NARD SAS"]
["MENICON SAS","MENICON SAS"]
["MENIX GROUP","MENIX GROUP"]
["Merck Medication Familiale","Merck Medication Familiale"]
["MERCK SANTE","MERCK SANTE"]
["MERCK SERONO","MERCK SERONO"]
["Mérieux Université","Mérieux Université"]
["Mérieux Université","Mérieux Université"]
["Merit Medical Asia Co., Ltd","Merit Medical Asia Co., Ltd"]
["Merit Medical France","Merit Medical France"]
["Merit Medical Netherlands","Merit Medical Netherlands"]
["Merit Medical Systems, Inc.","Merit Medical Systems, Inc."]
["MERZ PHARMA France","MERZ PHARMA France"]
["MERZ PHARMACEUTICALS GmbH","MERZ PHARMACEUTICALS GmbH"]
["MESSER FRANCE","MESSER FRANCE"]
["MICROGENICS GmbH","MICROGENICS GmbH"]
["MICRO-MEGA","MICRO-MEGA"]
["MICROPORT ORTHOPEDICS","MICROPORT ORTHOPEDICS"]
["MICROVAL","MICROVAL"]
["MicroVention Europe","MicroVention Europe"]
["MicroVention Inc.","MicroVention Inc."]
["MIELE SAS","MIELE SAS"]
["MILLWARD BROWN","MILLWARD BROWN"]
["MINMAXMEDICAL","MINMAXMEDICAL"]
["MINVASYS","MINVASYS"]
["MIS IMPLANTS TECHNOLOGIES FRANCE","MIS IMPLANTS TECHNOLOGIES FRANCE"]
["MITHRA PHARMACEUTICALS S.A.S","MITHRA PHARMACEUTICALS S.A.S"]
["ML2S","ML2S"]
["Mobidiag Oy","Mobidiag Oy"]
["Modérateur Ministère de la Santé","Modérateur Ministère de la Santé"]
["Modérateur Ministère de la Santé","Modérateur Ministère de la Santé"]
["Molnlycke Health Care","Molnlycke Health Care"]
["MONATH ELECTRONIC SARL","MONATH ELECTRONIC SARL"]
["MON-EVENT.COM","MON-EVENT.COM"]
["MONITORING FORCE FRANCE","MONITORING FORCE FRANCE"]
["MORIA LASE","MORIA LASE"]
["MORIA S.A.","MORIA S.A."]
["MOVE-UP","MOVE-UP"]
["MSD France","MSD France"]
["MSDAVENIR","MSD France"]
["MULTALER & CIE","MULTALER & CIE"]
["MULTIPLICOM","MULTIPLICOM"]
["MUNDIPHARMA","MUNDIPHARMA"]
["MV3 SAS","MV3 SAS"]
["MVRx, Inc.","MVRx, Inc."]
["MYLAN MEDICAL SAS","MYLAN"]
["MYLAN SAS","MYLAN"]
["NANOBIOTIX S.A.","NANOBIOTIX S.A."]
["Nanosonics Europe Limited","Nanosonics Europe Limited"]
["Nanosonics Limite","Nanosonics Limite"]
["Nanostring Technologies, Inc","Nanostring Technologies, Inc"]
["NAOS","NAOS"]
["NAOS FRANCE","NAOS FRANCE"]
["NeoMedLight SAS","NeoMedLight SAS"]
["NEOS","NEOS"]
["NEOSTEO","NEOSTEO"]
["NEOVACS","NEOVACS"]
["Nestlé Clinical Nutrition","Nestlé Clinical Nutrition"]
["Nestlé Clinical Nutrition","Nestlé Clinical Nutrition"]
["NESTLE HOMECARE","NESTLE HOMECARE"]
["Netika SA","Netika SA"]
["NEURAVI LIMITED","NEURAVI LIMITED"]
["NEURELEC","NEURELEC"]
["NEURELEC MAROC","NEURELEC MAROC"]
["newbone","newbone"]
["NEWCLIP INTERNATIONAL","NEWCLIP INTERNATIONAL"]
["NEWCLIP TECHNICS","NEWCLIP TECHNICS"]
["Newdeal","Newdeal"]
["NEXMED PHARMA","NEXMED PHARMA"]
["NICHROMINOX","NICHROMINOX"]
["NICOX","NICOX"]
["NIDEK SA","NIDEK SA"]
["NIHON KOHDEN","NIHON KOHDEN"]
["nile","nile"]
["NIPRO FRANCE","NIPRO FRANCE"]
["NOBEL BIOCARE FRANCE SAS","NOBEL BIOCARE FRANCE SAS"]
["Nobel Biocare Russia LLC","Nobel Biocare Russia LLC"]
["Nobel Biocare Services AG","Nobel Biocare Services AG"]
["Nobel Biocare USA LLC","Nobel Biocare USA LLC"]
["NODEA MEDICAL","NODEA MEDICAL"]
["NORAKER","NORAKER"]
["NORD IMPLANT","NORD IMPLANT"]
["NORDIC PHARMA SAS","Nordic Pharma"]
["NordiMED ApS","NordiMED ApS"]
["NORGINE PHARMA","NORGINE PHARMA"]
["Nouveal","Nouveal"]
["NOVALLIANCE MEDICAL","NOVALLIANCE MEDICAL"]
["NOVARTIS PHARMA SAS","Novartis"]
["NOVARTIS SANTE FAMILIALE SAS","Novartis"]
["NOVARTIS VACCINES AND DIAGNOSTICS SAS","Novartis"]
["NOVASTEP","NOVASTEP"]
["NOVATECH SA","NOVATECH SA"]
["NOVATEST","NOVATEST"]
["NOVILOIRE","NOVILOIRE"]
["NOVO NORDISK","Novo Nordisk"]
["Novo Nordisk Production SAS","Novo Nordisk Production SAS"]
["NPS PHARMA FRANCE","NPS PHARMA FRANCE"]
["NPS Pharma Holdings Limited","NPS Pharma Holdings Limited"]
["NPS Pharma UK Limited","NPS Pharma UK Limited"]
["NUTRICIA Nutrition Clinique","NUTRICIA Nutrition Clinique"]
["NUTRIMEDIA","NUTRIMEDIA"]
["NxStage Medical, Inc.","NxStage Medical, Inc."]
["OBJECTIF PHARMA","OBJECTIF PHARMA"]
["Objective Focus Limited","Objective Focus Limited"]
["OBL","OBL"]
["Observia SAS","Observia SAS"]
["Occurrence Healthcare","Occurrence Healthcare"]
["OCEAN TERRE BIOTECHNOLOGIE","OCEAN TERRE BIOTECHNOLOGIE"]
["Oceana Therapeutics, Ltd.","Oceana Therapeutics, Ltd."]
["Oceanide","Oceanide"]
["OCP REPARTITION","OCP REPARTITION"]
["Octapharma AG - Switzerland","Octapharma AG - Switzerland"]
["Octapharma France","Octapharma France"]
["OLEA MEDICAL S.A","OLEA MEDICAL S.A"]
["Olympus Biotech International","Olympus Biotech International"]
["Olympus Biotech International Europe","Olympus Biotech International Europe"]
["OLYMPUS CORPORATION","OLYMPUS CORPORATION"]
["OLYMPUS EUROPA SE & CO. KG","OLYMPUS EUROPA SE & CO. KG"]
["OLYMPUS France SAS","OLYMPUS France SAS"]
["OLYMPUS WINTER & IBE GmbH","OLYMPUS WINTER & IBE GmbH"]
["OMNIS MEDICA","OMNIS MEDICA"]
["OMR Globus","OMR Globus"]
["Omron Santé France","Omron Santé France"]
["Omron Santé France","Omron Santé France"]
["ONCommit","ONCommit"]
["ONIRIS","ONIRIS"]
["ONXEO","ONXEO"]
["OPHTACOM","OPHTACOM"]
["Ophta-France SA","Ophta-France SA"]
["Ophtalmic Compagnie","Ophtalmic Compagnie"]
["OPIA TECHNOLOGIES","OPIA TECHNOLOGIES"]
["OptiMed SARL","OptiMed SARL"]
["OPTIQUE E'CAUX","OPTIQUE E'CAUX"]
["OPTIQUE MENIVAL","OPTIQUE MENIVAL"]
["optique sebastopol","optique sebastopol"]
["Orexigen Therapeutics Ireland Limited","Orexigen Therapeutics Ireland Limited"]
["Orexigen Therapeutics, Inc.","Orexigen Therapeutics, Inc."]
["ORGENTEC SAS","ORGENTEC SAS"]
["ORIGIO France","ORIGIO France"]
["Orion Corporation Orion Pharma","Orion Corporation Orion Pharma"]
["ORION Santé","ORION Santé"]
["ORION Santé","ORION Santé"]
["ORLANE","ORLANE"]
["ORMCO FRANCE SAS","ORMCO FRANCE SAS"]
["ORMIHL DANET","ORMIHL DANET"]
["Orphan Europe","Orphan Europe"]
["Orphan Synergy Europe - Pharma","Orphan Synergy Europe - Pharma"]
["OrpheliPharm","OrpheliPharm"]
["ORTHO CLINICAL DIAGNOSTICS France","ORTHO CLINICAL DIAGNOSTICS France"]
["ORTHO CONCEPT","ORTHO CONCEPT"]
["ORTHO JET","ORTHO JET"]
["ortho medic","ortho medic"]
["Ortho Union","Ortho Union"]
["ORTHO.POUHAER","ORTHO.POUHAER"]
["Ortho-Clinical Diagnostics France","Ortho-Clinical Diagnostics France"]
["Orthofix S.r.l.","Orthofix S.r.l."]
["ORTHOFIX SA","ORTHOFIX SA"]
["ORTHOPAEDIC & SPINE DEVELOPMENT (OSD)","ORTHOPAEDIC & SPINE DEVELOPMENT (OSD)"]
["ORTHOPLUS","ORTHOPLUS"]
["ORTHO-SPACE Ltd","ORTHO-SPACE Ltd"]
["OrthoZ","OrthoZ"]
["OSE Immunotherapeutics","OSE Immunotherapeutics"]
["Oséus","Oséus"]
["Oséus","Oséus"]
["OST DEVELOPPEMENT","OST DEVELOPPEMENT"]
["OSTEOMED","OSTEOMED"]
["OSTESYS","OSTESYS"]
["OTICON MEDICAL","OTICON MEDICAL"]
["OTR3","OTR3"]
["Otsuka Novel Products GmbH","Otsuka Novel Products GmbH"]
["Otsuka Pharmaceutical France SAS","Otsuka Pharmaceutical France SAS"]
["Otsuka Pharpaceutical (Suisse) Sarl","Otsuka Pharpaceutical (Suisse) Sarl"]
["OTTO BOCK FRANCE SNC","OTTO BOCK FRANCE SNC"]
["Ouïe Fine","Ouïe Fine"]
["Ouïe Fine","Ouïe Fine"]
["OVERCOME","OVERCOME"]
["OWEN MUMFORD","OWEN MUMFORD"]
["OXOID","OXOID"]
["OXYPHARM","OXYPHARM"]
["OXYVIE S.A.S","OXYVIE S.A.S"]
["P\\S\\L Group France S.A. R. L.","P\\S\\L Group France S.A. R. L."]
["P\\S\\L Group Services","P\\S\\L Group Services"]
["PACKAGE","PACKAGE"]
["PALL FRANCE","PALL FRANCE"]
["PALLIEZ OPTIQUE","PALLIEZ OPTIQUE"]
["PALO ALTOURS","PALO ALTOURS"]
["PANPHARMA","PANPHARMA"]
["PANSEPLAIE","PANSEPLAIE"]
["Pa-pri-K","Pa-pri-K"]
["PAREXEL International","PAREXEL International"]
["PARIS KLEBER SANTE","PARIS KLEBER SANTE"]
["PASCALEO","PASCALEO"]
["PASTEL AUDIOLOGIE","PASTEL AUDIOLOGIE"]
["PathoQuest SAS","PathoQuest SAS"]
["PAUL HARTMANN SA","PAUL HARTMANN SA"]
["PDL ORTHO","PDL ORTHO"]
["PECH CERCIAT","PECH CERCIAT"]
["PEGASE","PEGASE"]
["PENTAX MEDICAL","PENTAX MEDICAL"]
["Penumbra, Inc.","Penumbra, Inc."]
["PERF NUT ASSISTANCE ILE DE FRANCE","PERF NUT ASSISTANCE ILE DE FRANCE"]
["PERF NUT ASSISTANCE LANGUEDOC ROUSSILLON","PERF NUT ASSISTANCE LANGUEDOC ROUSSILLON"]
["PERF NUT ASSISTANCE MIDI PYRENEES","PERF NUT ASSISTANCE MIDI PYRENEES"]
["PERF NUT ASSISTANCE NORD","PERF NUT ASSISTANCE NORD"]
["PERF NUT ASSISTANCE SUD EST","PERF NUT ASSISTANCE SUD EST"]
["PERF.U.LOR GROUPE","PERF.U.LOR GROUPE"]
["PERFORMANCE COMMUNICATION PHARMA","PERFORMANCE COMMUNICATION PHARMA"]
["PERF-R","PERF-R"]
["perkinElmer","perkinElmer"]
["PEROUSE MEDICAL","PEROUSE MEDICAL"]
["PEROUSE PLASTIE","PEROUSE PLASTIE"]
["PERRIER SURDITE ANNECY SAS","PERRIER SURDITE ANNECY SAS"]
["PETERS SURGICAL","PETERS SURGICAL"]
["PETNET Solutions SAS","PETNET Solutions SAS"]
["PFIZER INTERNATIONAL OPERATIONS","Pfizer"]
["PFIZER PFE FRANCE","Pfizer"]
["PFIZER SANTE FAMILIALE","Pfizer"]
["PFIZER SAS","Pfizer"]
["PFM MEDICAL FRANCE","PFM MEDICAL FRANCE"]
["PGRD","PGRD"]
["PHADIA GmbH","PHADIA GmbH"]
["PHADIA NV/SA","PHADIA NV/SA"]
["PHADIA SAS","PHADIA SAS"]
["PHARMA DOM","PHARMA DOM"]
["PHARMA MAR S.A.R.L.","PHARMA MAR S.A.R.L."]
["Pharma Services","Pharma Services"]
["Pharmacie du Tholon","Pharmacie du Tholon"]
["pharmacie ramberti","pharmacie ramberti"]
["Pharmacosmos","Pharmacosmos"]
["PHARMACTIV DISTRIBUTION","PHARMACTIV DISTRIBUTION"]
["pharmaouest industries","pharmaouest industries"]
["PHARMATHERA","PHARMATHERA"]
["Pharm-Olam International SPRL","Pharm-Olam International SPRL"]
["PHAROLY","PHAROLY"]
["PHASE 5 Editions médicales","PHASE 5 Editions médicales"]
["PHASE 5 Editions médicales","PHASE 5 Editions médicales"]
["PHENIX CARDIOLOGIE","PHENIX CARDIOLOGIE"]
["PHILIPS FRANCE","PHILIPS FRANCE"]
["Philips France Commercial","Philips France Commercial"]
["PHOCEENNE D'ORTHOPEDIE","PHOCEENNE D'ORTHOPEDIE"]
["PHOENIX PHARMA","PHOENIX PHARMA"]
["PHONAK FRANCE","PHONAK FRANCE"]
["PhoneResearch","PhoneResearch"]
["PHYDATA","PHYDATA"]
["PHYSIDIA","PHYSIDIA"]
["PHYSIO CONTROL FRANCE SARL","PHYSIO CONTROL FRANCE SARL"]
["Physiol","Physiol"]
["PHYSIOL FRANCE","PHYSIOL FRANCE"]
["PHYSIOMED","PHYSIOMED"]
["PHYTOCOM","PHYTOCOM"]
["Pierre Fabre Dermo-Cosmétique","Pierre Fabre Dermo-Cosmétique"]
["Pierre Fabre Dermo-Cosmétique","Pierre Fabre Dermo-Cosmétique"]
["PIERRE FABRE MEDICAMENT","Pierre Fabre Médicament"]
["PIERRE FABRE SA","PIERRE FABRE SA"]
["Piramal Imaging GmbH","Piramal Imaging GmbH"]
["PLASMA SURGICAL SARL","PLASMA SURGICAL SARL"]
["PneumRx Ltd.","PneumRx Ltd."]
["POLARIS MANAGEMENT","POLARIS MANAGEMENT"]
["PolyNovo Biomaterials Pty Ltd","PolyNovo Biomaterials Pty Ltd"]
["Porte de l'audition","Porte de l'audition"]
["POURET MEDICAL","POURET MEDICAL"]
["PPD FRANCE SAS","PPD FRANCE SAS"]
["PPi Healthcare Consulting Ltd","PPi Healthcare Consulting Ltd"]
["PR EDITIONS SAS","PR EDITIONS SAS"]
["PRA","PRA"]
["Precilens","Precilens"]
["PRECIPHAR","PRECIPHAR"]
["Premier Research","Premier Research"]
["PRESSE & PAPIERS","PRESSE & PAPIERS"]
["prevor","prevor"]
["Primax","Primax"]
["PRIORITIS","PRIORITIS"]
["PRIVIUM MEDICAL","PRIVIUM MEDICAL"]
["PROBACE MEDITEC","PROBACE MEDITEC"]
["PROBACE VAR","PROBACE VAR"]
["PROBIONOV","PROBIONOV"]
["PROCLAIM","PROCLAIM"]
["PROCTER & GAMBLE FRANCE","PROCTER & GAMBLE FRANCE"]
["PROCTER & GAMBLE PHARMACEUTICALS FRANCE","PROCTER & GAMBLE PHARMACEUTICALS FRANCE"]
["PRODAREV","PRODAREV"]
["PRODIS","PRODIS"]
["Prodition","Prodition"]
["PRODUITS DENTAIRES PIERRE ROLLAND","PRODUITS DENTAIRES PIERRE ROLLAND"]
["PROFIL ORTHOPEDIE","PROFIL ORTHOPEDIE"]
["Promethera Biosciences SA","Promethera Biosciences SA"]
["PROMOGEN","PROMOGEN"]
["PROMONET PROMEDICAL","PROMONET PROMEDICAL"]
["PROSTEEL","PROSTEEL"]
["ProStrakan Pharma","ProStrakan Pharma"]
["PROTHEOS INDUSTRIE","PROTHEOS INDUSTRIE"]
["PROTHEOS OUEST","PROTHEOS OUEST"]
["PROTHEOS SA","PROTHEOS SA"]
["PROXILIO","PROXILIO"]
["PSI CRO AG","PSI CRO AG"]
["PSI CRO FRANCE","PSI CRO FRANCE"]
["PTC THERAPEUTICS  INTERNATIONAL LIMITED","PTC THERAPEUTICS  INTERNATIONAL LIMITED"]
["PTC Therapeutics France SAS","PTC Therapeutics France SAS"]
["Publicis Consultants France","Publicis Consultants France"]
["PUBLICIS LIFE BRANDS","PUBLICIS LIFE BRANDS"]
["Pulmonx International SARL","Pulmonx International SARL"]
["Pulmonx International SÀrl","Pulmonx International SÀrl"]
["PURESSENTIEL","PURESSENTIEL"]
["Qiagen France SAS","Qiagen France SAS"]
["QIAGEN Marseille S.A","QIAGEN Marseille S.A"]
["QUALEES","QUALEES"]
["Qualitative & Quantitative Fieldwork Services","Qualitative & Quantitative Fieldwork Services"]
["QualWorld","QualWorld"]
["QUANTEL MEDICAL","QUANTEL MEDICAL"]
["QUERYO MEDICAL SAS","QUERYO MEDICAL SAS"]
["QUINTILES BENEFIT FRANCE SNC","QUINTILES BENEFIT FRANCE SNC"]
["RADENKOVIC SACHA","RADENKOVIC SACHA"]
["RADIANTE","RADIANTE"]
["RADIOMETER SAS","RADIOMETER SAS"]
["RANBAXY PHARMACIE GENERIQUES","RANBAXY PHARMACIE GENERIQUES"]
["RAPTOR PHARMACEUTICALS FRANCE","RAPTOR PHARMACEUTICALS FRANCE"]
["RAPTOR PHARMACEUTICALS FRANCE SAS","RAPTOR PHARMACEUTICALS FRANCE SAS"]
["RB Pharmaceuticals France","RB Pharmaceuticals France"]
["rc - research & consulting GmbH","rc - research & consulting GmbH"]
["Reckitt Benckiser France","Reckitt Benckiser France"]
["Reckitt Benckiser Healthcare France","Reckitt Benckiser Healthcare France"]
["Reckitt Benckiser SLOUGH","Reckitt Benckiser SLOUGH"]
["ReCor Medical Inc","ReCor Medical Inc"]
["Regeneron Pharmaceuticals, Inc.","Regeneron Pharma"]
["REGULUS THERAPEUTICS INC.",{"$error":"#N/A"}]
["RE-IMAGINE Health Agency","RE-IMAGINE Health Agency"]
["Renishaw Mayfield","Renishaw Mayfield"]
["RESAL","RESAL"]
["RESEARCH NOW SAS","RESEARCH NOW SAS"]
["RESMED SAS","RESMED SAS"]
["RESPI'SANTE","RESPI'SANTE"]
["ReVision Optics","ReVision Optics"]
["REVOL-BUISSON","REVOL-BUISSON"]
["RICHARD FRERES","RICHARD FRERES"]
["Richard SIMON","Richard SIMON"]
["RICHARD WOLF FRANCE","RICHARD WOLF FRANCE"]
["RIVORTHO","RIVORTHO"]
["RMO EUROPE","RMO EUROPE"]
["RNP SANTE","RNP SANTE"]
["ROCHE DIABETES CARE FRANCE","ROCHE DIABETES CARE FRANCE"]
["ROCHE DIAGNOSTICS FRANCE","ROCHE DIAGNOSTICS FRANCE"]
["Roche Diagnostics GmbH","Roche Diagnostics GmbH"]
["Roche Diagnostics International Ltd","Roche Diagnostics International Ltd"]
["Roche Diagnostics Operations, Inc.","Roche Diagnostics Operations, Inc."]
["Roche Lebanon SARL","Roche Lebanon SARL"]
["Roche Products (Pty) Ltd South Africa","Roche Products (Pty) Ltd South Africa"]
["ROCHE SAS","Roche"]
["Rodenstock France","Rodenstock France"]
["RONIN Corporation","RONIN Corporation"]
["ROTTAPHARM SAS","ROTTAPHARM"]
["R-Squared Services and Solutions, Inc.","R-Squared Services and Solutions, Inc."]
["R'SUD MEDICAL","R'SUD MEDICAL"]
["RTI SURGICAL","RTI SURGICAL"]
["RUNESCENCE","RUNESCENCE"]
["S.O.S M.A.D","S.O.S M.A.D"]
["S.O.S OXYGENE ILE DE France","S.O.S OXYGENE ILE DE France"]
["S.O.S OXYGENE SUD","S.O.S OXYGENE SUD"]
["S.O.S. OXYGENE ATLANTIQUE","S.O.S. OXYGENE ATLANTIQUE"]
["S.O.S. OXYGENE BRETAGNE","S.O.S. OXYGENE BRETAGNE"]
["S.O.S. OXYGENE GARONNE","S.O.S. OXYGENE GARONNE"]
["S.O.S. OXYGENE GRAND OUEST","S.O.S. OXYGENE GRAND OUEST"]
["S.O.S. OXYGENE NORMANDIE","S.O.S. OXYGENE NORMANDIE"]
["S.O.S. OXYGENE SUD","S.O.S. OXYGENE SUD"]
["S2A SANTE ILE DE FRANCE","S2A SANTE ILE DE FRANCE"]
["SA Bristol-Myers Squibb Belgium","SA Bristol-Myers Squibb Belgium"]
["SA CERP BRETAGNE ATLANTIQUE","SA CERP BRETAGNE ATLANTIQUE"]
["SA J & B FRANCOIS","SA J & B FRANCOIS"]
["SA LANDANGER","SA LANDANGER"]
["SA MEDICOSCOP","SA MEDICOSCOP"]
["SADIR ASSISTANCE","SADIR ASSISTANCE"]
["SAFE ORTHOPAEDICS","SAFE ORTHOPAEDICS"]
["SAFIR DENTAIRE","SAFIR DENTAIRE"]
["Sage Products LLC","Sage Products LLC"]
["SALESWAY","SALESWAY"]
["Salix Pharmaceuticals, Inc.","Salix Pharmaceuticals, Inc."]
["SAM TECHNI-PHARMA","SAM TECHNI-PHARMA"]
["SAMSUNG ELECTRONICS FRANCE","SAMSUNG ELECTRONICS FRANCE"]
["SANDOZ","SANDOZ"]
["SANETIS","SANETIS"]
["SANOFI AVENTIS FRANCE","Sanofi Aventis France"]
["SANOFI CHIMIE","SANOFI CHIMIE"]
["SANOFI PASTEUR","SANOFI PASTEUR"]
["SANOFI PASTEUR MSD SNC","SANOFI PASTEUR MSD SNC"]
["SANOFI WINTHROP INDUSTRIE","SANOFI WINTHROP INDUSTRIE"]
["SANOFI-AVENTIS GROUPE","SANOFI-AVENTIS GROUPE"]
["SANOFI-AVENTIS RECHERCHE & DEVELOPPEMENT","SANOFI-AVENTIS RECHERCHE & DEVELOPPEMENT"]
["SANOTEK","SANOTEK"]
["SANTE PLUS","SANTE PLUS"]
["Santelynes","Santelynes"]
["SANTELYS ASSOCIATION","SANTELYS ASSOCIATION"]
["SANTEN","SANTEN"]
["SANTEO","SANTEO"]
["Santor edition","Santor edition"]
["SARL ACIO","SARL ACIO"]
["SARL ACOUSTIQUE ALBIGEOISE","SARL ACOUSTIQUE ALBIGEOISE"]
["SARL ADAGIO","SARL ADAGIO"]
["SARL ALLIANCESOINS","SARL ALLIANCESOINS"]
["SARL ASTRIAD","SARL ASTRIAD"]
["sarl ATLANTIQUE PERFUSION","sarl ATLANTIQUE PERFUSION"]
["SARL AUDIO EISENHOWER","SARL AUDIO EISENHOWER"]
["SARL AUDIO.V","SARL AUDIO.V"]
["Sarl Audioptique Conseil","Sarl Audioptique Conseil"]
["SARL AUDIOSON","SARL AUDIOSON"]
["SARL AUDITION AQUITAINE","SARL AUDITION AQUITAINE"]
["SARL AUDITION JUTIER PIRON","SARL AUDITION JUTIER PIRON"]
["SARL AUNIS AUDITION","SARL AUNIS AUDITION"]
["SARL AURISSIMANS","SARL AURISSIMANS"]
["SARL AURISSIMO","SARL AURISSIMO"]
["SARL BALLAN AUDITION","SARL BALLAN AUDITION"]
["SARL BRIVE AUDITION","SARL BRIVE AUDITION"]
["SARL CENTRE DE L AUDITION","SARL CENTRE DE L AUDITION"]
["SARL Centre Val de Loire Audition","SARL Centre Val de Loire Audition"]
["SARL CLAUDE EMARD","SARL CLAUDE EMARD"]
["sarl conseil medico technique","sarl conseil medico technique"]
["SARL DLMEDICAL","SARL DLMEDICAL"]
["SARL DOMORTHO","SARL DOMORTHO"]
["SARL ETS M GRANDET","SARL ETS M GRANDET"]
["SARL GHAMA","SARL GHAMA"]
["SARL GROUSEAU","SARL GROUSEAU"]
["SARL INFINY","SARL INFINY"]
["SARL LABORATOIRE DUPONT","SARL DUPONT"]
["SARL LABORATOIRE LEMOINE AUDITION","SARL LEMOINE AUDITION"]
["SARL LABORATOIRE MICHAEL BERTOUX","SARL MICHAEL BERTOUX"]
["SARL LAUBEN","SARL LAUBEN"]
["SARL LE STRAT","SARL LE STRAT"]
["SARL LES MOUETTES OPTIQUE","SARL LES MOUETTES OPTIQUE"]
["SARL LOMACO","SARL LOMACO"]
["SARL L'OREILLETTE DU MANS","SARL L'OREILLETTE DU MANS"]
["SARL LUNODIA","SARL LUNODIA"]
["sarl msdcp","sarl msdcp"]
["SARL NIVOLET AUDITION","SARL NIVOLET AUDITION"]
["SARL OPTAC","SARL OPTAC"]
["sarl optique audioprotheses roussarie","sarl optique audioprotheses roussarie"]
["sarl optique mesnard","sarl optique mesnard"]
["sarl optique mesnard auchy","sarl optique mesnard auchy"]
["SARL ORLEANS AUDIOPROTHESE","SARL ORLEANS AUDIOPROTHESE"]
["SARL OXY-PERF","SARL OXY-PERF"]
["SARL PACIMED","SARL PACIMED"]
["Sarl Parapharm France","Sarl Parapharm France"]
["SARL PEFD","SARL PEFD"]
["SARL PROTHYS","SARL PROTHYS"]
["SARL RR CONSEIL","SARL RR CONSEIL"]
["SARL SOPHILMED","SARL SOPHILMED"]
["SARL SOPHILMED LENS","SARL SOPHILMED LENS"]
["SAS ALLIANCE MEDICALE SERVICES","SAS ALLIANCE MEDICALE SERVICES"]
["SAS AUDITION EXPERT","SAS AUDITION EXPERT"]
["SAS BIOVAS","SAS BIOVAS"]
["SAS Esprit d'Ethique","SAS Esprit d'Ethique"]
["SAS IOVIE","SAS IOVIE"]
["SAS LABORATOIRES VIVACY","SAS VIVACY"]
["SAS OPTIQUE SURDITE DESNOUES","SAS OPTIQUE SURDITE DESNOUES"]
["SAS ORTHO OUEST","SAS ORTHO OUEST"]
["SATELEC SAS","SATELEC SAS"]
["SBM","SBM"]
["Schering-Plough","Schering-Plough"]
["SCHEU DENTAL FRANCE","SCHEU DENTAL FRANCE"]
["Schulke France SARL","Schulke France SARL"]
["SCHWA-MEDICO FRANCE","SCHWA-MEDICO FRANCE"]
["SCIENCE ET MEDECINE","SCIENCE ET MEDECINE"]
["SCIENT'X SAS","SCIENT'X SAS"]
["Scope International France","Scope International France"]
["SCORPION","SCORPION"]
["SDC SOCIETE DES CENDRES","SDC SOCIETE DES CENDRES"]
["SDI Dental Limited","SDI Dental Limited"]
["SEBAC","SEBAC"]
["Sebia","Sebia"]
["Second Stage Pharma","Second Stage Pharma"]
["SEDOMA","SEDOMA"]
["SEFAM","SEFAM"]
["Segmedica","Segmedica"]
["Selarl Pharmacie Panonnaise","Selarl Pharmacie Panonnaise"]
["SELAS PHARMACIE DE LA REPUBLIQUE","SELAS PHARMACIE DE LA REPUBLIQUE"]
["SEMES","SEMES"]
["SENDAL FRANCE","SENDAL FRANCE"]
["SEPRODOM ANTILLES","SEPRODOM ANTILLES"]
["SEPRODOM REUNION","SEPRODOM REUNION"]
["SEPROPHARM INTERNATIONAL","SEPROPHARM INTERNATIONAL"]
["SEPTODONT SAS","SEPTODONT SAS"]
["Sequent Medical GmbH","Sequent Medical GmbH"]
["Sequent Medical Inc.","Sequent Medical Inc."]
["SERB","SERB"]
["SERENITY MEDICAL SERVICES SARL","SERENITY MEDICAL SERVICES SARL"]
["SERF","SERF"]
["SERF EXTREMITY","SERF EXTREMITY"]
["Serial Creative","Serial Creative"]
["SESC","SESC"]
["SETMI","SETMI"]
["seven dreamers laboratories","seven dreamers laboratories"]
["SGP AUDIO","SGP AUDIO"]
["SHAMIR FRANCE SARL","SHAMIR FRANCE SARL"]
["SHC Universal","SHC Universal"]
["SHIRE France S.A.","SHIRE France S.A."]
["SHISEIDO INTERNATIONAL FRANCE SIF","SHISEIDO INTERNATIONAL FRANCE SIF"]
["SHOCKWAVE MEDICAL INC.","SHOCKWAVE MEDICAL INC."]
["SIEMENS AUDIOLOGIE","SIEMENS AUDIOLOGIE"]
["Siemens Healthcare Diagnostics SAS","Siemens Healthcare Diagnostics SAS"]
["SIEMENS HEALTHCARE SAS","SIEMENS HEALTHCARE SAS"]
["SIEMENS SAS","SIEMENS SAS"]
["Sigma-tau France","Sigma-tau France"]
["SIGVARIS","SIGVARIS"]
["SIMARATO","SIMARATO"]
["Simon-Kucher & Partners","Simon-Kucher & Partners"]
["Simpson Carpenter","Simpson Carpenter"]
["SINCLAIR PHARMA","SINCLAIR PHARMA"]
["Sinclair pharmaceuticals limited french branch","Sinclair pharmaceuticals limited french branch"]
["SIRONA DENTAL SYSTEMS SAS","SIRONA DENTAL SYSTEMS SAS"]
["Sirtex Medical Europe GmbH","Sirtex Medical Europe GmbH"]
["SIVANTOS","SIVANTOS"]
["SKY CONSULTING","SKY CONSULTING"]
["SM EUROPE","SM EUROPE"]
["Small Bone Innovations International SAS","Small Bone Innovations International SAS"]
["Smartsanté Gestion","Smartsanté Gestion"]
["Smartsanté Gestion","Smartsanté Gestion"]
["Smith & Nephew FZE","Smith & Nephew FZE"]
["Smith & Nephew Inc.","Smith & Nephew Inc."]
["Smith & Nephew Orthopaedics AG","Smith & Nephew Orthopaedics AG"]
["Smith & Nephew Orthopaedics France SAS","Smith & Nephew Orthopaedics France SAS"]
["Smith & Nephew S.A.S.","Smith & Nephew S.A.S."]
["Smith & Nephew UK Limited","Smith & Nephew UK Limited"]
["Smith & Nephew US - Ortho","Smith & Nephew US - Ortho"]
["Smith & Nephew, Inc. Recon","Smith & Nephew, Inc. Recon"]
["SMITHS MEDICAL FRANCE","SMITHS MEDICAL FRANCE"]
["SNC LCA de NICE","SNC LCA de NICE"]
["Sociable Data Ltd","Sociable Data Ltd"]
["SOCIETE CARIBEENNE DE L'AUDITION","SOCIETE CARIBEENNE DE L'AUDITION"]
["Société des gaz industriels de la Guadeloupe","Société des gaz industriels de la Guadeloupe"]
["Société des gaz industriels de la Guadeloupe","Société des gaz industriels de la Guadeloupe"]
["Société Française de Cardiologie","Société Française de Cardiologie"]
["Société Française de Cardiologie","Société Française de Cardiologie"]
["SOCIETE FRANCAISE D'ORTHOPEDIE","SOCIETE FRANCAISE D'ORTHOPEDIE"]
["Société Guyanaise de l'Air Liquide","Société Guyanaise de l'Air Liquide"]
["Société Guyanaise de l'Air Liquide","Société Guyanaise de l'Air Liquide"]
["Société Martiniquaise de l'Air Liquide","Société Martiniquaise de l'Air Liquide"]
["Société Martiniquaise de l'Air Liquide","Société Martiniquaise de l'Air Liquide"]
["SOCIETES DU GROUPE TEVA HORS FRANCE","SOCIETES DU GROUPE TEVA HORS FRANCE"]
["SOFIBEL","SOFIBEL"]
["SOFIBEL Laboratoires Fumouze","SOFIBEL Fumouze"]
["SOFRADIM PRODUCTION","SOFRADIM PRODUCTION"]
["Solutions Finances","Solutions Finances"]
["SomnoMed France","SomnoMed France"]
["SONATINE","SONATINE"]
["SONY EUROPE LIMITED","SONY EUROPE LIMITED"]
["Sophysa","Sophysa"]
["SOPRO ACTEON Group","SOPRO ACTEON Group"]
["SORIN GROUP FRANCE","SORIN GROUP FRANCE"]
["SOS MEDICAL","SOS MEDICAL"]
["SOS OXYGENE","SOS OXYGENE"]
["SOS OXYGENE ALSACE","SOS OXYGENE ALSACE"]
["SOS OXYGENE ANTILLES","SOS OXYGENE ANTILLES"]
["SOS OXYGENE ATLANTIQUE CENTRE","SOS OXYGENE ATLANTIQUE CENTRE"]
["SOS OXYGENE AUVERGNE","SOS OXYGENE AUVERGNE"]
["SOS OXYGENE BASSIN PARISIEN NORD","SOS OXYGENE BASSIN PARISIEN NORD"]
["SOS OXYGENE BASSIN PARISIEN NORD Les Mureaux","SOS OXYGENE BASSIN PARISIEN NORD Les Mureaux"]
["SOS OXYGENE BASSIN PARISIEN SUD","SOS OXYGENE BASSIN PARISIEN SUD"]
["SOS OXYGENE CENTRE","SOS OXYGENE CENTRE"]
["SOS OXYGENE CENTRE EST","SOS OXYGENE CENTRE EST"]
["SOS OXYGENE CENTRE OUEST","SOS OXYGENE CENTRE OUEST"]
["SOS OXYGENE CHAMPAGNE ARDENNES","SOS OXYGENE CHAMPAGNE ARDENNES"]
["SOS OXYGENE FRANCHE COMTE","SOS OXYGENE FRANCHE COMTE"]
["SOS OXYGENE GARONNE","SOS OXYGENE GARONNE"]
["SOS OXYGENE GRAND EST","SOS OXYGENE GRAND EST"]
["SOS OXYGENE GRAND PERIGORD","SOS OXYGENE GRAND PERIGORD"]
["SOS OXYGENE GRAND SUD","SOS OXYGENE GRAND SUD"]
["SOS OXYGENE ILE DE France EST","SOS OXYGENE ILE DE France EST"]
["SOS OXYGENE ILE DE FRANCE EST Vierzon 1","SOS OXYGENE ILE DE FRANCE EST Vierzon 1"]
["SOS OXYGENE ILE DE FRANCE EST Vierzon 2","SOS OXYGENE ILE DE FRANCE EST Vierzon 2"]
["SOS OXYGENE ILE DE France NORD","SOS OXYGENE ILE DE France NORD"]
["SOS OXYGENE ILE E FRANCE EST","SOS OXYGENE ILE E FRANCE EST"]
["SOS OXYGENE LOIRE HAUTE LOIRE","SOS OXYGENE LOIRE HAUTE LOIRE"]
["SOS OXYGENE LORRAINE","SOS OXYGENE LORRAINE"]
["SOS OXYGENE MEDITERRANEE","SOS OXYGENE MEDITERRANEE"]
["SOS OXYGENE MOR-BIHAN / PENN AR BEDÂ Â","SOS OXYGENE MOR-BIHAN / PENN AR BEDÂ Â"]
["SOS OXYGENE MOR-BIHAN / PENN AR BEDÂ Â ","SOS OXYGENE MOR-BIHAN / PENN AR BEDÂ Â "]
["SOS OXYGENE NORD JOLY MEDICAL","SOS OXYGENE NORD JOLY MEDICAL"]
["SOS OXYGENE NORD OUEST","SOS OXYGENE NORD OUEST"]
["SOS OXYGENE NORMANDIE","SOS OXYGENE NORMANDIE"]
["SOS OXYGENE PARTICIPATIONS","SOS OXYGENE PARTICIPATIONS"]
["SOS OXYGENE PAYS DE LOIRE","SOS OXYGENE PAYS DE LOIRE"]
["SOS OXYGENE PAYS DE LOIRE NORD","SOS OXYGENE PAYS DE LOIRE NORD"]
["SOS OXYGENE PROVENCE","SOS OXYGENE PROVENCE"]
["SOS OXYGENE PYRENEES CENTRE","SOS OXYGENE PYRENEES CENTRE"]
["SOS OXYGENE REUNION","SOS OXYGENE REUNION"]
["SOS OXYGENE REUNION St Leu","SOS OXYGENE REUNION St Leu"]
["SOS OXYGENE REUNION St Paul","SOS OXYGENE REUNION St Paul"]
["SOS OXYGENE RHONE ALPES","SOS OXYGENE RHONE ALPES"]
["SOS OXYGENE RHONE ALPES Vaulx","SOS OXYGENE RHONE ALPES Vaulx"]
["SOS OXYGENE SUD ALSACE","SOS OXYGENE SUD ALSACE"]
["SOS OXYGENE SUD LOIRE","SOS OXYGENE SUD LOIRE"]
["SOS OXYGENE VAR","SOS OXYGENE VAR"]
["SOSECAT","SOSECAT"]
["SOTHYS PARIS","SOTHYS PARIS"]
["sowadio","sowadio"]
["Spector Consulting","Spector Consulting"]
["SPECTRANETICS FRANCE SARL","SPECTRANETICS FRANCE SARL"]
["SPECTRANETICS INTERNATIONAL B.V.","SPECTRANETICS INTERNATIONAL B.V."]
["SPINEART SA","SPINEART SA"]
["SPINEGUARD","SPINEGUARD"]
["SPINEVISION","SPINEVISION"]
["SPINEWAY","SPINEWAY"]
["Springer Science+Business Media France","Springer Science+Business Media France"]
["SSL HEALTHCARE ITALIA","SSL HEALTHCARE ITALIA"]
["ST AUDITION","ST AUDITION"]
["St Jude Medical France SAS","St Jude Medical France SAS"]
["STALLERGENES SA","STALLERGENES SA"]
["Stanhome International","Stanhome International"]
["STARKEY FRANCE","STARKEY FRANCE"]
["STATESIA","STATESIA"]
["STENTYS S.A","STENTYS S.A"]
["STEPHANIX","STEPHANIX"]
["sterience","sterience"]
["STERIS","STERIS"]
["STERLING COOPER","STERLING COOPER"]
["STETHOS","STETHOS"]
["STETHOS INTERNATIONAL","STETHOS INTERNATIONAL"]
["Stragen France","Stragen France"]
["STRATEGIQUE SANTE","STRATEGIQUE SANTE"]
["StratLab81","StratLab81"]
["STRAUB MEDICAL (France)","STRAUB MEDICAL (France)"]
["Straumann France","Straumann France"]
["STRYKER FRANCE SAS","STRYKER FRANCE SAS"]
["Stryker Trauma GmbH","Stryker Trauma GmbH"]
["SUBLIMED","SUBLIMED"]
["SUBSTIPHARM DEVELOPPEMENT","SUBSTIPHARM DEVELOPPEMENT"]
["SUBSTRATHOMME","SUBSTRATHOMME"]
["SUD OUEST ORTHOPEDIE","SUD OUEST ORTHOPEDIE"]
["SUN PHARMACEUTICALS FRANCE","SUN PHARMACEUTICALS FRANCE"]
["Sunesis Pharmaceuticals","Sunesis Pharmaceuticals"]
["Sunnikan Consulting","Sunnikan Consulting"]
["SUNSTAR FRANCE","SUNSTAR FRANCE"]
["SuperSonic Imagine","SuperSonic Imagine"]
["surdioptic","surdioptic"]
["SURGIVIEW SAS","SURGIVIEW SAS"]
["SURGIVISIO","SURGIVISIO"]
["SWEDISH ORPHAN BIOVITRUM","SWEDISH ORPHAN BIOVITRUM"]
["SWEDISH ORPHAN BIOVITRUM AB (publ)","SWEDISH ORPHAN BIOVITRUM AB (publ)"]
["SWING TECHNOLOGIES","SWING TECHNOLOGIES"]
["SYLVESTRE AUDITION","SYLVESTRE AUDITION"]
["SYMATESE","SYMATESE"]
["SYMATESE AESTHETICS","SYMATESE AESTHETICS"]
["Symbios Orthopédie SA","Symbios Orthopédie SA"]
["Symbios Orthopédie SA","Symbios Orthopédie SA"]
["symbios sas","symbios sas"]
["Synageva BioPharma SAS","Synageva BioPharma SAS"]
["Synakene","Synakene"]
["SYNAPSE SANTE","SYNAPSE SANTE"]
["SynteractHCR France S.A.S.","SynteractHCR France S.A.S."]
["SYNTHES","SYNTHES"]
["SYSMED ASSISTANCE","SYSMED ASSISTANCE"]
["SYSMED PAS DE CALAIS","SYSMED PAS DE CALAIS"]
["SYSMEX FRANCE","SYSMEX FRANCE"]
["SYSTAGENIX WOUND MANAGEMENT FRANCE","SYSTAGENIX WOUND MANAGEMENT FRANCE"]
["System Analytic","System Analytic"]
["System Assistance Medical","System Assistance Medical"]
["Takeda France","Takeda France"]
["TARA SANTE","TARA SANTE"]
["TBF GENIE TISSULAIRE","TBF GENIE TISSULAIRE"]
["TBWA\\ADELPHI","TBWA\\ADELPHI"]
["TEKNIMED","TEKNIMED"]
["TELEFLEX MEDICAL SAS","TELEFLEX MEDICAL SAS"]
["TEM-France","TEM-France"]
["TEOXANE","TEOXANE"]
["TEOXANE FRANCE","TEOXANE FRANCE"]
["TERALI","TERALI"]
["TERRA FIRMA","TERRA FIRMA"]
["TERRE NEUVE","TERRE NEUVE"]
["Terumo BCT Europe SA","Terumo BCT Europe SA"]
["Test","Test"]
["TEVA SANTE SAS","TEVA SANTE SAS"]
["TEXTILE HI-TEC","TEXTILE HI-TEC"]
["TFS TRIAL FORM SUPPORT SASU","TFS TRIAL FORM SUPPORT SASU"]
["THE BINDING SITE GROUP LTD","THE BINDING SITE GROUP LTD"]
["The KOL Connection","The KOL Connection"]
["The MarkeTech Group SARL","The MarkeTech Group SARL"]
["The Medicines Company France SAS","The Medicines Company France SAS"]
["The Research Partnership","The Research Partnership"]
["The Spectranetics Corporation","The Spectranetics Corporation"]
["Theorem Clinical Research SARL","Theorem Clinical Research SARL"]
["THERABEL LUCIEN PHARMA","THERABEL LUCIEN PHARMA"]
["THERACLION","THERACLION"]
["THERADIAG SA","THERADIAG SA"]
["THERADIAL SAS","THERADIAL SAS"]
["THERAKOS UK Ltd","THERAKOS UK Ltd"]
["Theravance, Inc.","Theravance, Inc."]
["THERMO ELECTRON LED SAS","THERMO ELECTRON LED SAS"]
["THERMO ELECTRON SAS","THERMO ELECTRON SAS"]
["THERMO FISHER DIAGNOSTICS","THERMO FISHER DIAGNOSTICS"]
["Think Tuvalu","Think Tuvalu"]
["THORATEC EUROPE LTD","THORATEC EUROPE LTD"]
["THUASNE","THUASNE"]
["Tillotts Pharma France SAS","Tillotts Pharma France SAS"]
["TIME RESEARCH LIMITED","TIME RESEARCH LIMITED"]
["to the heart ltd","to the heart ltd"]
["Topcon SARL","Topcon SARL"]
["TOP-Service für Lingualtechnik GmbH","TOP-Service für Lingualtechnik GmbH"]
["TOP-Service für Lingualtechnik GmbH","TOP-Service für Lingualtechnik GmbH"]
["Toray Industries, Inc.","Toray Industries, Inc."]
["TORNIER","TORNIER"]
["TOSHIBA MEDICAL FRANCE","TOSHIBA MEDICAL FRANCE"]
["TOSOH EUROPE NV","TOSOH EUROPE NV"]
["TOURS CERAM","TOURS CERAM"]
["Trame Way","Trame Way"]
["Transgene SA","Transgene SA"]
["Transystème - JMT IMPLANTS","Transystème - JMT IMPLANTS"]
["Transystème - JMT IMPLANTS","Transystème - JMT IMPLANTS"]
["TRANSYSTEME SN","TRANSYSTEME SN"]
["TRB CHEMEDICA","TRB CHEMEDICA"]
["TROIS PRIME","TROIS PRIME"]
["TROPHOS","TROPHOS"]
["TSP","TSP"]
["Tungsten-Software","Tungsten-Software"]
["Tutogen Médical France","Tutogen Médical France"]
["Tutogen Médical France","Tutogen Médical France"]
["TxCell","TxCell"]
["UCB Pharma SA","UCB Pharma"]
["Ugam Solutions","Ugam Solutions"]
["Ultradent Products GmbH","Ultradent Products GmbH"]
["ULURU SANTE / VIGIE Pharma","ULURU SANTE / VIGIE Pharma"]
["UNILEVER FRANCE","UNILEVER FRANCE"]
["United Orthopedic Corporation (France)","United Orthopedic Corporation (France)"]
["UNITHER DEVELOPPEMENT BORDEAUX","UNITHER DEVELOPPEMENT BORDEAUX"]
["UNITHER INDUSTRIES","UNITHER INDUSTRIES"]
["UNITHER LIQUID MANUFACTURING","UNITHER LIQUID MANUFACTURING"]
["UNITHER PHARMACEUTICALS","UNITHER PHARMACEUTICALS"]
["UNIVERSAL MEDICA","UNIVERSAL MEDICA"]
["Update France Terrain d'Etudes","Update France Terrain d'Etudes"]
["UPSA SAS","UPSA SAS"]
["URGO RECHERCHE INNOVATION ET DEVELOPPEMENT","URGO RECHERCHE INNOVATION ET DEVELOPPEMENT"]
["Use-Lab GmbH","Use-Lab GmbH"]
["Valtech Cardio Ltd","Valtech Cardio Ltd"]
["VALUA SARL","VALUA SARL"]
["Varian Medical Systems France Sarl","Varian Medical Systems France Sarl"]
["Vascular Solutions, Inc.","Vascular Solutions, Inc."]
["VASCUTEK FRANCE","VASCUTEK FRANCE"]
["Vatech France","Vatech France"]
["VECTEC","VECTEC"]
["Veniti, Inc.","Veniti, Inc."]
["Ventana Medical Systems, Inc.","Ventana Medical Systems, Inc."]
["Ventiléa","Ventiléa"]
["Ventiléa","Ventiléa"]
["VEODIS","VEODIS"]
["VERBAL","VERBAL"]
["Vertex Pharmaceuticals Incorporated","Vertex Pharmaceuticals Incorporated"]
["VEXIM SA","VEXIM SA"]
["Vibrant Med-El","Vibrant Med-El"]
["VIFOR FRANCE SA","VIFOR FRANCE SA"]
["VIFOR FRESENIUS MEDICAL CARE RENAL PHARMA","VIFOR FRESENIUS MEDICAL CARE RENAL PHARMA"]
["ViiV HEALTHCARE SAS","ViiV HEALTHCARE SAS"]
["VIROPHARMA","VIROPHARMA"]
["VIROPHARMA SPRL","VIROPHARMA SPRL"]
["VISION OUTRE MER","VISION OUTRE MER"]
["Vital Images France Sarl","Vital Images France Sarl"]
["VITALAIRE","VITALAIRE"]
["VITALEA MEDICAL","VITALEA MEDICAL"]
["VITALITEC INTERNATIONAL","VITALITEC INTERNATIONAL"]
["VIVACTIS MEDICAL EDUCATION","VIVACTIS MEDICAL EDUCATION"]
["Vivactis-M2Research","Vivactis-M2Research"]
["VIVISOL France","VIVISOL France"]
["VKMED","VKMED"]
["VO Medica","VO Medica"]
["VOISIN CONSULTING","VOISIN CONSULTING"]
["VOLCANO EUROPE BVBA/SPRL","VOLCANO EUROPE BVBA/SPRL"]
["VOLUNTIS","VOLUNTIS"]
["VYGON","VYGON"]
["W L GORE & ASSOCIES","W L GORE & ASSOCIES"]
["W&H FRANCE","W&H FRANCE"]
["WAM","WAM"]
["Warner Chilcott France SAS","Warner Chilcott France SAS"]
["WEINMANN EMERGENCY FRANCE","WEINMANN EMERGENCY FRANCE"]
["WEINMANN SAS","WEINMANN SAS"]
["Weleda S.A.","Weleda S.A."]
["WELLSPECT HEALTHCARE","WELLSPECT HEALTHCARE"]
["WELLSPECT HEALTHCARE/DENTSPLY IH AB","WELLSPECT HEALTHCARE/DENTSPLY IH AB"]
["WERFEN","WERFEN"]
["WIDEX","WIDEX"]
["WOO YOUNG MEDICAL FRANCE","WOO YOUNG MEDICAL FRANCE"]
["WorldOne Group B.V.","WorldOne Group B.V."]
["WR CONSEIL","WR CONSEIL"]
["WRIGHT MEDICAL FRANCE","WRIGHT MEDICAL FRANCE"]
["XENIOS","XENIOS"]
["XNOV","XNOV"]
["XNOV Distribution","XNOV Distribution"]
["YPSOMED SAS","YPSOMED SAS"]
["YSSUP RESEARCH","YSSUP RESEARCH"]
["Zambon France","Zambon France"]
["Zeste Research","Zeste Research"]
["Zimmer BVBA","Zimmer BVBA"]
["Zimmer Dental SAS","Zimmer Dental SAS"]
["Zimmer France SAS","Zimmer France SAS"]
["Zimmer GmbH","Zimmer GmbH"]
["Zimmer Spine SAS","Zimmer Spine SAS"]
["ZOLL Médical France","ZOLL Médical France"]
["ZOLL Médical France","ZOLL Médical France"]
["ZS Associates","ZS Associates"]
["ZS Associates International, Inc.","ZS Associates International, Inc."]
["ZYDUS FRANCE","ZYDUS FRANCE"]

{"sheet":"Conception","index":6,"n_rows":18,"n_cols":4,"rows_kept":18,"cut":false,"hidden":false,"merged":[[23,3,23,14],[17,1,17,14],[13,3,13,5],[16,3,16,14],[18,3,18,14],[6,3,10,8],[19,3,19,14],[20,3,20,14],[21,3,21,14],[22,3,22,14]]}
[]
[null,"Concepteur :"]
[]
[null,null,null,"François PESTY"]
[null,null,null,"Pharmacien, Ancien Interne des Hôpitaux de Paris, Institut Supérieur de Gestion,"]
[null,null,null,"Consultant indépendant, "]
[null,null,null,"Expert-Conseil en organisation et informatisation du circuit du médicament / Optimisation des approvisionnements et des stocks pharmaceutiques / Pilotage \n« médico-économique » des médicaments et dispositifs médicaux / Campagne \n« pilotes » de visites médicalisées des délégués de l’assurance maladie sur le médicament / Pertinence des traitements médicamenteux"]
[]
[]
[]
[]
[null,null,null,"2, square Gay Lussac"]
[null,null,null,"78330 Fontenay le Fleury"]
[null,null,null,"Francois.PESTY@Wanadoo.fr"]
[null,null,null,"01 30 45 03 59 / 06 88 89 53 51"]
[]
[]
[null,"François PESTY est membre de l'association FORMINDEP, "]

{"sheet":"Déplacements","index":7,"n_rows":2,"n_cols":6,"rows_kept":2,"cut":false,"hidden":false,"merged":[]}
[]
["Début","Fin ","Signature","Congrès","Lieux","Firme"]

{"sheet":"Tableaux de synthèse","index":8,"n_rows":23,"n_cols":140,"rows_kept":23,"cut":false,"hidden":false,"merged":[[2,95,2,139],[2,2,2,5],[2,6,2,13],[2,14,2,24],[2,25,2,59],[2,60,2,94]]}
[]
[]
[null,null,"Synthèse",null,null,null,"Avantages perçus",null,null,null,null,null,null,null,"Conventions signées",null,null,null,null,null,null,null,null,null,null,"Montants des avantages versés par les entreprises - Montants des avantages versés par les entreprises - Montants des avantages versés par les entreprises - Montants des avantages versés ",null,null,null,null,null,null,null,null,null,null,null,null,null,null,null,null,null,null,null,null,null,null,null,null,null,null,null,null,null,null,null,null,null,null,"Nombres d'avantages versés par les entreprises - Nombres d'avantages versés par les entreprises - Nombres d'avantages versés par les entreprises - Nombres d'avantages versés par les entreprises - Nombres d'avantages versés par les entreprises - ",null,null,null,null,null,null,null,null,null,null,null,null,null,null,null,null,null,null,null,null,null,null,null,null,null,null,null,null,null,null,null,null,null,null,"Nombres de conventions signées avec les entreprises - Nombres de conventions signées avec les entreprises - Nombres de conventions signées avec les entreprises - Nombres de conventions signées avec les entreprises - Nombres de conventions signées avec les entreprises - "]
[null,"Bénéficiaire","Total avantages perçus (€)","Nombre d'avantages perçus","Nombre de conventions signées","Rémunérations\n+ montants de conventions","Transport","Hébergement","Repas","Hospitalité","Inscription","Conseil","Congrès","Autre","Hospitalité","Orateur","Réunion professionnelle","Expert","Conseil","Recherche Clinique","Etude de marché","Formateur","Rédacteur","Réunion de « Board »","Autre","Bristol -Myers Squibb","Novartis","SANOFI-AVENTIS GROUPE","Janssen-Cilag","Sanofi Aventis France","ASTELLAS PHARMA","Takeda France","Pfizer","Roche","GSK","ConsuMed Research","Medicys Limited","Amgen","Health Advances","IPSEN PHARMA","AstraZeneca","Bayer HealthCare SAS","SANDOZ","MSD France","FERRING SAS","BOEHRINGER INGELHEIM FRANCE","MERCK SERONO","Pierre Fabre Médicament","HOSPIRA","Icomed","CHUGAI","MEDA PHARMA","Lilly","THERADIAL SAS","Guerbet","LEO Pharma","A+A","TEVA SANTE SAS","PASCALEO","ARIAD Pharmaceuticals (France)","Sanofi Aventis France","Janssen-Cilag","Bristol -Myers Squibb","ASTELLAS PHARMA","SANOFI-AVENTIS GROUPE","Novartis","Pfizer","Roche","GSK","Amgen","AstraZeneca","Bayer HealthCare SAS","SANDOZ","MERCK SERONO","BOEHRINGER INGELHEIM FRANCE","Takeda France","Pierre Fabre Médicament","IPSEN PHARMA","ConsuMed Research","HOSPIRA","MSD France","CHUGAI","LEO Pharma","MEDA PHARMA","Icomed","TEVA SANTE SAS","Lilly","FERRING SAS","Guerbet","THERADIAL SAS","ARIAD Pharmaceuticals (France)","A+A","Health Advances","PASCALEO","Medicys Limited","Sanofi Aventis France","Janssen-Cilag","Pfizer","SANOFI-AVENTIS GROUPE","Novartis","Bristol -Myers Squibb","Bayer HealthCare SAS","IPSEN PHARMA","ASTELLAS PHARMA","AstraZeneca","Pierre Fabre Médicament","WorldOne Group B.V.","Amgen","GSK","Roche","SANDOZ","Takeda France","B3TSI","FERRING SAS","Simon-Kucher & Partners","KEPHREN","PRA","INC RESEARCH, LLC","MSD France","TBWA\\ADELPHI","ASTELLAS PHARMA Ltd","ARIAD Pharmaceuticals (France)","Covance Clinical And Periapproval Services SARL","M3 Global Research Ltd","TEVA SANTE SAS","Ipsos Mori UK Limited","Elixo SAS","Health Advances","QUINTILES BENEFIT FRANCE SNC","KeyQuest Health Ltd.","Serial Creative","Kantar Health","EISAI SAS","PPD FRANCE SAS","EUSA Pharma (France) SAS","STETHOS","RE-IMAGINE Health Agency","BOEHRINGER INGELHEIM FRANCE","LEO Pharma","IPSEN INNOVATION"]
[null,"Pr Stéphane OUDARD",{"$f":"SUMPRODUCT(('Avantages perçus'!$A$2:$A$30015=B5)*('Avantages perçus'!$F$2:$F$30015))","v":133592},{"$f":"COUNTIFS('Avantages perçus'!$A$2:$A$30015,B5,'Avantages perçus'!$F$2:$F$30015,\">0\")","v":446},{"$f":"COUNTIFS('Conventions signées'!$A$2:$A$15002,B5,'Conventions signées'!$A$2:$A$15002,\"*\")","v":269},{"$f":"Rémunérations!E101+'Conventions signées'!G272","v":200272},80338,19950,15905,2960,6732,0,371,7336,52,39,36,38,70,14,15,4,0,0,1,39557,33064,18749,14493,9971,8930,2535,1077,875,757,710,400,309,309,188,165,147,139,130,120,116,100,99,94,84,81,64,55,49,48,44,40,35,35,23,72,57,53,48,45,34,18,16,10,9,8,6,6,5,5,5,5,5,4,4,4,3,3,3,3,2,2,2,2,2,1,1,1,1,1,46,33,27,24,22,17,10,9,8,6,5,5,4,4,4,4,3,3,3,3,2,2,2,2,1,1,1,1,1,1,1,1,1,1,1,1,1,1,1,1,1,1,1,1,1]
[null,"TOTAUX",133592,446,269,{"$f":"F5","v":200272},80338,19950,15905,2960,6732,0,371,7336,52,39,36,38,70,14,15,4,0,0,1,39557,33064,18749,14493,9971,8930,2535,1077,875,757,710,400,309,309,188,165,147,139,130,120,116,100,99,94,84,81,64,55,49,48,44,40,35,35,23,72,57,53,48,45,34,18,16,10,9,8,6,6,5,5,5,5,5,4,4,4,3,3,3,3,2,2,2,2,2,1,1,1,1,1,46,33,27,24,22,17,10,9,8,6,5,5,4,4,4,4,3,3,3,3,2,2,2,2,1,1,1,1,1,1,1,1,1,1,1,1,1,1,1,1,1,1,1,1,1]
[]
[]
[null,"Période d'étude","   1er semestre 2013 - 1 semestre 2018, soient 5 années et demi"]
[null,"Début de l'analyse","   26/09/2018 21:56:05"]
[null,"Fin de l'analyse","   26/09/2018 21:56:25"]
[]
[null,null,null,"%","Cumul%"]
[null,"SANOFI-AVENTIS",{"$f":"'Avantages perçus'!F460+'Conventions signées'!G294+Rémunérations!E109","v":141564},{"$f":"C14/(C$5+F$5)","v":0.42401696499173314},{"$f":"D14","v":0.42401696499173314}]
[null,"BRISTOL-MYERS SQUIBB",{"$f":"'Avantages perçus'!F458+'Conventions signées'!G284+Rémunérations!E112","v":47831},{"$f":"C15/(C$5+F$5)","v":0.1432649222437879},{"$f":"E14+D15","v":0.56728188723552098}]
[null,"NOVARTIS PHARMA",{"$f":"'Avantages perçus'!F459+'Conventions signées'!G286+Rémunérations!E111","v":42319},{"$f":"C16/(C$5+F$5)","v":0.1267552057125057},{"$f":"E15+D16","v":0.69403709294802662}]
[null,"JANSSEN-CILAG",{"$f":"'Avantages perçus'!F461+'Conventions signées'!G288+Rémunérations!E110","v":31833},9.5347207246064269E-2,0.78938430019409089]
[null,"IPSEN PHARMA",{"$f":"'Avantages perçus'!F468+'Conventions signées'!G283+Rémunérations!E115","v":19228},5.7592313037644068E-2,0.84697661323173501]
[null,"ASTELLAS PHARMA",{"$f":"'Avantages perçus'!F462+'Conventions signées'!G285+Rémunérations!E113","v":18890},5.6579924759782428E-2,0.90355653799151747]
[null,"PFIZER",{"$f":"'Avantages perçus'!F464+'Conventions signées'!G295+Rémunérations!E114","v":5317},1.5925646370977403E-2,0.91948218436249485]
[null,"ASTRAZENECA",{"$f":"'Avantages perçus'!F469+'Conventions signées'!G287+Rémunérations!E117","v":5200},1.5575204274794528E-2,0.93505738863728938]
[null,"Takeda France",{"$f":"'Avantages perçus'!F463","v":2535},7.5929120839623322E-3,0.94265030072125167]
[null,"MSD France",{"$f":"'Avantages perçus'!F477+'Conventions signées'!G290+Rémunérations!E119","v":2472},7.4042124937100133E-3,0.9500545132149617]